Body Name,Body,Date,Department,Beneficiary,Summary of Purpose (SeRCOP),Amount SUM,Merchant Code,Transaction Number,Supplier ID
Sandwell Metropolitan Borough Council,http://www.sandwell.gov.uk/info/200202/performance_and_spending/1079/payments_over_500,06/11/2023,Adults Social Care Capital,AXIS EUROPE PLC ,Adults Social Care Capital,50449.93,Deferred Charges/Grant Payments,2324P08_CR00001,64946
Sandwell Metropolitan Borough Council,http://www.sandwell.gov.uk/info/200202/performance_and_spending/1079/payments_over_500,01/11/2023,Adults Social Care Capital,BLOOM PROCUREMENT SERVICES LTD,Adults Social Care Capital,112071.06,"CIP - New Construction,Conversion, Enhancement & Reno",2324P08_CR00002,141813
Sandwell Metropolitan Borough Council,http://www.sandwell.gov.uk/info/200202/performance_and_spending/1079/payments_over_500,01/11/2023,Adults Social Care Capital,PARCOR LTD,Adults Social Care Capital,10983.00,"CIP - New Construction,Conversion, Enhancement & Reno",2324P08_CR00003,163117
Sandwell Metropolitan Borough Council,http://www.sandwell.gov.uk/info/200202/performance_and_spending/1079/payments_over_500,08/11/2023,Adults Social Care Capital,PR PROPERTY MAINTENANCE,Adults Social Care Capital,40176.42,Deferred Charges/Grant Payments,2324P08_CR00004,33836
Sandwell Metropolitan Borough Council,http://www.sandwell.gov.uk/info/200202/performance_and_spending/1079/payments_over_500,10/11/2023,Adults Social Care Capital,SEATED FURNITURE LTD,Adults Social Care Capital,991.50,CIP - Fixtures & Fittings,2324P08_CR00005,167393
Sandwell Metropolitan Borough Council,http://www.sandwell.gov.uk/info/200202/performance_and_spending/1079/payments_over_500,10/11/2023,Adults Social Care Capital,SEATED FURNITURE LTD,Adults Social Care Capital,3575.87,CIP - Fixtures & Fittings,2324P08_CR00006,167393
Sandwell Metropolitan Borough Council,http://www.sandwell.gov.uk/info/200202/performance_and_spending/1079/payments_over_500,10/11/2023,Adults Social Care Capital,SITEWATCH FIRE AND SURVEILLANCE LIMITED,Adults Social Care Capital,1321.44,Security,2324P08_CR00007,55288
Sandwell Metropolitan Borough Council,http://www.sandwell.gov.uk/info/200202/performance_and_spending/1079/payments_over_500,16/11/2023,Adults Social Care Capital,SWG CONSTRUCTION (BUILD & RENOVATE) LTD,Adults Social Care Capital,39642.16,"CIP - New Construction,Conversion, Enhancement & Reno",2324P08_CR00008,166518
Sandwell Metropolitan Borough Council,http://www.sandwell.gov.uk/info/200202/performance_and_spending/1079/payments_over_500,16/11/2023,Adults Social Care Capital,SWG CONSTRUCTION (BUILD & RENOVATE) LTD,Adults Social Care Capital,62841.42,"CIP - New Construction,Conversion, Enhancement & Reno",2324P08_CR00009,166518
Sandwell Metropolitan Borough Council,http://www.sandwell.gov.uk/info/200202/performance_and_spending/1079/payments_over_500,01/11/2023,Adults Social Care Capital,VINCI CONSTRUCTION LTD,Adults Social Care Capital,32088.94,Deferred Charges/Grant Payments,2324P08_CR00010,36361
Sandwell Metropolitan Borough Council,http://www.sandwell.gov.uk/info/200202/performance_and_spending/1079/payments_over_500,01/11/2023,Adults Social Care Capital,VINCI CONSTRUCTION LTD,Adults Social Care Capital,14191.29,Deferred Charges/Grant Payments,2324P08_CR00011,36361
Sandwell Metropolitan Borough Council,http://www.sandwell.gov.uk/info/200202/performance_and_spending/1079/payments_over_500,22/11/2023,Adults Social Care Capital,WELCH AND PHILLIPS BUILDING CONTRACTORS LTD,Adults Social Care Capital,110776.20,"CIP - New Construction,Conversion, Enhancement & Reno",2324P08_CR00012,167124
Sandwell Metropolitan Borough Council,http://www.sandwell.gov.uk/info/200202/performance_and_spending/1079/payments_over_500,01/11/2023,Adults Social Care Capital,WERNICK HIRE LTD,Adults Social Care Capital,1244.45,"CIP - New Construction,Conversion, Enhancement & Reno",2324P08_CR00013,01540783
Sandwell Metropolitan Borough Council,http://www.sandwell.gov.uk/info/200202/performance_and_spending/1079/payments_over_500,01/11/2023,Adults Social Care Capital,WESSEX LIFT CO LTD,Adults Social Care Capital,10581.94,Deferred Charges/Grant Payments,2324P08_CR00014,01095737
Sandwell Metropolitan Borough Council,http://www.sandwell.gov.uk/info/200202/performance_and_spending/1079/payments_over_500,20/11/2023,Adults Social Care Capital,WESSEX LIFT CO LTD,Adults Social Care Capital,14596.88,Deferred Charges/Grant Payments,2324P08_CR00015,01095737
Sandwell Metropolitan Borough Council,http://www.sandwell.gov.uk/info/200202/performance_and_spending/1079/payments_over_500,10/11/2023,Adults Social Care Capital,EASIBATHE LTD,Adults Social Care Capital,4355.78,Deferred Charges/Grant Payments,2324P08_CR00016,46096
Sandwell Metropolitan Borough Council,http://www.sandwell.gov.uk/info/200202/performance_and_spending/1079/payments_over_500,01/11/2023,Adults Social Care Capital,HOME DESIGN,Adults Social Care Capital,22957.29,Deferred Charges/Grant Payments,2324P08_CR00017,141847
Sandwell Metropolitan Borough Council,http://www.sandwell.gov.uk/info/200202/performance_and_spending/1079/payments_over_500,01/11/2023,Adults Social Care Capital,HOME DESIGN,Adults Social Care Capital,10000.00,Deferred Charges/Grant Payments,2324P08_CR00018,141847
Sandwell Metropolitan Borough Council,http://www.sandwell.gov.uk/info/200202/performance_and_spending/1079/payments_over_500,08/11/2023,Adults Social Care Capital,TDF DESIGN LIMITED,Adults Social Care Capital,19000.00,Deferred Charges/Grant Payments,2324P08_CR00019,10320
Sandwell Metropolitan Borough Council,http://www.sandwell.gov.uk/info/200202/performance_and_spending/1079/payments_over_500,01/11/2023,Adults Social Care Capital,TDF DESIGN LIMITED,Adults Social Care Capital,10346.77,Deferred Charges/Grant Payments,2324P08_CR00020,10320
Sandwell Metropolitan Borough Council,http://www.sandwell.gov.uk/info/200202/performance_and_spending/1079/payments_over_500,15/11/2023,Adults Social Care Capital,B S VIRDEE,Adults Social Care Capital,8380.40,Deferred Charges/Grant Payments,2324P08_CR00021,16907
Sandwell Metropolitan Borough Council,http://www.sandwell.gov.uk/info/200202/performance_and_spending/1079/payments_over_500,16/11/2023,Adults Social Care Capital,B S VIRDEE,Adults Social Care Capital,8000.00,Deferred Charges/Grant Payments,2324P08_CR00022,16907
Sandwell Metropolitan Borough Council,http://www.sandwell.gov.uk/info/200202/performance_and_spending/1079/payments_over_500,15/11/2023,Adults Social Care Capital,LIFT & ENGINEERING SERVICES LTD,Adults Social Care Capital,10838.06,"CIP - New Construction,Conversion, Enhancement & Reno",2324P08_CR00023,77003962
Sandwell Metropolitan Borough Council,http://www.sandwell.gov.uk/info/200202/performance_and_spending/1079/payments_over_500,15/11/2023,Adults Social Care Capital,LIFT & ENGINEERING SERVICES LTD,Adults Social Care Capital,8020.72,"CIP - New Construction,Conversion, Enhancement & Reno",2324P08_CR00024,77003962
Sandwell Metropolitan Borough Council,http://www.sandwell.gov.uk/info/200202/performance_and_spending/1079/payments_over_500,09/11/2023,Adults Social Care Capital,LIFT & ENGINEERING SERVICES LTD,Adults Social Care Capital,547.35,"CIP - New Construction,Conversion, Enhancement & Reno",2324P08_CR00025,77003962
Sandwell Metropolitan Borough Council,http://www.sandwell.gov.uk/info/200202/performance_and_spending/1079/payments_over_500,23/11/2023,Childrens Services,HAYS SPECIALIST RECRUITMENT LTD,Childrens Services,-1204.25,Agency Staff,2324P08_CR00026,80349
Sandwell Metropolitan Borough Council,http://www.sandwell.gov.uk/info/200202/performance_and_spending/1079/payments_over_500,17/11/2023,Childrens Services,SANDWELL CHILDREN'S TRUST,Childrens Services,-5705769.15,Other Establishments,2324P08_CR00027,133302
Sandwell Metropolitan Borough Council,http://www.sandwell.gov.uk/info/200202/performance_and_spending/1079/payments_over_500,01/11/2023,Childrens Services,SANDWELL CHILDREN'S TRUST,Childrens Services,-5705769.23,Other Establishments,2324P08_CR00028,133302
Sandwell Metropolitan Borough Council,http://www.sandwell.gov.uk/info/200202/performance_and_spending/1079/payments_over_500,16/11/2023,Childrens Services,5 STAR DAY NURSERY LIMITED,Childrens Services,2000.00,Grant Payments,2324P08_CR00029,105382
Sandwell Metropolitan Borough Council,http://www.sandwell.gov.uk/info/200202/performance_and_spending/1079/payments_over_500,22/11/2023,Childrens Services,AFJ LIMITED,Childrens Services,55760.00,Public Transport,2324P08_CR00030,164912
Sandwell Metropolitan Borough Council,http://www.sandwell.gov.uk/info/200202/performance_and_spending/1079/payments_over_500,22/11/2023,Childrens Services,AFJ LIMITED,Childrens Services,48561.00,Public Transport,2324P08_CR00031,164912
Sandwell Metropolitan Borough Council,http://www.sandwell.gov.uk/info/200202/performance_and_spending/1079/payments_over_500,01/11/2023,Childrens Services,AMP BIOMASS FUEL LTD T/A AMP CLEAN ENERGY,Childrens Services,2570.20,Ingestre Hall Arts Centre.Energy Costs-Bio Energy Costs.Bio Mass Fuel.0.0.Sandwell MBC,2324P08_CR00032,128761
Sandwell Metropolitan Borough Council,http://www.sandwell.gov.uk/info/200202/performance_and_spending/1079/payments_over_500,09/11/2023,Childrens Services,REDACTED PERSONAL DATA T/A A&E LEGAL TRAINING,Childrens Services,599.00,Externally Purchased Professional Services ,2324P08_CR00033,REDACTED PERSONAL DATA
Sandwell Metropolitan Borough Council,http://www.sandwell.gov.uk/info/200202/performance_and_spending/1079/payments_over_500,08/11/2023,Childrens Services,APD PRINT & DESIGN,Childrens Services,700.00,"Printing, Stationery & General Office Expenses",2324P08_CR00034,49454
Sandwell Metropolitan Borough Council,http://www.sandwell.gov.uk/info/200202/performance_and_spending/1079/payments_over_500,01/11/2023,Childrens Services,AUTISM WEST MIDLANDS      ,Childrens Services,9215.50,Grant Payments,2324P08_CR00035,65002404
Sandwell Metropolitan Borough Council,http://www.sandwell.gov.uk/info/200202/performance_and_spending/1079/payments_over_500,01/11/2023,Childrens Services,AUTISM WEST MIDLANDS    ,Childrens Services,9215.50,Grant Payments,2324P08_CR00036,65002404
Sandwell Metropolitan Borough Council,http://www.sandwell.gov.uk/info/200202/performance_and_spending/1079/payments_over_500,01/11/2023,Childrens Services,AVANTI GAS LIMITED,Childrens Services,1647.72,Gas,2324P08_CR00037,60069
Sandwell Metropolitan Borough Council,http://www.sandwell.gov.uk/info/200202/performance_and_spending/1079/payments_over_500,16/11/2023,Childrens Services,BANNER GROUP LTD,Childrens Services,548.36,Materials & Consumables,2324P08_CR00038,134506
Sandwell Metropolitan Borough Council,http://www.sandwell.gov.uk/info/200202/performance_and_spending/1079/payments_over_500,01/11/2023,Childrens Services,BCH PROPERTY LIMITED,Childrens Services,1166.76,Rents,2324P08_CR00039,01011861
Sandwell Metropolitan Borough Council,http://www.sandwell.gov.uk/info/200202/performance_and_spending/1079/payments_over_500,01/11/2023,Childrens Services,BCH PROPERTY LIMITED,Childrens Services,1283.52,Rents,2324P08_CR00040,01011861
Sandwell Metropolitan Borough Council,http://www.sandwell.gov.uk/info/200202/performance_and_spending/1079/payments_over_500,01/11/2023,Childrens Services,BCH PROPERTY LIMITED,Childrens Services,1283.52,Rents,2324P08_CR00041,01011861
Sandwell Metropolitan Borough Council,http://www.sandwell.gov.uk/info/200202/performance_and_spending/1079/payments_over_500,01/11/2023,Childrens Services,BCH PROPERTY LIMITED,Childrens Services,1283.52,Rents,2324P08_CR00042,01011861
Sandwell Metropolitan Borough Council,http://www.sandwell.gov.uk/info/200202/performance_and_spending/1079/payments_over_500,01/11/2023,Childrens Services,BCH PROPERTY LIMITED,Childrens Services,1166.76,Rents,2324P08_CR00043,01011861
Sandwell Metropolitan Borough Council,http://www.sandwell.gov.uk/info/200202/performance_and_spending/1079/payments_over_500,01/11/2023,Childrens Services,BCH PROPERTY LIMITED,Childrens Services,1283.52,Rents,2324P08_CR00044,01011861
Sandwell Metropolitan Borough Council,http://www.sandwell.gov.uk/info/200202/performance_and_spending/1079/payments_over_500,01/11/2023,Childrens Services,BCH PROPERTY LIMITED,Childrens Services,1568.00,Rents,2324P08_CR00045,01011861
Sandwell Metropolitan Borough Council,http://www.sandwell.gov.uk/info/200202/performance_and_spending/1079/payments_over_500,16/11/2023,Childrens Services,BIDFOOD,Childrens Services,749.31,Catering Provisions,2324P08_CR00046,164984
Sandwell Metropolitan Borough Council,http://www.sandwell.gov.uk/info/200202/performance_and_spending/1079/payments_over_500,06/11/2023,Childrens Services,BIDFOOD,Childrens Services,597.97,Catering Provisions,2324P08_CR00047,164984
Sandwell Metropolitan Borough Council,http://www.sandwell.gov.uk/info/200202/performance_and_spending/1079/payments_over_500,01/11/2023,Childrens Services,BIDFOOD,Childrens Services,1015.18,Catering Provisions,2324P08_CR00048,164984
Sandwell Metropolitan Borough Council,http://www.sandwell.gov.uk/info/200202/performance_and_spending/1079/payments_over_500,11/11/2023,Childrens Services,BOOKWORMS DAYCARE LIMITED,Childrens Services,2000.00,Grant Payments,2324P08_CR00049,114741
Sandwell Metropolitan Borough Council,http://www.sandwell.gov.uk/info/200202/performance_and_spending/1079/payments_over_500,01/11/2023,Childrens Services,CASTELL HOWELL FOODS LTD,Childrens Services,588.58,Catering Provisions,2324P08_CR00050,163660
Sandwell Metropolitan Borough Council,http://www.sandwell.gov.uk/info/200202/performance_and_spending/1079/payments_over_500,01/11/2023,Childrens Services,CLB MUSIC SERVICES LTD,Childrens Services,900.00,Externally Purchased Professional Services ,2324P08_CR00051,163924
Sandwell Metropolitan Borough Council,http://www.sandwell.gov.uk/info/200202/performance_and_spending/1079/payments_over_500,01/11/2023,Childrens Services,CLB MUSIC SERVICES LTD,Childrens Services,600.00,Externally Purchased Professional Services ,2324P08_CR00052,163924
Sandwell Metropolitan Borough Council,http://www.sandwell.gov.uk/info/200202/performance_and_spending/1079/payments_over_500,01/11/2023,Childrens Services,CLB MUSIC SERVICES LTD,Childrens Services,750.00,Externally Purchased Professional Services ,2324P08_CR00053,163924
Sandwell Metropolitan Borough Council,http://www.sandwell.gov.uk/info/200202/performance_and_spending/1079/payments_over_500,01/11/2023,Childrens Services,COUNTY CARS (2003) LIMITED,Childrens Services,1725.00,Public Transport,2324P08_CR00054,06002387
Sandwell Metropolitan Borough Council,http://www.sandwell.gov.uk/info/200202/performance_and_spending/1079/payments_over_500,01/11/2023,Childrens Services,COUNTY CARS (2003) LIMITED,Childrens Services,2275.00,Public Transport,2324P08_CR00055,06002387
Sandwell Metropolitan Borough Council,http://www.sandwell.gov.uk/info/200202/performance_and_spending/1079/payments_over_500,01/11/2023,Childrens Services,COUNTY CARS (2003) LIMITED,Childrens Services,3675.00,Public Transport,2324P08_CR00056,06002387
Sandwell Metropolitan Borough Council,http://www.sandwell.gov.uk/info/200202/performance_and_spending/1079/payments_over_500,01/11/2023,Childrens Services,COUNTY CARS (2003) LIMITED,Childrens Services,3150.00,Public Transport,2324P08_CR00057,06002387
Sandwell Metropolitan Borough Council,http://www.sandwell.gov.uk/info/200202/performance_and_spending/1079/payments_over_500,01/11/2023,Childrens Services,COUNTY CARS (2003) LIMITED,Childrens Services,3600.00,Public Transport,2324P08_CR00058,06002387
Sandwell Metropolitan Borough Council,http://www.sandwell.gov.uk/info/200202/performance_and_spending/1079/payments_over_500,01/11/2023,Childrens Services,COUNTY CARS (2003) LIMITED,Childrens Services,3375.00,Public Transport,2324P08_CR00059,06002387
Sandwell Metropolitan Borough Council,http://www.sandwell.gov.uk/info/200202/performance_and_spending/1079/payments_over_500,01/11/2023,Childrens Services,COUNTY CARS (2003) LIMITED,Childrens Services,5400.00,Public Transport,2324P08_CR00060,06002387
Sandwell Metropolitan Borough Council,http://www.sandwell.gov.uk/info/200202/performance_and_spending/1079/payments_over_500,01/11/2023,Childrens Services,COUNTY CARS (2003) LIMITED,Childrens Services,2250.00,Public Transport,2324P08_CR00061,06002387
Sandwell Metropolitan Borough Council,http://www.sandwell.gov.uk/info/200202/performance_and_spending/1079/payments_over_500,01/11/2023,Childrens Services,COUNTY CARS (2003) LIMITED,Childrens Services,4050.00,Public Transport,2324P08_CR00062,06002387
Sandwell Metropolitan Borough Council,http://www.sandwell.gov.uk/info/200202/performance_and_spending/1079/payments_over_500,01/11/2023,Childrens Services,COUNTY CARS (2003) LIMITED,Childrens Services,4500.00,Public Transport,2324P08_CR00063,06002387
Sandwell Metropolitan Borough Council,http://www.sandwell.gov.uk/info/200202/performance_and_spending/1079/payments_over_500,01/11/2023,Childrens Services,COUNTY CARS (2003) LIMITED,Childrens Services,3375.00,Public Transport,2324P08_CR00064,06002387
Sandwell Metropolitan Borough Council,http://www.sandwell.gov.uk/info/200202/performance_and_spending/1079/payments_over_500,01/11/2023,Childrens Services,COUNTY CARS (2003) LIMITED,Childrens Services,3600.00,Public Transport,2324P08_CR00065,06002387
Sandwell Metropolitan Borough Council,http://www.sandwell.gov.uk/info/200202/performance_and_spending/1079/payments_over_500,01/11/2023,Childrens Services,COUNTY CARS (2003) LIMITED,Childrens Services,2100.00,Public Transport,2324P08_CR00066,06002387
Sandwell Metropolitan Borough Council,http://www.sandwell.gov.uk/info/200202/performance_and_spending/1079/payments_over_500,01/11/2023,Childrens Services,COUNTY CARS (2003) LIMITED,Childrens Services,2625.00,Public Transport,2324P08_CR00067,06002387
Sandwell Metropolitan Borough Council,http://www.sandwell.gov.uk/info/200202/performance_and_spending/1079/payments_over_500,01/11/2023,Childrens Services,COUNTY CARS (2003) LIMITED,Childrens Services,4025.00,Public Transport,2324P08_CR00068,06002387
Sandwell Metropolitan Borough Council,http://www.sandwell.gov.uk/info/200202/performance_and_spending/1079/payments_over_500,01/11/2023,Childrens Services,COUNTY CARS (2003) LIMITED,Childrens Services,1925.00,Public Transport,2324P08_CR00069,06002387
Sandwell Metropolitan Borough Council,http://www.sandwell.gov.uk/info/200202/performance_and_spending/1079/payments_over_500,01/11/2023,Childrens Services,COUNTY CARS (2003) LIMITED,Childrens Services,3762.50,Public Transport,2324P08_CR00070,06002387
Sandwell Metropolitan Borough Council,http://www.sandwell.gov.uk/info/200202/performance_and_spending/1079/payments_over_500,03/11/2023,Childrens Services,COUNTY CARS (2003) LIMITED,Childrens Services,1950.00,Public Transport,2324P08_CR00071,06002387
Sandwell Metropolitan Borough Council,http://www.sandwell.gov.uk/info/200202/performance_and_spending/1079/payments_over_500,03/11/2023,Childrens Services,COUNTY CARS (2003) LIMITED,Childrens Services,2925.00,Public Transport,2324P08_CR00072,06002387
Sandwell Metropolitan Borough Council,http://www.sandwell.gov.uk/info/200202/performance_and_spending/1079/payments_over_500,03/11/2023,Childrens Services,COUNTY CARS (2003) LIMITED,Childrens Services,2275.00,Public Transport,2324P08_CR00073,06002387
Sandwell Metropolitan Borough Council,http://www.sandwell.gov.uk/info/200202/performance_and_spending/1079/payments_over_500,01/11/2023,Childrens Services,COUNTY CARS (2003) LIMITED,Childrens Services,1125.00,Public Transport,2324P08_CR00074,06002387
Sandwell Metropolitan Borough Council,http://www.sandwell.gov.uk/info/200202/performance_and_spending/1079/payments_over_500,16/11/2023,Childrens Services,CPOMS SYSTEMS LIMITED,Childrens Services,555.00,ICT ,2324P08_CR00075,146336
Sandwell Metropolitan Borough Council,http://www.sandwell.gov.uk/info/200202/performance_and_spending/1079/payments_over_500,01/11/2023,Childrens Services,CUSTODIAN GROUP LTD,Childrens Services,630.00,Rents,2324P08_CR00076,151637
Sandwell Metropolitan Borough Council,http://www.sandwell.gov.uk/info/200202/performance_and_spending/1079/payments_over_500,01/11/2023,Childrens Services,CUSTODIAN GROUP LTD,Childrens Services,630.00,Rents,2324P08_CR00077,151637
Sandwell Metropolitan Borough Council,http://www.sandwell.gov.uk/info/200202/performance_and_spending/1079/payments_over_500,01/11/2023,Childrens Services,CUSTODIAN GROUP LTD,Childrens Services,630.00,Rents,2324P08_CR00078,151637
Sandwell Metropolitan Borough Council,http://www.sandwell.gov.uk/info/200202/performance_and_spending/1079/payments_over_500,01/11/2023,Childrens Services,CUSTODIAN GROUP LTD,Childrens Services,630.00,Rents,2324P08_CR00079,151637
Sandwell Metropolitan Borough Council,http://www.sandwell.gov.uk/info/200202/performance_and_spending/1079/payments_over_500,01/11/2023,Childrens Services,CUSTODIAN GROUP LTD,Childrens Services,630.00,Rents,2324P08_CR00080,151637
Sandwell Metropolitan Borough Council,http://www.sandwell.gov.uk/info/200202/performance_and_spending/1079/payments_over_500,01/11/2023,Childrens Services,CUSTODIAN GROUP LTD,Childrens Services,630.00,Rents,2324P08_CR00081,151637
Sandwell Metropolitan Borough Council,http://www.sandwell.gov.uk/info/200202/performance_and_spending/1079/payments_over_500,06/11/2023,Childrens Services,CUSTODIAN GROUP LTD,Childrens Services,630.00,Rents,2324P08_CR00082,151637
Sandwell Metropolitan Borough Council,http://www.sandwell.gov.uk/info/200202/performance_and_spending/1079/payments_over_500,06/11/2023,Childrens Services,CUSTODIAN GROUP LTD,Childrens Services,630.00,Rents,2324P08_CR00083,151637
Sandwell Metropolitan Borough Council,http://www.sandwell.gov.uk/info/200202/performance_and_spending/1079/payments_over_500,06/11/2023,Childrens Services,CUSTODIAN GROUP LTD,Childrens Services,630.00,Rents,2324P08_CR00084,151637
Sandwell Metropolitan Borough Council,http://www.sandwell.gov.uk/info/200202/performance_and_spending/1079/payments_over_500,06/11/2023,Childrens Services,CUSTODIAN GROUP LTD,Childrens Services,630.00,Rents,2324P08_CR00085,151637
Sandwell Metropolitan Borough Council,http://www.sandwell.gov.uk/info/200202/performance_and_spending/1079/payments_over_500,06/11/2023,Childrens Services,CUSTODIAN GROUP LTD,Childrens Services,630.00,Rents,2324P08_CR00086,151637
Sandwell Metropolitan Borough Council,http://www.sandwell.gov.uk/info/200202/performance_and_spending/1079/payments_over_500,06/11/2023,Childrens Services,CUSTODIAN GROUP LTD,Childrens Services,630.00,Rents,2324P08_CR00087,151637
Sandwell Metropolitan Borough Council,http://www.sandwell.gov.uk/info/200202/performance_and_spending/1079/payments_over_500,09/11/2023,Childrens Services,CUSTODIAN GROUP LTD,Childrens Services,630.00,Rents,2324P08_CR00088,151637
Sandwell Metropolitan Borough Council,http://www.sandwell.gov.uk/info/200202/performance_and_spending/1079/payments_over_500,09/11/2023,Childrens Services,CUSTODIAN GROUP LTD,Childrens Services,630.00,Rents,2324P08_CR00089,151637
Sandwell Metropolitan Borough Council,http://www.sandwell.gov.uk/info/200202/performance_and_spending/1079/payments_over_500,09/11/2023,Childrens Services,CUSTODIAN GROUP LTD,Childrens Services,630.00,Rents,2324P08_CR00090,151637
Sandwell Metropolitan Borough Council,http://www.sandwell.gov.uk/info/200202/performance_and_spending/1079/payments_over_500,09/11/2023,Childrens Services,CUSTODIAN GROUP LTD,Childrens Services,630.00,Rents,2324P08_CR00091,151637
Sandwell Metropolitan Borough Council,http://www.sandwell.gov.uk/info/200202/performance_and_spending/1079/payments_over_500,09/11/2023,Childrens Services,CUSTODIAN GROUP LTD,Childrens Services,630.00,Rents,2324P08_CR00092,151637
Sandwell Metropolitan Borough Council,http://www.sandwell.gov.uk/info/200202/performance_and_spending/1079/payments_over_500,09/11/2023,Childrens Services,CUSTODIAN GROUP LTD,Childrens Services,630.00,Rents,2324P08_CR00093,151637
Sandwell Metropolitan Borough Council,http://www.sandwell.gov.uk/info/200202/performance_and_spending/1079/payments_over_500,16/11/2023,Childrens Services,CUSTODIAN GROUP LTD,Childrens Services,630.00,Rents,2324P08_CR00094,151637
Sandwell Metropolitan Borough Council,http://www.sandwell.gov.uk/info/200202/performance_and_spending/1079/payments_over_500,16/11/2023,Childrens Services,CUSTODIAN GROUP LTD,Childrens Services,630.00,Rents,2324P08_CR00095,151637
Sandwell Metropolitan Borough Council,http://www.sandwell.gov.uk/info/200202/performance_and_spending/1079/payments_over_500,16/11/2023,Childrens Services,CUSTODIAN GROUP LTD,Childrens Services,630.00,Rents,2324P08_CR00096,151637
Sandwell Metropolitan Borough Council,http://www.sandwell.gov.uk/info/200202/performance_and_spending/1079/payments_over_500,16/11/2023,Childrens Services,CUSTODIAN GROUP LTD,Childrens Services,630.00,Rents,2324P08_CR00097,151637
Sandwell Metropolitan Borough Council,http://www.sandwell.gov.uk/info/200202/performance_and_spending/1079/payments_over_500,16/11/2023,Childrens Services,CUSTODIAN GROUP LTD,Childrens Services,630.00,Rents,2324P08_CR00098,151637
Sandwell Metropolitan Borough Council,http://www.sandwell.gov.uk/info/200202/performance_and_spending/1079/payments_over_500,16/11/2023,Childrens Services,CUSTODIAN GROUP LTD,Childrens Services,630.00,Rents,2324P08_CR00099,151637
Sandwell Metropolitan Borough Council,http://www.sandwell.gov.uk/info/200202/performance_and_spending/1079/payments_over_500,01/11/2023,Childrens Services,DEBORAH UDAKIS CONSULTANCY LTD,Childrens Services,604.00,Externally Purchased Professional Services ,2324P08_CR00100,139858
Sandwell Metropolitan Borough Council,http://www.sandwell.gov.uk/info/200202/performance_and_spending/1079/payments_over_500,16/11/2023,Childrens Services,DEBORAH UDAKIS CONSULTANCY LTD,Childrens Services,1188.20,Externally Purchased Professional Services ,2324P08_CR00101,139858
Sandwell Metropolitan Borough Council,http://www.sandwell.gov.uk/info/200202/performance_and_spending/1079/payments_over_500,16/11/2023,Childrens Services,DIRECTION TRAINING & MANAGEMENT,Childrens Services,500.00,Externally Purchased Professional Services ,2324P08_CR00102,01727395
Sandwell Metropolitan Borough Council,http://www.sandwell.gov.uk/info/200202/performance_and_spending/1079/payments_over_500,01/11/2023,Childrens Services,DROACH TRAVEL LTD,Childrens Services,62044.48,Public Transport,2324P08_CR00103,06002707
Sandwell Metropolitan Borough Council,http://www.sandwell.gov.uk/info/200202/performance_and_spending/1079/payments_over_500,07/11/2023,Childrens Services,DROACH TRAVEL LTD,Childrens Services,62044.48,Public Transport,2324P08_CR00104,06002707
Sandwell Metropolitan Borough Council,http://www.sandwell.gov.uk/info/200202/performance_and_spending/1079/payments_over_500,07/11/2023,Childrens Services,DROACH TRAVEL LTD,Childrens Services,77002.60,Public Transport,2324P08_CR00105,06002707
Sandwell Metropolitan Borough Council,http://www.sandwell.gov.uk/info/200202/performance_and_spending/1079/payments_over_500,02/11/2023,Childrens Services,DV247 LIMITED,Childrens Services,735.81,Equipment & Furniture ,2324P08_CR00106,113728
Sandwell Metropolitan Borough Council,http://www.sandwell.gov.uk/info/200202/performance_and_spending/1079/payments_over_500,01/11/2023,Childrens Services,EARLS GYMNASTICS CLUB,Childrens Services,1260.00,Externally Purchased Professional Services ,2324P08_CR00107,96950
Sandwell Metropolitan Borough Council,http://www.sandwell.gov.uk/info/200202/performance_and_spending/1079/payments_over_500,06/11/2023,Childrens Services,EON NEXT ENERGY LTD,Childrens Services,979.67,Electricity,2324P08_CR00108,149566
Sandwell Metropolitan Borough Council,http://www.sandwell.gov.uk/info/200202/performance_and_spending/1079/payments_over_500,06/11/2023,Childrens Services,GILANI ENTERPRISES LIMITED,Childrens Services,2333.33,Rents,2324P08_CR00109,2696
Sandwell Metropolitan Borough Council,http://www.sandwell.gov.uk/info/200202/performance_and_spending/1079/payments_over_500,06/11/2023,Childrens Services,GILANI ENTERPRISES LIMITED,Childrens Services,2333.33,Rents,2324P08_CR00110,2696
Sandwell Metropolitan Borough Council,http://www.sandwell.gov.uk/info/200202/performance_and_spending/1079/payments_over_500,06/11/2023,Childrens Services,GILANI ENTERPRISES LIMITED,Childrens Services,2333.33,Rents,2324P08_CR00111,2696
Sandwell Metropolitan Borough Council,http://www.sandwell.gov.uk/info/200202/performance_and_spending/1079/payments_over_500,06/11/2023,Childrens Services,GILANI ENTERPRISES LIMITED,Childrens Services,2333.33,Rents,2324P08_CR00112,2696
Sandwell Metropolitan Borough Council,http://www.sandwell.gov.uk/info/200202/performance_and_spending/1079/payments_over_500,06/11/2023,Childrens Services,GILANI ENTERPRISES LIMITED,Childrens Services,3500.00,Rents,2324P08_CR00113,2696
Sandwell Metropolitan Borough Council,http://www.sandwell.gov.uk/info/200202/performance_and_spending/1079/payments_over_500,06/11/2023,Childrens Services,GILANI ENTERPRISES LIMITED,Childrens Services,2333.33,Rents,2324P08_CR00114,2696
Sandwell Metropolitan Borough Council,http://www.sandwell.gov.uk/info/200202/performance_and_spending/1079/payments_over_500,06/11/2023,Childrens Services,GILANI ENTERPRISES LIMITED,Childrens Services,2333.33,Rents,2324P08_CR00115,2696
Sandwell Metropolitan Borough Council,http://www.sandwell.gov.uk/info/200202/performance_and_spending/1079/payments_over_500,06/11/2023,Childrens Services,GILANI ENTERPRISES LIMITED,Childrens Services,2333.33,Rents,2324P08_CR00116,2696
Sandwell Metropolitan Borough Council,http://www.sandwell.gov.uk/info/200202/performance_and_spending/1079/payments_over_500,06/11/2023,Childrens Services,GILANI ENTERPRISES LIMITED,Childrens Services,3500.00,Rents,2324P08_CR00117,2696
Sandwell Metropolitan Borough Council,http://www.sandwell.gov.uk/info/200202/performance_and_spending/1079/payments_over_500,06/11/2023,Childrens Services,GILANI ENTERPRISES LIMITED,Childrens Services,2333.33,Rents,2324P08_CR00118,2696
Sandwell Metropolitan Borough Council,http://www.sandwell.gov.uk/info/200202/performance_and_spending/1079/payments_over_500,06/11/2023,Childrens Services,GILANI ENTERPRISES LIMITED,Childrens Services,2333.33,Rents,2324P08_CR00119,2696
Sandwell Metropolitan Borough Council,http://www.sandwell.gov.uk/info/200202/performance_and_spending/1079/payments_over_500,06/11/2023,Childrens Services,GILANI ENTERPRISES LIMITED,Childrens Services,733.33,Rents,2324P08_CR00120,2696
Sandwell Metropolitan Borough Council,http://www.sandwell.gov.uk/info/200202/performance_and_spending/1079/payments_over_500,01/11/2023,Childrens Services,HAYS SPECIALIST RECRUITMENT LTD,Childrens Services,132811.26,Agency Staff,2324P08_CR00121,80349
Sandwell Metropolitan Borough Council,http://www.sandwell.gov.uk/info/200202/performance_and_spending/1079/payments_over_500,01/11/2023,Childrens Services,HEART OF ENGLAND COMMUNITY FOUNDATION,Childrens Services,3250.00,Grant Payments,2324P08_CR00122,133427
Sandwell Metropolitan Borough Council,http://www.sandwell.gov.uk/info/200202/performance_and_spending/1079/payments_over_500,01/11/2023,Childrens Services,HEART OF ENGLAND COMMUNITY FOUNDATION,Childrens Services,3250.00,Grant Payments,2324P08_CR00123,133427
Sandwell Metropolitan Borough Council,http://www.sandwell.gov.uk/info/200202/performance_and_spending/1079/payments_over_500,01/11/2023,Childrens Services,HEART OF ENGLAND COMMUNITY FOUNDATION,Childrens Services,3250.00,Grant Payments,2324P08_CR00124,133427
Sandwell Metropolitan Borough Council,http://www.sandwell.gov.uk/info/200202/performance_and_spending/1079/payments_over_500,01/11/2023,Childrens Services,HOME FARM NURSERIES (PINVIN) LIMITED,Childrens Services,5462.35,Grounds Maintenance & Improvements,2324P08_CR00125,77003445
Sandwell Metropolitan Borough Council,http://www.sandwell.gov.uk/info/200202/performance_and_spending/1079/payments_over_500,02/11/2023,Childrens Services,INCLUSIVE TRADING COMMUNITY INTEREST COMPANY,Childrens Services,1200.00,Externally Purchased Professional Services ,2324P08_CR00126,120461
Sandwell Metropolitan Borough Council,http://www.sandwell.gov.uk/info/200202/performance_and_spending/1079/payments_over_500,01/11/2023,Childrens Services,INGESTRE ORANGERY AND GARDENS,Childrens Services,650.00,Materials & Consumables,2324P08_CR00127,127331
Sandwell Metropolitan Borough Council,http://www.sandwell.gov.uk/info/200202/performance_and_spending/1079/payments_over_500,01/11/2023,Childrens Services,IRON MAIDENS COMMERCIAL LAUNDRY LIMITED,Childrens Services,783.87,Laundry,2324P08_CR00128,124628
Sandwell Metropolitan Borough Council,http://www.sandwell.gov.uk/info/200202/performance_and_spending/1079/payments_over_500,10/11/2023,Childrens Services,JUBILEE PARK COMMUNITY CENTRE,Childrens Services,500.00,Hire of Facilities,2324P08_CR00129,13048
Sandwell Metropolitan Borough Council,http://www.sandwell.gov.uk/info/200202/performance_and_spending/1079/payments_over_500,20/11/2023,Childrens Services,LIVING HAVEN LTD,Childrens Services,2560.00,Rents,2324P08_CR00130,165315
Sandwell Metropolitan Borough Council,http://www.sandwell.gov.uk/info/200202/performance_and_spending/1079/payments_over_500,01/11/2023,Childrens Services,MURRAY HALL COMMUNITY TRUST,Childrens Services,1000.00,Externally Purchased Professional Services ,2324P08_CR00131,01627284
Sandwell Metropolitan Borough Council,http://www.sandwell.gov.uk/info/200202/performance_and_spending/1079/payments_over_500,01/11/2023,Childrens Services,NCFE,Childrens Services,2426.00,Externally Purchased Professional Services ,2324P08_CR00132,6230
Sandwell Metropolitan Borough Council,http://www.sandwell.gov.uk/info/200202/performance_and_spending/1079/payments_over_500,01/11/2023,Childrens Services,NEW BEGINNINGS COMMUNITY,Childrens Services,600.00,Externally Purchased Professional Services ,2324P08_CR00133,155886
Sandwell Metropolitan Borough Council,http://www.sandwell.gov.uk/info/200202/performance_and_spending/1079/payments_over_500,01/11/2023,Childrens Services,NEW BEGINNINGS COMMUNITY,Childrens Services,600.00,Externally Purchased Professional Services ,2324P08_CR00134,155886
Sandwell Metropolitan Borough Council,http://www.sandwell.gov.uk/info/200202/performance_and_spending/1079/payments_over_500,01/11/2023,Childrens Services,NEW BEGINNINGS COMMUNITY,Childrens Services,500.00,Externally Purchased Professional Services ,2324P08_CR00135,155886
Sandwell Metropolitan Borough Council,http://www.sandwell.gov.uk/info/200202/performance_and_spending/1079/payments_over_500,01/11/2023,Childrens Services,NEW BEGINNINGS COMMUNITY,Childrens Services,600.00,Externally Purchased Professional Services ,2324P08_CR00136,155886
Sandwell Metropolitan Borough Council,http://www.sandwell.gov.uk/info/200202/performance_and_spending/1079/payments_over_500,16/11/2023,Childrens Services,OLD PARK PRIMARY SCHOOL,Childrens Services,1129.00,Security,2324P08_CR00137,04024287
Sandwell Metropolitan Borough Council,http://www.sandwell.gov.uk/info/200202/performance_and_spending/1079/payments_over_500,08/11/2023,Childrens Services,PHOENIX SOFTWARE LTD,Childrens Services,688.16,ICT ,2324P08_CR00138,01504689
Sandwell Metropolitan Borough Council,http://www.sandwell.gov.uk/info/200202/performance_and_spending/1079/payments_over_500,01/11/2023,Childrens Services,PIONEER PEOPLE LIMITED,Childrens Services,523.99,Agency Staff,2324P08_CR00139,165385
Sandwell Metropolitan Borough Council,http://www.sandwell.gov.uk/info/200202/performance_and_spending/1079/payments_over_500,01/11/2023,Childrens Services,PYRANHA MOULDINGS LTD,Childrens Services,1763.38,Materials & Consumables,2324P08_CR00140,165495
Sandwell Metropolitan Borough Council,http://www.sandwell.gov.uk/info/200202/performance_and_spending/1079/payments_over_500,03/11/2023,Childrens Services,SANDWELL CHILDREN'S TRUST,Childrens Services,5705769.23,Other Establishments,2324P08_CR00141,133302
Sandwell Metropolitan Borough Council,http://www.sandwell.gov.uk/info/200202/performance_and_spending/1079/payments_over_500,01/11/2023,Childrens Services,SANDWELL CHILDREN'S TRUST,Childrens Services,5705769.23,Other Establishments,2324P08_CR00142,133302
Sandwell Metropolitan Borough Council,http://www.sandwell.gov.uk/info/200202/performance_and_spending/1079/payments_over_500,01/11/2023,Childrens Services,SANDWELL CHILDREN'S TRUST,Childrens Services,5705769.23,Other Establishments,2324P08_CR00143,133302
Sandwell Metropolitan Borough Council,http://www.sandwell.gov.uk/info/200202/performance_and_spending/1079/payments_over_500,01/11/2023,Childrens Services,SANDWELL CONSORTIUM CIC,Childrens Services,1048.00,Grants,2324P08_CR00144,104616
Sandwell Metropolitan Borough Council,http://www.sandwell.gov.uk/info/200202/performance_and_spending/1079/payments_over_500,01/11/2023,Childrens Services,SANDWELL CONSORTIUM CIC,Childrens Services,20708.42,Grants,2324P08_CR00145,104616
Sandwell Metropolitan Borough Council,http://www.sandwell.gov.uk/info/200202/performance_and_spending/1079/payments_over_500,01/11/2023,Childrens Services,SHELL ENERGY RETAIL LTD,Childrens Services,942.76,Electricity,2324P08_CR00146,164319
Sandwell Metropolitan Borough Council,http://www.sandwell.gov.uk/info/200202/performance_and_spending/1079/payments_over_500,10/11/2023,Childrens Services,SIPS EDUCATION LTD,Childrens Services,3001.55,Catering Provisions,2324P08_CR00147,110784
Sandwell Metropolitan Borough Council,http://www.sandwell.gov.uk/info/200202/performance_and_spending/1079/payments_over_500,10/11/2023,Childrens Services,SIPS EDUCATION LTD,Childrens Services,2165.60,Catering Provisions,2324P08_CR00148,110784
Sandwell Metropolitan Borough Council,http://www.sandwell.gov.uk/info/200202/performance_and_spending/1079/payments_over_500,09/11/2023,Childrens Services,SIPS EDUCATION LTD,Childrens Services,13375.00,Externally Purchased Professional Services ,2324P08_CR00149,110784
Sandwell Metropolitan Borough Council,http://www.sandwell.gov.uk/info/200202/performance_and_spending/1079/payments_over_500,02/11/2023,Childrens Services,SKILLS WORK AND ENTERPRISE DEVELOPMENT AGENCY LTD,Childrens Services,625.00,Hire of Facilities,2324P08_CR00150,5092
Sandwell Metropolitan Borough Council,http://www.sandwell.gov.uk/info/200202/performance_and_spending/1079/payments_over_500,01/11/2023,Childrens Services,SOLIHULL MBC,Childrens Services,15650.00,SH Payments,2324P08_CR00151,01128751
Sandwell Metropolitan Borough Council,http://www.sandwell.gov.uk/info/200202/performance_and_spending/1079/payments_over_500,01/11/2023,Childrens Services,SOLIHULL MBC,Childrens Services,15000.00,SH Payments,2324P08_CR00152,01128751
Sandwell Metropolitan Borough Council,http://www.sandwell.gov.uk/info/200202/performance_and_spending/1079/payments_over_500,15/11/2023,Childrens Services,ST HUBERTS PRE-SCHOOL PLAYGROUP LIMITED,Childrens Services,2000.00,Grant Payments,2324P08_CR00153,01615026
Sandwell Metropolitan Borough Council,http://www.sandwell.gov.uk/info/200202/performance_and_spending/1079/payments_over_500,01/11/2023,Childrens Services,THE BLACK NURSERY MANAGER TRAINING & CONSULTANCY LTD,Childrens Services,600.00,Externally Purchased Professional Services ,2324P08_CR00154,167307
Sandwell Metropolitan Borough Council,http://www.sandwell.gov.uk/info/200202/performance_and_spending/1079/payments_over_500,15/11/2023,Childrens Services,THE FAMILY NURSERY COMPANY LTD,Childrens Services,10000.00,Grant Payments,2324P08_CR00155,89879
Sandwell Metropolitan Borough Council,http://www.sandwell.gov.uk/info/200202/performance_and_spending/1079/payments_over_500,09/11/2023,Childrens Services,THE LAUNDRY ROOM (BEWDLEY) LIMITED,Childrens Services,510.69,Laundry,2324P08_CR00156,127518
Sandwell Metropolitan Borough Council,http://www.sandwell.gov.uk/info/200202/performance_and_spending/1079/payments_over_500,09/11/2023,Childrens Services,THE PRIORY PRIMARY,Childrens Services,2935.43,Rents,2324P08_CR00157,01746051
Sandwell Metropolitan Borough Council,http://www.sandwell.gov.uk/info/200202/performance_and_spending/1079/payments_over_500,15/11/2023,Childrens Services,THE PRIORY PRIMARY,Childrens Services,2989.17,Rents,2324P08_CR00158,01746051
Sandwell Metropolitan Borough Council,http://www.sandwell.gov.uk/info/200202/performance_and_spending/1079/payments_over_500,08/11/2023,Childrens Services,TOPPS MANAGEMENT & SUPPORT SERVICES LTD,Childrens Services,3214.26,Discretionary Awards,2324P08_CR00159,68846
Sandwell Metropolitan Borough Council,http://www.sandwell.gov.uk/info/200202/performance_and_spending/1079/payments_over_500,08/11/2023,Childrens Services,TOPPS MANAGEMENT & SUPPORT SERVICES LTD,Childrens Services,4285.68,Discretionary Awards,2324P08_CR00160,68846
Sandwell Metropolitan Borough Council,http://www.sandwell.gov.uk/info/200202/performance_and_spending/1079/payments_over_500,08/11/2023,Childrens Services,TOPPS MANAGEMENT & SUPPORT SERVICES LTD,Childrens Services,4642.82,Discretionary Awards,2324P08_CR00161,68846
Sandwell Metropolitan Borough Council,http://www.sandwell.gov.uk/info/200202/performance_and_spending/1079/payments_over_500,13/11/2023,Childrens Services,TOTALENERGIES GAS & POWER LTD,Childrens Services,620.89,Gas,2324P08_CR00162,107605
Sandwell Metropolitan Borough Council,http://www.sandwell.gov.uk/info/200202/performance_and_spending/1079/payments_over_500,01/11/2023,Childrens Services,TOTALENERGIES GAS & POWER LTD,Childrens Services,578.68,Electricity,2324P08_CR00163,107605
Sandwell Metropolitan Borough Council,http://www.sandwell.gov.uk/info/200202/performance_and_spending/1079/payments_over_500,18/11/2023,Childrens Services,TOTALENERGIES GAS & POWER LTD,Childrens Services,722.83,Gas,2324P08_CR00164,107605
Sandwell Metropolitan Borough Council,http://www.sandwell.gov.uk/info/200202/performance_and_spending/1079/payments_over_500,18/11/2023,Childrens Services,TOTALENERGIES GAS & POWER LTD,Childrens Services,659.10,Gas,2324P08_CR00165,107605
Sandwell Metropolitan Borough Council,http://www.sandwell.gov.uk/info/200202/performance_and_spending/1079/payments_over_500,01/11/2023,Childrens Services,TOTALENERGIES GAS & POWER LTD,Childrens Services,1819.80,Electricity,2324P08_CR00166,107605
Sandwell Metropolitan Borough Council,http://www.sandwell.gov.uk/info/200202/performance_and_spending/1079/payments_over_500,11/11/2023,Childrens Services,TOTALENERGIES GAS & POWER LTD,Childrens Services,646.05,Gas,2324P08_CR00167,107605
Sandwell Metropolitan Borough Council,http://www.sandwell.gov.uk/info/200202/performance_and_spending/1079/payments_over_500,12/11/2023,Childrens Services,TOTALENERGIES GAS & POWER LTD,Childrens Services,615.15,Gas,2324P08_CR00168,107605
Sandwell Metropolitan Borough Council,http://www.sandwell.gov.uk/info/200202/performance_and_spending/1079/payments_over_500,01/11/2023,Childrens Services,TRAUMA INFORMED CONSULTANCY SERVICES LTD,Childrens Services,982.87,Externally Purchased Professional Services ,2324P08_CR00169,166974
Sandwell Metropolitan Borough Council,http://www.sandwell.gov.uk/info/200202/performance_and_spending/1079/payments_over_500,02/11/2023,Childrens Services,TRH WALSALL LTD,Childrens Services,1283.52,Rents,2324P08_CR00170,85648
Sandwell Metropolitan Borough Council,http://www.sandwell.gov.uk/info/200202/performance_and_spending/1079/payments_over_500,02/11/2023,Childrens Services,TRH WALSALL LTD,Childrens Services,1283.52,Rents,2324P08_CR00171,85648
Sandwell Metropolitan Borough Council,http://www.sandwell.gov.uk/info/200202/performance_and_spending/1079/payments_over_500,01/11/2023,Childrens Services,WATER PLUS SELECT LIMITED,Childrens Services,510.89,Water Services,2324P08_CR00172,129644
Sandwell Metropolitan Borough Council,http://www.sandwell.gov.uk/info/200202/performance_and_spending/1079/payments_over_500,01/11/2023,Childrens Services,WEST BROMWICH ALBION FC LTD,Childrens Services,6080.00,Hire of Facilities,2324P08_CR00173,01606624
Sandwell Metropolitan Borough Council,http://www.sandwell.gov.uk/info/200202/performance_and_spending/1079/payments_over_500,01/11/2023,Childrens Services,WEST MIDLANDS SUPPORT HOMES LTD,Childrens Services,560.00,Rents,2324P08_CR00174,167338
Sandwell Metropolitan Borough Council,http://www.sandwell.gov.uk/info/200202/performance_and_spending/1079/payments_over_500,01/11/2023,Childrens Services,WEST MIDLANDS SUPPORT HOMES LTD,Childrens Services,560.00,Rents,2324P08_CR00175,167338
Sandwell Metropolitan Borough Council,http://www.sandwell.gov.uk/info/200202/performance_and_spending/1079/payments_over_500,01/11/2023,Childrens Services,WEST MIDLANDS SUPPORT HOMES LTD,Childrens Services,560.00,Rents,2324P08_CR00176,167338
Sandwell Metropolitan Borough Council,http://www.sandwell.gov.uk/info/200202/performance_and_spending/1079/payments_over_500,01/11/2023,Childrens Services,WEST MIDLANDS SUPPORT HOMES LTD,Childrens Services,560.00,Rents,2324P08_CR00177,167338
Sandwell Metropolitan Borough Council,http://www.sandwell.gov.uk/info/200202/performance_and_spending/1079/payments_over_500,01/11/2023,Childrens Services,WEST MIDLANDS SUPPORT HOMES LTD,Childrens Services,560.00,Rents,2324P08_CR00178,167338
Sandwell Metropolitan Borough Council,http://www.sandwell.gov.uk/info/200202/performance_and_spending/1079/payments_over_500,01/11/2023,Childrens Services,WEST MIDLANDS SUPPORT HOMES LTD,Childrens Services,560.00,Rents,2324P08_CR00179,167338
Sandwell Metropolitan Borough Council,http://www.sandwell.gov.uk/info/200202/performance_and_spending/1079/payments_over_500,01/11/2023,Childrens Services,WEST MIDLANDS SUPPORT HOMES LTD,Childrens Services,560.00,Rents,2324P08_CR00180,167338
Sandwell Metropolitan Borough Council,http://www.sandwell.gov.uk/info/200202/performance_and_spending/1079/payments_over_500,01/11/2023,Childrens Services,WEST MIDLANDS SUPPORT HOMES LTD,Childrens Services,560.00,Rents,2324P08_CR00181,167338
Sandwell Metropolitan Borough Council,http://www.sandwell.gov.uk/info/200202/performance_and_spending/1079/payments_over_500,01/11/2023,Childrens Services,WEST MIDLANDS SUPPORT HOMES LTD,Childrens Services,560.00,Rents,2324P08_CR00182,167338
Sandwell Metropolitan Borough Council,http://www.sandwell.gov.uk/info/200202/performance_and_spending/1079/payments_over_500,01/11/2023,Childrens Services,WMA COMMUNITY FITNESS CENTRE,Childrens Services,540.00,Externally Purchased Professional Services ,2324P08_CR00183,141572
Sandwell Metropolitan Borough Council,http://www.sandwell.gov.uk/info/200202/performance_and_spending/1079/payments_over_500,09/11/2023,Childrens Services,REDACTED PERSONAL DATA T/A A&E LEGAL TRAINING,Childrens Services,599.00,Externally Purchased Professional Services ,2324P08_CR00184,REDACTED PERSONAL DATA
Sandwell Metropolitan Borough Council,http://www.sandwell.gov.uk/info/200202/performance_and_spending/1079/payments_over_500,01/11/2023,Childrens Services,SAMANTHA STEATHAM - EDMUNDS,Childrens Services,1210.00,Externally Purchased Professional Services ,2324P08_CR00185,151908
Sandwell Metropolitan Borough Council,http://www.sandwell.gov.uk/info/200202/performance_and_spending/1079/payments_over_500,10/11/2023,Childrens Services,REDACTED PERSONAL DATA,Childrens Services,727.27,External Contract Hire,2324P08_CR00186,REDACTED PERSONAL DATA
Sandwell Metropolitan Borough Council,http://www.sandwell.gov.uk/info/200202/performance_and_spending/1079/payments_over_500,10/11/2023,Childrens Services,REDACTED PERSONAL DATA,Childrens Services,545.45,External Contract Hire,2324P08_CR00187,REDACTED PERSONAL DATA
Sandwell Metropolitan Borough Council,http://www.sandwell.gov.uk/info/200202/performance_and_spending/1079/payments_over_500,10/11/2023,Childrens Services,REDACTED PERSONAL DATA,Childrens Services,545.45,External Contract Hire,2324P08_CR00188,REDACTED PERSONAL DATA
Sandwell Metropolitan Borough Council,http://www.sandwell.gov.uk/info/200202/performance_and_spending/1079/payments_over_500,10/11/2023,Childrens Services,REDACTED PERSONAL DATA,Childrens Services,727.27,External Contract Hire,2324P08_CR00189,REDACTED PERSONAL DATA
Sandwell Metropolitan Borough Council,http://www.sandwell.gov.uk/info/200202/performance_and_spending/1079/payments_over_500,10/11/2023,Childrens Services,REDACTED PERSONAL DATA,Childrens Services,545.45,External Contract Hire,2324P08_CR00190,REDACTED PERSONAL DATA
Sandwell Metropolitan Borough Council,http://www.sandwell.gov.uk/info/200202/performance_and_spending/1079/payments_over_500,10/11/2023,Childrens Services,REDACTED PERSONAL DATA,Childrens Services,545.45,External Contract Hire,2324P08_CR00191,REDACTED PERSONAL DATA
Sandwell Metropolitan Borough Council,http://www.sandwell.gov.uk/info/200202/performance_and_spending/1079/payments_over_500,10/11/2023,Childrens Services,REDACTED PERSONAL DATA,Childrens Services,545.45,External Contract Hire,2324P08_CR00192,REDACTED PERSONAL DATA
Sandwell Metropolitan Borough Council,http://www.sandwell.gov.uk/info/200202/performance_and_spending/1079/payments_over_500,10/11/2023,Childrens Services,REDACTED PERSONAL DATA,Childrens Services,545.45,External Contract Hire,2324P08_CR00193,REDACTED PERSONAL DATA
Sandwell Metropolitan Borough Council,http://www.sandwell.gov.uk/info/200202/performance_and_spending/1079/payments_over_500,10/11/2023,Childrens Services,REDACTED PERSONAL DATA,Childrens Services,1090.90,External Contract Hire,2324P08_CR00194,REDACTED PERSONAL DATA
Sandwell Metropolitan Borough Council,http://www.sandwell.gov.uk/info/200202/performance_and_spending/1079/payments_over_500,10/11/2023,Childrens Services,REDACTED PERSONAL DATA,Childrens Services,545.45,External Contract Hire,2324P08_CR00195,REDACTED PERSONAL DATA
Sandwell Metropolitan Borough Council,http://www.sandwell.gov.uk/info/200202/performance_and_spending/1079/payments_over_500,10/11/2023,Childrens Services,REDACTED PERSONAL DATA,Childrens Services,545.45,External Contract Hire,2324P08_CR00196,REDACTED PERSONAL DATA
Sandwell Metropolitan Borough Council,http://www.sandwell.gov.uk/info/200202/performance_and_spending/1079/payments_over_500,10/11/2023,Childrens Services,REDACTED PERSONAL DATA,Childrens Services,545.45,External Contract Hire,2324P08_CR00197,REDACTED PERSONAL DATA
Sandwell Metropolitan Borough Council,http://www.sandwell.gov.uk/info/200202/performance_and_spending/1079/payments_over_500,10/11/2023,Childrens Services,REDACTED PERSONAL DATA,Childrens Services,545.45,External Contract Hire,2324P08_CR00198,REDACTED PERSONAL DATA
Sandwell Metropolitan Borough Council,http://www.sandwell.gov.uk/info/200202/performance_and_spending/1079/payments_over_500,10/11/2023,Childrens Services,REDACTED PERSONAL DATA,Childrens Services,545.45,External Contract Hire,2324P08_CR00199,REDACTED PERSONAL DATA
Sandwell Metropolitan Borough Council,http://www.sandwell.gov.uk/info/200202/performance_and_spending/1079/payments_over_500,10/11/2023,Childrens Services,REDACTED PERSONAL DATA,Childrens Services,545.45,External Contract Hire,2324P08_CR00200,REDACTED PERSONAL DATA
Sandwell Metropolitan Borough Council,http://www.sandwell.gov.uk/info/200202/performance_and_spending/1079/payments_over_500,10/11/2023,Childrens Services,REDACTED PERSONAL DATA,Childrens Services,727.28,External Contract Hire,2324P08_CR00201,REDACTED PERSONAL DATA
Sandwell Metropolitan Borough Council,http://www.sandwell.gov.uk/info/200202/performance_and_spending/1079/payments_over_500,10/11/2023,Childrens Services,REDACTED PERSONAL DATA,Childrens Services,727.27,External Contract Hire,2324P08_CR00202,REDACTED PERSONAL DATA
Sandwell Metropolitan Borough Council,http://www.sandwell.gov.uk/info/200202/performance_and_spending/1079/payments_over_500,10/11/2023,Childrens Services,REDACTED PERSONAL DATA,Childrens Services,545.45,External Contract Hire,2324P08_CR00203,REDACTED PERSONAL DATA
Sandwell Metropolitan Borough Council,http://www.sandwell.gov.uk/info/200202/performance_and_spending/1079/payments_over_500,10/11/2023,Childrens Services,REDACTED PERSONAL DATA,Childrens Services,545.45,External Contract Hire,2324P08_CR00204,REDACTED PERSONAL DATA
Sandwell Metropolitan Borough Council,http://www.sandwell.gov.uk/info/200202/performance_and_spending/1079/payments_over_500,10/11/2023,Childrens Services,REDACTED PERSONAL DATA,Childrens Services,545.45,External Contract Hire,2324P08_CR00205,REDACTED PERSONAL DATA
Sandwell Metropolitan Borough Council,http://www.sandwell.gov.uk/info/200202/performance_and_spending/1079/payments_over_500,10/11/2023,Childrens Services,REDACTED PERSONAL DATA,Childrens Services,727.27,External Contract Hire,2324P08_CR00206,REDACTED PERSONAL DATA
Sandwell Metropolitan Borough Council,http://www.sandwell.gov.uk/info/200202/performance_and_spending/1079/payments_over_500,10/11/2023,Childrens Services,REDACTED PERSONAL DATA,Childrens Services,727.27,External Contract Hire,2324P08_CR00207,REDACTED PERSONAL DATA
Sandwell Metropolitan Borough Council,http://www.sandwell.gov.uk/info/200202/performance_and_spending/1079/payments_over_500,10/11/2023,Childrens Services,REDACTED PERSONAL DATA,Childrens Services,545.45,External Contract Hire,2324P08_CR00208,REDACTED PERSONAL DATA
Sandwell Metropolitan Borough Council,http://www.sandwell.gov.uk/info/200202/performance_and_spending/1079/payments_over_500,10/11/2023,Childrens Services,REDACTED PERSONAL DATA,Childrens Services,727.27,External Contract Hire,2324P08_CR00209,REDACTED PERSONAL DATA
Sandwell Metropolitan Borough Council,http://www.sandwell.gov.uk/info/200202/performance_and_spending/1079/payments_over_500,10/11/2023,Childrens Services,REDACTED PERSONAL DATA,Childrens Services,545.45,External Contract Hire,2324P08_CR00210,REDACTED PERSONAL DATA
Sandwell Metropolitan Borough Council,http://www.sandwell.gov.uk/info/200202/performance_and_spending/1079/payments_over_500,10/11/2023,Childrens Services,REDACTED PERSONAL DATA,Childrens Services,545.45,External Contract Hire,2324P08_CR00211,REDACTED PERSONAL DATA
Sandwell Metropolitan Borough Council,http://www.sandwell.gov.uk/info/200202/performance_and_spending/1079/payments_over_500,10/11/2023,Childrens Services,REDACTED PERSONAL DATA,Childrens Services,545.45,External Contract Hire,2324P08_CR00212,REDACTED PERSONAL DATA
Sandwell Metropolitan Borough Council,http://www.sandwell.gov.uk/info/200202/performance_and_spending/1079/payments_over_500,10/11/2023,Childrens Services,REDACTED PERSONAL DATA,Childrens Services,727.27,External Contract Hire,2324P08_CR00213,REDACTED PERSONAL DATA
Sandwell Metropolitan Borough Council,http://www.sandwell.gov.uk/info/200202/performance_and_spending/1079/payments_over_500,10/11/2023,Childrens Services,REDACTED PERSONAL DATA,Childrens Services,545.45,External Contract Hire,2324P08_CR00214,REDACTED PERSONAL DATA
Sandwell Metropolitan Borough Council,http://www.sandwell.gov.uk/info/200202/performance_and_spending/1079/payments_over_500,07/11/2023,Childrens Services,REDACTED PERSONAL DATA,Childrens Services,573.48,External Contract Hire,2324P08_CR00215,REDACTED PERSONAL DATA
Sandwell Metropolitan Borough Council,http://www.sandwell.gov.uk/info/200202/performance_and_spending/1079/payments_over_500,17/11/2023,Childrens Services,REDACTED PERSONAL DATA,Childrens Services,573.48,External Contract Hire,2324P08_CR00216,REDACTED PERSONAL DATA
Sandwell Metropolitan Borough Council,http://www.sandwell.gov.uk/info/200202/performance_and_spending/1079/payments_over_500,07/11/2023,Childrens Services,REDACTED PERSONAL DATA,Childrens Services,795.60,External Contract Hire,2324P08_CR00217,REDACTED PERSONAL DATA
Sandwell Metropolitan Borough Council,http://www.sandwell.gov.uk/info/200202/performance_and_spending/1079/payments_over_500,14/11/2023,Childrens Services,4 COMMUNITY TRUST CIC,Childrens Services,5104.00,Grant Payments,2324P08_CR00218,137880
Sandwell Metropolitan Borough Council,http://www.sandwell.gov.uk/info/200202/performance_and_spending/1079/payments_over_500,14/11/2023,Childrens Services,4 COMMUNITY TRUST CIC,Childrens Services,8972.50,Grant Payments,2324P08_CR00219,137880
Sandwell Metropolitan Borough Council,http://www.sandwell.gov.uk/info/200202/performance_and_spending/1079/payments_over_500,14/11/2023,Childrens Services,4 COMMUNITY TRUST CIC,Childrens Services,7023.50,Grant Payments,2324P08_CR00220,137880
Sandwell Metropolitan Borough Council,http://www.sandwell.gov.uk/info/200202/performance_and_spending/1079/payments_over_500,17/11/2023,Childrens Services,ALL STARS WALSALL C.I.C.,Childrens Services,1200.00,Grant Payments,2324P08_CR00221,153410
Sandwell Metropolitan Borough Council,http://www.sandwell.gov.uk/info/200202/performance_and_spending/1079/payments_over_500,17/11/2023,Childrens Services,CENTRE SPOT C.I.C,Childrens Services,4910.00,Grant Payments,2324P08_CR00222,98361
Sandwell Metropolitan Borough Council,http://www.sandwell.gov.uk/info/200202/performance_and_spending/1079/payments_over_500,17/11/2023,Childrens Services,COMMUNITY CONNECT FOUNDATION,Childrens Services,1090.00,Grant Payments,2324P08_CR00223,01685391
Sandwell Metropolitan Borough Council,http://www.sandwell.gov.uk/info/200202/performance_and_spending/1079/payments_over_500,16/11/2023,Childrens Services,CREATIVE ACTIVE LIVES CIC,Childrens Services,6674.00,Grant Payments,2324P08_CR00224,138641
Sandwell Metropolitan Borough Council,http://www.sandwell.gov.uk/info/200202/performance_and_spending/1079/payments_over_500,13/11/2023,Childrens Services,DYNAMIC KIDS C.I.C,Childrens Services,5333.00,Grant Payments,2324P08_CR00225,165444
Sandwell Metropolitan Borough Council,http://www.sandwell.gov.uk/info/200202/performance_and_spending/1079/payments_over_500,13/11/2023,Childrens Services,EMPOWERING PEOPLE IN CHANGE C.I.C,Childrens Services,2016.00,Grant Payments,2324P08_CR00226,165445
Sandwell Metropolitan Borough Council,http://www.sandwell.gov.uk/info/200202/performance_and_spending/1079/payments_over_500,15/11/2023,Childrens Services,FANTASTIC JOURNEYS C.I.C,Childrens Services,1000.00,Grant Payments,2324P08_CR00227,163596
Sandwell Metropolitan Borough Council,http://www.sandwell.gov.uk/info/200202/performance_and_spending/1079/payments_over_500,13/11/2023,Childrens Services,FRIAR PARK MILLENNIUM CENTRE,Childrens Services,11080.00,Grant Payments,2324P08_CR00228,28476
Sandwell Metropolitan Borough Council,http://www.sandwell.gov.uk/info/200202/performance_and_spending/1079/payments_over_500,14/11/2023,Childrens Services,G.A.P ENTERTAINMENT C.I.C,Childrens Services,6600.00,Grant Payments,2324P08_CR00229,153273
Sandwell Metropolitan Borough Council,http://www.sandwell.gov.uk/info/200202/performance_and_spending/1079/payments_over_500,20/11/2023,Childrens Services,GREAT BRIDGE COMMUNITY FORUM,Childrens Services,4340.00,Grant Payments,2324P08_CR00230,21026008
Sandwell Metropolitan Borough Council,http://www.sandwell.gov.uk/info/200202/performance_and_spending/1079/payments_over_500,13/11/2023,Childrens Services,KIDS,Childrens Services,4805.00,Grant Payments,2324P08_CR00231,80825
Sandwell Metropolitan Borough Council,http://www.sandwell.gov.uk/info/200202/performance_and_spending/1079/payments_over_500,20/11/2023,Childrens Services,LIMITLESS YOUTH ACADEMY C.I.C,Childrens Services,6949.00,Grant Payments,2324P08_CR00232,165489
Sandwell Metropolitan Borough Council,http://www.sandwell.gov.uk/info/200202/performance_and_spending/1079/payments_over_500,15/11/2023,Childrens Services,MALE FAMILY GROUP T/A WARRENS HALL FARM RIDING STABLES,Childrens Services,3099.00,Grant Payments,2324P08_CR00233,87755
Sandwell Metropolitan Borough Council,http://www.sandwell.gov.uk/info/200202/performance_and_spending/1079/payments_over_500,13/11/2023,Childrens Services,OLDBURY UNITED C.I.C,Childrens Services,4896.00,Grant Payments,2324P08_CR00234,153379
Sandwell Metropolitan Borough Council,http://www.sandwell.gov.uk/info/200202/performance_and_spending/1079/payments_over_500,16/11/2023,Childrens Services,PILOT IMS LTD,Childrens Services,6700.00,Grant Payments,2324P08_CR00235,59674
Sandwell Metropolitan Borough Council,http://www.sandwell.gov.uk/info/200202/performance_and_spending/1079/payments_over_500,17/11/2023,Childrens Services,POWERED BY CAN LTD,Childrens Services,9000.00,Grant Payments,2324P08_CR00236,116825
Sandwell Metropolitan Borough Council,http://www.sandwell.gov.uk/info/200202/performance_and_spending/1079/payments_over_500,17/11/2023,Childrens Services,PREMIER SOCCER COACHING T/A PREMIER EDUCATION,Childrens Services,1112.00,Grant Payments,2324P08_CR00237,163599
Sandwell Metropolitan Borough Council,http://www.sandwell.gov.uk/info/200202/performance_and_spending/1079/payments_over_500,16/11/2023,Childrens Services,SADWICA DAY NURSERY,Childrens Services,535.00,Grant Payments,2324P08_CR00238,01667892
Sandwell Metropolitan Borough Council,http://www.sandwell.gov.uk/info/200202/performance_and_spending/1079/payments_over_500,16/11/2023,Childrens Services,SANDWELL ASIAN DEVELOPMENT ASSOCIATION,Childrens Services,3200.00,Grant Payments,2324P08_CR00239,55737
Sandwell Metropolitan Borough Council,http://www.sandwell.gov.uk/info/200202/performance_and_spending/1079/payments_over_500,16/11/2023,Childrens Services,SPORTING SPIRIT CIC,Childrens Services,7182.00,Grant Payments,2324P08_CR00240,130989
Sandwell Metropolitan Borough Council,http://www.sandwell.gov.uk/info/200202/performance_and_spending/1079/payments_over_500,14/11/2023,Childrens Services,SPORTING YOUR FUTURES,Childrens Services,5200.00,Grant Payments,2324P08_CR00241,153219
Sandwell Metropolitan Borough Council,http://www.sandwell.gov.uk/info/200202/performance_and_spending/1079/payments_over_500,16/11/2023,Childrens Services,SPORTS 4 LIFE UK,Childrens Services,2236.00,Grant Payments,2324P08_CR00242,153208
Sandwell Metropolitan Borough Council,http://www.sandwell.gov.uk/info/200202/performance_and_spending/1079/payments_over_500,17/11/2023,Childrens Services,SPORTS PLUS SCHEME LTD,Childrens Services,15818.00,Grant Payments,2324P08_CR00243,46504
Sandwell Metropolitan Borough Council,http://www.sandwell.gov.uk/info/200202/performance_and_spending/1079/payments_over_500,13/11/2023,Childrens Services,STRIKE9T C.I.C,Childrens Services,2662.00,Grant Payments,2324P08_CR00244,162855
Sandwell Metropolitan Borough Council,http://www.sandwell.gov.uk/info/200202/performance_and_spending/1079/payments_over_500,21/11/2023,Childrens Services,THE ABRAHAMIC FOUNDATION,Childrens Services,3220.00,Grant Payments,2324P08_CR00245,130572
Sandwell Metropolitan Borough Council,http://www.sandwell.gov.uk/info/200202/performance_and_spending/1079/payments_over_500,17/11/2023,Childrens Services,THE ALBION FOUNDATION,Childrens Services,14160.00,Grant Payments,2324P08_CR00246,21026659
Sandwell Metropolitan Borough Council,http://www.sandwell.gov.uk/info/200202/performance_and_spending/1079/payments_over_500,20/11/2023,Childrens Services,TIME STEP DANCE,Childrens Services,5375.00,Grant Payments,2324P08_CR00247,141570
Sandwell Metropolitan Borough Council,http://www.sandwell.gov.uk/info/200202/performance_and_spending/1079/payments_over_500,14/11/2023,Childrens Services,YEMENI COMMUNITY ASSOCIATION IN SANDWELL,Childrens Services,1044.00,Grant Payments,2324P08_CR00248,01711292
Sandwell Metropolitan Borough Council,http://www.sandwell.gov.uk/info/200202/performance_and_spending/1079/payments_over_500,20/11/2023,Childrens Services Capital,HILL INTERIOR CONTRACTS LTD,Childrens Services Capital,7138.87,"CIP - New Construction,Conversion, Enhancement & Reno",2324P08_CR00249,17158
Sandwell Metropolitan Borough Council,http://www.sandwell.gov.uk/info/200202/performance_and_spending/1079/payments_over_500,01/11/2023,Childrens Services Capital,ORMISTON ACADEMIES TRUST,Childrens Services Capital,54169.07,"CIP - New Construction,Conversion, Enhancement & Reno",2324P08_CR00250,119064
Sandwell Metropolitan Borough Council,http://www.sandwell.gov.uk/info/200202/performance_and_spending/1079/payments_over_500,01/11/2023,Childrens Services Capital,SANDWELL FUTURES LTD,Childrens Services Capital,74644.46,Private Contractors,2324P08_CR00251,88151
Sandwell Metropolitan Borough Council,http://www.sandwell.gov.uk/info/200202/performance_and_spending/1079/payments_over_500,08/11/2023,Childrens Services Capital,SEDDON CONSTRUCTION LIMITED,Childrens Services Capital,137271.32,"CIP - New Construction,Conversion, Enhancement & Reno",2324P08_CR00252,132999
Sandwell Metropolitan Borough Council,http://www.sandwell.gov.uk/info/200202/performance_and_spending/1079/payments_over_500,07/11/2023,FINANCE (Inc SIU),ANGELUS LAW CLIENT ACCOUNT,Assistant Chief Executive (Excl SIU),6500.00,Insurance,2324P08_CR00253,162521
Sandwell Metropolitan Borough Council,http://www.sandwell.gov.uk/info/200202/performance_and_spending/1079/payments_over_500,08/11/2023,FINANCE (Inc SIU),BLB SOLICITORS,Assistant Chief Executive (Excl SIU),2750.52,Insurance,2324P08_CR00254,167229
Sandwell Metropolitan Borough Council,http://www.sandwell.gov.uk/info/200202/performance_and_spending/1079/payments_over_500,01/11/2023,FINANCE (Inc SIU),BROWNE JACOBSON LLP,Assistant Chief Executive (Excl SIU),1636.80,Externally Purchased Professional Services ,2324P08_CR00255,109574
Sandwell Metropolitan Borough Council,http://www.sandwell.gov.uk/info/200202/performance_and_spending/1079/payments_over_500,24/11/2023,FINANCE (Inc SIU),BROWNE JACOBSON LLP,Assistant Chief Executive (Excl SIU),4066.70,Externally Purchased Professional Services ,2324P08_CR00256,109574
Sandwell Metropolitan Borough Council,http://www.sandwell.gov.uk/info/200202/performance_and_spending/1079/payments_over_500,01/11/2023,FINANCE (Inc SIU),BROWNE JACOBSON LLP,Assistant Chief Executive (Excl SIU),733.60,Externally Purchased Professional Services ,2324P08_CR00257,109574
Sandwell Metropolitan Borough Council,http://www.sandwell.gov.uk/info/200202/performance_and_spending/1079/payments_over_500,10/11/2023,FINANCE (Inc SIU),BROWNE JACOBSON LLP,Assistant Chief Executive (Excl SIU),1328.00,Externally Purchased Professional Services ,2324P08_CR00258,109574
Sandwell Metropolitan Borough Council,http://www.sandwell.gov.uk/info/200202/performance_and_spending/1079/payments_over_500,13/11/2023,FINANCE (Inc SIU),BROWNE JACOBSON LLP,Assistant Chief Executive (Excl SIU),762.80,Externally Purchased Professional Services ,2324P08_CR00259,109574
Sandwell Metropolitan Borough Council,http://www.sandwell.gov.uk/info/200202/performance_and_spending/1079/payments_over_500,07/11/2023,FINANCE (Inc SIU),BROWNE JACOBSON LLP,Assistant Chief Executive (Excl SIU),1307.40,Externally Purchased Professional Services ,2324P08_CR00260,109574
Sandwell Metropolitan Borough Council,http://www.sandwell.gov.uk/info/200202/performance_and_spending/1079/payments_over_500,10/11/2023,FINANCE (Inc SIU),BROWNE JACOBSON LLP,Assistant Chief Executive (Excl SIU),2055.70,Externally Purchased Professional Services ,2324P08_CR00261,109574
Sandwell Metropolitan Borough Council,http://www.sandwell.gov.uk/info/200202/performance_and_spending/1079/payments_over_500,10/11/2023,FINANCE (Inc SIU),BROWNE JACOBSON LLP,Assistant Chief Executive (Excl SIU),997.10,Externally Purchased Professional Services ,2324P08_CR00262,109574
Sandwell Metropolitan Borough Council,http://www.sandwell.gov.uk/info/200202/performance_and_spending/1079/payments_over_500,13/11/2023,FINANCE (Inc SIU),BROWNE JACOBSON LLP,Assistant Chief Executive (Excl SIU),3822.00,Externally Purchased Professional Services ,2324P08_CR00263,109574
Sandwell Metropolitan Borough Council,http://www.sandwell.gov.uk/info/200202/performance_and_spending/1079/payments_over_500,15/11/2023,FINANCE (Inc SIU),CAUSEWAY GREEN PRIMARY SCHOOL,Assistant Chief Executive (Excl SIU),9600.00,Insurance,2324P08_CR00264,04015724
Sandwell Metropolitan Borough Council,http://www.sandwell.gov.uk/info/200202/performance_and_spending/1079/payments_over_500,03/11/2023,FINANCE (Inc SIU),DRISCOLL KINGSTON SOLICITORS,Assistant Chief Executive (Excl SIU),13000.00,Insurance,2324P08_CR00265,140883
Sandwell Metropolitan Borough Council,http://www.sandwell.gov.uk/info/200202/performance_and_spending/1079/payments_over_500,15/11/2023,FINANCE (Inc SIU),DWP,Assistant Chief Executive (Excl SIU),678.00,Insurance,2324P08_CR00266,01753867
Sandwell Metropolitan Borough Council,http://www.sandwell.gov.uk/info/200202/performance_and_spending/1079/payments_over_500,20/11/2023,FINANCE (Inc SIU),DWP,Assistant Chief Executive (Excl SIU),766.00,Insurance,2324P08_CR00267,01753867
Sandwell Metropolitan Borough Council,http://www.sandwell.gov.uk/info/200202/performance_and_spending/1079/payments_over_500,09/11/2023,FINANCE (Inc SIU),DWP,Assistant Chief Executive (Excl SIU),766.00,Insurance,2324P08_CR00268,01753867
Sandwell Metropolitan Borough Council,http://www.sandwell.gov.uk/info/200202/performance_and_spending/1079/payments_over_500,20/11/2023,FINANCE (Inc SIU),EASTHAMS SOLICITORS,Assistant Chief Executive (Excl SIU),7728.00,Insurance,2324P08_CR00269,167459
Sandwell Metropolitan Borough Council,http://www.sandwell.gov.uk/info/200202/performance_and_spending/1079/payments_over_500,20/11/2023,FINANCE (Inc SIU),EASTHAMS SOLICITORS,Assistant Chief Executive (Excl SIU),2509.00,Insurance,2324P08_CR00270,167459
Sandwell Metropolitan Borough Council,http://www.sandwell.gov.uk/info/200202/performance_and_spending/1079/payments_over_500,16/11/2023,FINANCE (Inc SIU),EMERALD LAW LTD,Assistant Chief Executive (Excl SIU),10000.00,Insurance,2324P08_CR00271,151068
Sandwell Metropolitan Borough Council,http://www.sandwell.gov.uk/info/200202/performance_and_spending/1079/payments_over_500,01/11/2023,FINANCE (Inc SIU),GOWING LAW SOLICITORS,Assistant Chief Executive (Excl SIU),750.00,Insurance,2324P08_CR00272,163069
Sandwell Metropolitan Borough Council,http://www.sandwell.gov.uk/info/200202/performance_and_spending/1079/payments_over_500,10/11/2023,FINANCE (Inc SIU),GOWING LAW SOLICITORS,Assistant Chief Executive (Excl SIU),700.00,Insurance,2324P08_CR00273,163069
Sandwell Metropolitan Borough Council,http://www.sandwell.gov.uk/info/200202/performance_and_spending/1079/payments_over_500,09/11/2023,FINANCE (Inc SIU),LAW TOGETHER,Assistant Chief Executive (Excl SIU),1680.00,Insurance,2324P08_CR00274,161203
Sandwell Metropolitan Borough Council,http://www.sandwell.gov.uk/info/200202/performance_and_spending/1079/payments_over_500,10/11/2023,FINANCE (Inc SIU),LAW TOGETHER,Assistant Chief Executive (Excl SIU),6694.63,Insurance,2324P08_CR00275,161203
Sandwell Metropolitan Borough Council,http://www.sandwell.gov.uk/info/200202/performance_and_spending/1079/payments_over_500,08/11/2023,FINANCE (Inc SIU),MATRIX SOLICITORS,Assistant Chief Executive (Excl SIU),13750.00,Insurance,2324P08_CR00276,150465
Sandwell Metropolitan Borough Council,http://www.sandwell.gov.uk/info/200202/performance_and_spending/1079/payments_over_500,16/11/2023,FINANCE (Inc SIU),MCDERMOTT SMITH LAW CLIENT ACCOUNT,Assistant Chief Executive (Excl SIU),8125.00,Insurance,2324P08_CR00277,164526
Sandwell Metropolitan Borough Council,http://www.sandwell.gov.uk/info/200202/performance_and_spending/1079/payments_over_500,02/11/2023,FINANCE (Inc SIU),SATCHELL MORAN SOLICITORS,Assistant Chief Executive (Excl SIU),7250.00,Insurance,2324P08_CR00278,154265
Sandwell Metropolitan Borough Council,http://www.sandwell.gov.uk/info/200202/performance_and_spending/1079/payments_over_500,21/11/2023,FINANCE (Inc SIU),SEDGWICK INTERNATIONAL UK,Assistant Chief Executive (Excl SIU),825.00,Externally Purchased Professional Services ,2324P08_CR00279,136510
Sandwell Metropolitan Borough Council,http://www.sandwell.gov.uk/info/200202/performance_and_spending/1079/payments_over_500,06/11/2023,FINANCE (Inc SIU),THOMPSONS CLIENT ACCOUNT,Assistant Chief Executive (Excl SIU),6148.60,Insurance,2324P08_CR00280,118091
Sandwell Metropolitan Borough Council,http://www.sandwell.gov.uk/info/200202/performance_and_spending/1079/payments_over_500,06/11/2023,FINANCE (Inc SIU),THOMPSONS CLIENT ACCOUNT,Assistant Chief Executive (Excl SIU),2000.00,Insurance,2324P08_CR00281,118091
Sandwell Metropolitan Borough Council,http://www.sandwell.gov.uk/info/200202/performance_and_spending/1079/payments_over_500,24/11/2023,FINANCE (Inc SIU),VERITAS SOLICITORS,Assistant Chief Executive (Excl SIU),8750.00,Insurance,2324P08_CR00282,163336
Sandwell Metropolitan Borough Council,http://www.sandwell.gov.uk/info/200202/performance_and_spending/1079/payments_over_500,07/11/2023,FINANCE (Inc SIU),REDACTED PERSONAL DATA,Assistant Chief Executive (Excl SIU),950.00,Insurance,2324P08_CR00283,REDACTED PERSONAL DATA
Sandwell Metropolitan Borough Council,http://www.sandwell.gov.uk/info/200202/performance_and_spending/1079/payments_over_500,27/11/2023,FINANCE (Inc SIU),REDACTED PERSONAL DATA,Assistant Chief Executive (Excl SIU),4718.00,Insurance,2324P08_CR00284,REDACTED PERSONAL DATA
Sandwell Metropolitan Borough Council,http://www.sandwell.gov.uk/info/200202/performance_and_spending/1079/payments_over_500,13/11/2023,FINANCE (Inc SIU),REDACTED PERSONAL DATA,Assistant Chief Executive (Excl SIU),768.00,Insurance,2324P08_CR00285,REDACTED PERSONAL DATA
Sandwell Metropolitan Borough Council,http://www.sandwell.gov.uk/info/200202/performance_and_spending/1079/payments_over_500,01/11/2023,FINANCE (Inc SIU),AMBIENT PEOPLE LTD,Assistant Chief Executive (Excl SIU),3450.00,Agency Staff,2324P08_CR00286,165446
Sandwell Metropolitan Borough Council,http://www.sandwell.gov.uk/info/200202/performance_and_spending/1079/payments_over_500,03/11/2023,FINANCE (Inc SIU),AMBIENT PEOPLE LTD,Assistant Chief Executive (Excl SIU),3450.00,Agency Staff,2324P08_CR00287,165446
Sandwell Metropolitan Borough Council,http://www.sandwell.gov.uk/info/200202/performance_and_spending/1079/payments_over_500,03/11/2023,FINANCE (Inc SIU),AMBIENT PEOPLE LTD,Assistant Chief Executive (Excl SIU),3450.00,Agency Staff,2324P08_CR00288,165446
Sandwell Metropolitan Borough Council,http://www.sandwell.gov.uk/info/200202/performance_and_spending/1079/payments_over_500,08/11/2023,FINANCE (Inc SIU),AMBIENT PEOPLE LTD,Assistant Chief Executive (Excl SIU),3450.00,Agency Staff,2324P08_CR00289,165446
Sandwell Metropolitan Borough Council,http://www.sandwell.gov.uk/info/200202/performance_and_spending/1079/payments_over_500,01/11/2023,FINANCE (Inc SIU),ARLINGCLOSE LTD,Assistant Chief Executive (Excl SIU),4490.00,Externally Purchased Professional Services ,2324P08_CR00290,166520
Sandwell Metropolitan Borough Council,http://www.sandwell.gov.uk/info/200202/performance_and_spending/1079/payments_over_500,01/11/2023,FINANCE (Inc SIU),CIPFA C.CO,Assistant Chief Executive (Excl SIU),10000.00,Externally Purchased Professional Services ,2324P08_CR00291,134304
Sandwell Metropolitan Borough Council,http://www.sandwell.gov.uk/info/200202/performance_and_spending/1079/payments_over_500,01/11/2023,FINANCE (Inc SIU),CIPFA C.CO,Assistant Chief Executive (Excl SIU),10000.00,Externally Purchased Professional Services ,2324P08_CR00292,134304
Sandwell Metropolitan Borough Council,http://www.sandwell.gov.uk/info/200202/performance_and_spending/1079/payments_over_500,01/11/2023,FINANCE (Inc SIU),CIPFA C.CO,Assistant Chief Executive (Excl SIU),26000.00,Externally Purchased Professional Services ,2324P08_CR00293,134304
Sandwell Metropolitan Borough Council,http://www.sandwell.gov.uk/info/200202/performance_and_spending/1079/payments_over_500,01/11/2023,FINANCE (Inc SIU),CIPFA C.CO,Assistant Chief Executive (Excl SIU),26000.00,Externally Purchased Professional Services ,2324P08_CR00294,134304
Sandwell Metropolitan Borough Council,http://www.sandwell.gov.uk/info/200202/performance_and_spending/1079/payments_over_500,03/11/2023,FINANCE (Inc SIU),EKAL SOLUTIONS LIMITED,Assistant Chief Executive (Excl SIU),2925.00,Agency Staff,2324P08_CR00295,166571
Sandwell Metropolitan Borough Council,http://www.sandwell.gov.uk/info/200202/performance_and_spending/1079/payments_over_500,03/11/2023,FINANCE (Inc SIU),EKAL SOLUTIONS LIMITED,Assistant Chief Executive (Excl SIU),2925.00,Agency Staff,2324P08_CR00296,166571
Sandwell Metropolitan Borough Council,http://www.sandwell.gov.uk/info/200202/performance_and_spending/1079/payments_over_500,03/11/2023,FINANCE (Inc SIU),GATENBYSANDERSON LTD,Assistant Chief Executive (Excl SIU),14231.25,Agency Staff,2324P08_CR00297,50038
Sandwell Metropolitan Borough Council,http://www.sandwell.gov.uk/info/200202/performance_and_spending/1079/payments_over_500,01/11/2023,FINANCE (Inc SIU),GREENHALGH KERR SOLICITORS LIMITED,Assistant Chief Executive (Excl SIU),1118.50,Externally Purchased Professional Services ,2324P08_CR00298,127273
Sandwell Metropolitan Borough Council,http://www.sandwell.gov.uk/info/200202/performance_and_spending/1079/payments_over_500,14/11/2023,FINANCE (Inc SIU),HAWK INCENTIVES LTD,Assistant Chief Executive (Excl SIU),15000.00,Catering Provisions,2324P08_CR00299,148982
Sandwell Metropolitan Borough Council,http://www.sandwell.gov.uk/info/200202/performance_and_spending/1079/payments_over_500,01/11/2023,FINANCE (Inc SIU),HAYS SPECIALIST RECRUITMENT LTD,Assistant Chief Executive (Excl SIU),173351.93,Agency Staff,2324P08_CR00300,80349
Sandwell Metropolitan Borough Council,http://www.sandwell.gov.uk/info/200202/performance_and_spending/1079/payments_over_500,13/11/2023,FINANCE (Inc SIU),ICHABOD'S INDUSTRIES LTD,Assistant Chief Executive (Excl SIU),2100.00,Subscriptions,2324P08_CR00301,166436
Sandwell Metropolitan Borough Council,http://www.sandwell.gov.uk/info/200202/performance_and_spending/1079/payments_over_500,06/11/2023,FINANCE (Inc SIU),INOAPPS LIMITED,Assistant Chief Executive (Excl SIU),7700.00,Externally Purchased Professional Services ,2324P08_CR00302,122364
Sandwell Metropolitan Borough Council,http://www.sandwell.gov.uk/info/200202/performance_and_spending/1079/payments_over_500,01/11/2023,FINANCE (Inc SIU),LG FUTURES LIMITED,Assistant Chief Executive (Excl SIU),1295.00,Externally Purchased Professional Services ,2324P08_CR00303,102773
Sandwell Metropolitan Borough Council,http://www.sandwell.gov.uk/info/200202/performance_and_spending/1079/payments_over_500,01/11/2023,FINANCE (Inc SIU),LG FUTURES LIMITED,Assistant Chief Executive (Excl SIU),945.00,Externally Purchased Professional Services ,2324P08_CR00304,102773
Sandwell Metropolitan Borough Council,http://www.sandwell.gov.uk/info/200202/performance_and_spending/1079/payments_over_500,01/11/2023,FINANCE (Inc SIU),NEC SOFTWARE SOLUTIONS UK LTD,Assistant Chief Executive (Excl SIU),600.00,Externally Purchased Professional Services ,2324P08_CR00305,56043
Sandwell Metropolitan Borough Council,http://www.sandwell.gov.uk/info/200202/performance_and_spending/1079/payments_over_500,01/11/2023,FINANCE (Inc SIU),NEC SOFTWARE SOLUTIONS UK LTD,Assistant Chief Executive (Excl SIU),505.38,Private Contractors,2324P08_CR00306,56043
Sandwell Metropolitan Borough Council,http://www.sandwell.gov.uk/info/200202/performance_and_spending/1079/payments_over_500,01/11/2023,FINANCE (Inc SIU),PERMANENT FUTURES LTD,Assistant Chief Executive (Excl SIU),3375.00,Agency Staff,2324P08_CR00307,45209
Sandwell Metropolitan Borough Council,http://www.sandwell.gov.uk/info/200202/performance_and_spending/1079/payments_over_500,01/11/2023,FINANCE (Inc SIU),PERMANENT FUTURES LTD,Assistant Chief Executive (Excl SIU),3375.00,Agency Staff,2324P08_CR00308,45209
Sandwell Metropolitan Borough Council,http://www.sandwell.gov.uk/info/200202/performance_and_spending/1079/payments_over_500,08/11/2023,FINANCE (Inc SIU),PERMANENT FUTURES LTD,Assistant Chief Executive (Excl SIU),3375.00,Agency Staff,2324P08_CR00309,45209
Sandwell Metropolitan Borough Council,http://www.sandwell.gov.uk/info/200202/performance_and_spending/1079/payments_over_500,01/11/2023,FINANCE (Inc SIU),PROVISION  HOUSE,Assistant Chief Executive (Excl SIU),16757.00,Equipment & Furniture ,2324P08_CR00310,71090
Sandwell Metropolitan Borough Council,http://www.sandwell.gov.uk/info/200202/performance_and_spending/1079/payments_over_500,09/11/2023,FINANCE (Inc SIU),PROVISION  HOUSE,Assistant Chief Executive (Excl SIU),12296.00,Equipment & Furniture ,2324P08_CR00311,71090
Sandwell Metropolitan Borough Council,http://www.sandwell.gov.uk/info/200202/performance_and_spending/1079/payments_over_500,07/11/2023,FINANCE (Inc SIU),RESTORE DIGITAL LIMITED,Total Adult Social Care,914.20,ICT ,2324P08_CR00312,13549
Sandwell Metropolitan Borough Council,http://www.sandwell.gov.uk/info/200202/performance_and_spending/1079/payments_over_500,22/11/2023,FINANCE (Inc SIU),SANDWELL CHILDREN'S TRUST,Assistant Chief Executive (Excl SIU),380000.00,Grant Payments,2324P08_CR00313,133302
Sandwell Metropolitan Borough Council,http://www.sandwell.gov.uk/info/200202/performance_and_spending/1079/payments_over_500,01/11/2023,FINANCE (Inc SIU),THE OYSTER PARTNERSHIP LTD,Assistant Chief Executive (Excl SIU),3500.00,Agency Staff,2324P08_CR00314,148917
Sandwell Metropolitan Borough Council,http://www.sandwell.gov.uk/info/200202/performance_and_spending/1079/payments_over_500,08/11/2023,FINANCE (Inc SIU),THE OYSTER PARTNERSHIP LTD,Assistant Chief Executive (Excl SIU),2800.00,Agency Staff,2324P08_CR00315,148917
Sandwell Metropolitan Borough Council,http://www.sandwell.gov.uk/info/200202/performance_and_spending/1079/payments_over_500,01/11/2023,FINANCE (Inc SIU),WILKS HEAD & EVE LLP,Assistant Chief Executive (Excl SIU),10500.00,Externally Purchased Professional Services ,2324P08_CR00316,59885
Sandwell Metropolitan Borough Council,http://www.sandwell.gov.uk/info/200202/performance_and_spending/1079/payments_over_500,01/11/2023,FINANCE (Inc SIU),WOLVERHAMPTON CITY COUNCIL,Assistant Chief Executive (Excl SIU),153750.00,Pensions,2324P08_CR00317,120965
Sandwell Metropolitan Borough Council,http://www.sandwell.gov.uk/info/200202/performance_and_spending/1079/payments_over_500,01/11/2023,FINANCE (Inc SIU),ZURICH INSURANCE PLC,Assistant Chief Executive (Excl SIU),10825.00,Externally Purchased Professional Services ,2324P08_CR00318,01749452
Sandwell Metropolitan Borough Council,http://www.sandwell.gov.uk/info/200202/performance_and_spending/1079/payments_over_500,01/11/2023,FINANCE (Inc SIU),ZURICH INSURANCE PLC,Assistant Chief Executive (Excl SIU),16401.85,Externally Purchased Professional Services ,2324P08_CR00319,01749452
Sandwell Metropolitan Borough Council,http://www.sandwell.gov.uk/info/200202/performance_and_spending/1079/payments_over_500,15/11/2023,FINANCE (Inc SIU),REDACTED PERSONAL DATA,Assistant Chief Executive (Excl SIU),600.00,Grant Payments,2324P08_CR00320,REDACTED PERSONAL DATA
Sandwell Metropolitan Borough Council,http://www.sandwell.gov.uk/info/200202/performance_and_spending/1079/payments_over_500,15/11/2023,Housing & Assets Total,ASPIRE SUPPORTED LIVING CIC,Corporate Management,2200.00,Rents,2324P08_CR00321,167486
Sandwell Metropolitan Borough Council,http://www.sandwell.gov.uk/info/200202/performance_and_spending/1079/payments_over_500,01/11/2023,Housing & Assets Total,BEECHWOOD TREES & LANDSCAPE LTD,Corporate Management,1745.87,Externally Purchased Professional Services ,2324P08_CR00322,93287
Sandwell Metropolitan Borough Council,http://www.sandwell.gov.uk/info/200202/performance_and_spending/1079/payments_over_500,01/11/2023,Housing & Assets Total,BEECHWOOD TREES & LANDSCAPE LTD,Corporate Management,1081.10,Externally Purchased Professional Services ,2324P08_CR00323,93287
Sandwell Metropolitan Borough Council,http://www.sandwell.gov.uk/info/200202/performance_and_spending/1079/payments_over_500,01/11/2023,Housing & Assets Total,BEECHWOOD TREES & LANDSCAPE LTD,Corporate Management,1520.28,Externally Purchased Professional Services ,2324P08_CR00324,93287
Sandwell Metropolitan Borough Council,http://www.sandwell.gov.uk/info/200202/performance_and_spending/1079/payments_over_500,01/11/2023,Housing & Assets Total,BEECHWOOD TREES & LANDSCAPE LTD,Corporate Management,543.83,Externally Purchased Professional Services ,2324P08_CR00325,93287
Sandwell Metropolitan Borough Council,http://www.sandwell.gov.uk/info/200202/performance_and_spending/1079/payments_over_500,14/11/2023,Housing & Assets Total,BEECHWOOD TREES & LANDSCAPE LTD,Corporate Management,1556.29,Externally Purchased Professional Services ,2324P08_CR00326,93287
Sandwell Metropolitan Borough Council,http://www.sandwell.gov.uk/info/200202/performance_and_spending/1079/payments_over_500,01/11/2023,Housing & Assets Total,BEECHWOOD TREES & LANDSCAPE LTD,Corporate Management,1892.00,Externally Purchased Professional Services ,2324P08_CR00327,93287
Sandwell Metropolitan Borough Council,http://www.sandwell.gov.uk/info/200202/performance_and_spending/1079/payments_over_500,01/11/2023,Housing & Assets Total,BEECHWOOD TREES & LANDSCAPE LTD,Corporate Management,762.84,Externally Purchased Professional Services ,2324P08_CR00328,93287
Sandwell Metropolitan Borough Council,http://www.sandwell.gov.uk/info/200202/performance_and_spending/1079/payments_over_500,01/11/2023,Housing & Assets Total,BEECHWOOD TREES & LANDSCAPE LTD,Corporate Management,1307.73,Externally Purchased Professional Services ,2324P08_CR00329,93287
Sandwell Metropolitan Borough Council,http://www.sandwell.gov.uk/info/200202/performance_and_spending/1079/payments_over_500,01/11/2023,Housing & Assets Total,BRUSHSTROKES,Corporate Management,25500.00,Grant Payments,2324P08_CR00330,21029374
Sandwell Metropolitan Borough Council,http://www.sandwell.gov.uk/info/200202/performance_and_spending/1079/payments_over_500,01/11/2023,Housing & Assets Total,BRUSHSTROKES,Corporate Management,11500.00,Grant Payments,2324P08_CR00331,21029374
Sandwell Metropolitan Borough Council,http://www.sandwell.gov.uk/info/200202/performance_and_spending/1079/payments_over_500,06/11/2023,Housing & Assets Total,BRUSHSTROKES,Corporate Management,24640.00,Grant Payments,2324P08_CR00332,21029374
Sandwell Metropolitan Borough Council,http://www.sandwell.gov.uk/info/200202/performance_and_spending/1079/payments_over_500,06/11/2023,Housing & Assets Total,BRUSHSTROKES,Corporate Management,23431.82,Grant Payments,2324P08_CR00333,21029374
Sandwell Metropolitan Borough Council,http://www.sandwell.gov.uk/info/200202/performance_and_spending/1079/payments_over_500,06/11/2023,Housing & Assets Total,BRUSHSTROKES,Corporate Management,18500.00,Grant Payments,2324P08_CR00334,21029374
Sandwell Metropolitan Borough Council,http://www.sandwell.gov.uk/info/200202/performance_and_spending/1079/payments_over_500,15/11/2023,Housing & Assets Total,CERTAS ENERGY LIMITED,Corporate Management,2214.39,Oil,2324P08_CR00335,80421
Sandwell Metropolitan Borough Council,http://www.sandwell.gov.uk/info/200202/performance_and_spending/1079/payments_over_500,01/11/2023,Housing & Assets Total,CKP LTD T/A HAGLEY HOTEL,Corporate Management,1085.00,Rents,2324P08_CR00336,143677
Sandwell Metropolitan Borough Council,http://www.sandwell.gov.uk/info/200202/performance_and_spending/1079/payments_over_500,07/11/2023,Housing & Assets Total,CKP LTD T/A HAGLEY HOTEL,Corporate Management,1485.00,Rents,2324P08_CR00337,143677
Sandwell Metropolitan Borough Council,http://www.sandwell.gov.uk/info/200202/performance_and_spending/1079/payments_over_500,07/11/2023,Housing & Assets Total,CKP LTD T/A HAGLEY HOTEL,Corporate Management,1600.00,Rents,2324P08_CR00338,143677
Sandwell Metropolitan Borough Council,http://www.sandwell.gov.uk/info/200202/performance_and_spending/1079/payments_over_500,07/11/2023,Housing & Assets Total,CKP LTD T/A HAGLEY HOTEL,Corporate Management,1550.00,Rents,2324P08_CR00339,143677
Sandwell Metropolitan Borough Council,http://www.sandwell.gov.uk/info/200202/performance_and_spending/1079/payments_over_500,07/11/2023,Housing & Assets Total,CKP LTD T/A HAGLEY HOTEL,Corporate Management,1860.00,Rents,2324P08_CR00340,143677
Sandwell Metropolitan Borough Council,http://www.sandwell.gov.uk/info/200202/performance_and_spending/1079/payments_over_500,07/11/2023,Housing & Assets Total,CKP LTD T/A HAGLEY HOTEL,Corporate Management,1125.00,Rents,2324P08_CR00341,143677
Sandwell Metropolitan Borough Council,http://www.sandwell.gov.uk/info/200202/performance_and_spending/1079/payments_over_500,07/11/2023,Housing & Assets Total,CKP LTD T/A HAGLEY HOTEL,Corporate Management,1300.00,Rents,2324P08_CR00342,143677
Sandwell Metropolitan Borough Council,http://www.sandwell.gov.uk/info/200202/performance_and_spending/1079/payments_over_500,07/11/2023,Housing & Assets Total,CKP LTD T/A HAGLEY HOTEL,Corporate Management,1550.00,Rents,2324P08_CR00343,143677
Sandwell Metropolitan Borough Council,http://www.sandwell.gov.uk/info/200202/performance_and_spending/1079/payments_over_500,07/11/2023,Housing & Assets Total,CKP LTD T/A HAGLEY HOTEL,Corporate Management,1550.00,Rents,2324P08_CR00344,143677
Sandwell Metropolitan Borough Council,http://www.sandwell.gov.uk/info/200202/performance_and_spending/1079/payments_over_500,07/11/2023,Housing & Assets Total,CKP LTD T/A HAGLEY HOTEL,Corporate Management,2850.00,Rents,2324P08_CR00345,143677
Sandwell Metropolitan Borough Council,http://www.sandwell.gov.uk/info/200202/performance_and_spending/1079/payments_over_500,01/11/2023,Housing & Assets Total,CKP LTD T/A HAGLEY HOTEL,Corporate Management,2400.00,Rents,2324P08_CR00346,143677
Sandwell Metropolitan Borough Council,http://www.sandwell.gov.uk/info/200202/performance_and_spending/1079/payments_over_500,09/11/2023,Housing & Assets Total,CKP LTD T/A HAGLEY HOTEL,Corporate Management,2940.00,Rents,2324P08_CR00347,143677
Sandwell Metropolitan Borough Council,http://www.sandwell.gov.uk/info/200202/performance_and_spending/1079/payments_over_500,20/11/2023,Housing & Assets Total,CKP LTD T/A HAGLEY HOTEL,Corporate Management,3690.00,Rents,2324P08_CR00348,143677
Sandwell Metropolitan Borough Council,http://www.sandwell.gov.uk/info/200202/performance_and_spending/1079/payments_over_500,20/11/2023,Housing & Assets Total,CONTRACT LETTINGS LTD,Corporate Management,763.22,Rents,2324P08_CR00349,76625
Sandwell Metropolitan Borough Council,http://www.sandwell.gov.uk/info/200202/performance_and_spending/1079/payments_over_500,20/11/2023,Housing & Assets Total,CONTRACT LETTINGS LTD,Corporate Management,701.22,Rents,2324P08_CR00350,76625
Sandwell Metropolitan Borough Council,http://www.sandwell.gov.uk/info/200202/performance_and_spending/1079/payments_over_500,20/11/2023,Housing & Assets Total,CONTRACT LETTINGS LTD,Corporate Management,701.22,Rents,2324P08_CR00351,76625
Sandwell Metropolitan Borough Council,http://www.sandwell.gov.uk/info/200202/performance_and_spending/1079/payments_over_500,20/11/2023,Housing & Assets Total,CONTRACT LETTINGS LTD,Corporate Management,763.22,Rents,2324P08_CR00352,76625
Sandwell Metropolitan Borough Council,http://www.sandwell.gov.uk/info/200202/performance_and_spending/1079/payments_over_500,20/11/2023,Housing & Assets Total,CONTRACT LETTINGS LTD,Corporate Management,559.86,Rents,2324P08_CR00353,76625
Sandwell Metropolitan Borough Council,http://www.sandwell.gov.uk/info/200202/performance_and_spending/1079/payments_over_500,20/11/2023,Housing & Assets Total,CONTRACT LETTINGS LTD,Corporate Management,559.86,Rents,2324P08_CR00354,76625
Sandwell Metropolitan Borough Council,http://www.sandwell.gov.uk/info/200202/performance_and_spending/1079/payments_over_500,01/11/2023,Housing & Assets Total,CREATIVE ACTIVE LIVES CIC,Corporate Management,1500.00,Civic Events,2324P08_CR00355,138641
Sandwell Metropolitan Borough Council,http://www.sandwell.gov.uk/info/200202/performance_and_spending/1079/payments_over_500,03/11/2023,Housing & Assets Total,GILANI ENTERPRISES LIMITED,Corporate Management,7491.67,Rents,2324P08_CR00356,2696
Sandwell Metropolitan Borough Council,http://www.sandwell.gov.uk/info/200202/performance_and_spending/1079/payments_over_500,03/11/2023,Housing & Assets Total,GILANI ENTERPRISES LIMITED,Corporate Management,3100.00,Rents,2324P08_CR00357,2696
Sandwell Metropolitan Borough Council,http://www.sandwell.gov.uk/info/200202/performance_and_spending/1079/payments_over_500,03/11/2023,Housing & Assets Total,GILANI ENTERPRISES LIMITED,Corporate Management,3100.00,Rents,2324P08_CR00358,2696
Sandwell Metropolitan Borough Council,http://www.sandwell.gov.uk/info/200202/performance_and_spending/1079/payments_over_500,03/11/2023,Housing & Assets Total,GILANI ENTERPRISES LIMITED,Corporate Management,3100.00,Rents,2324P08_CR00359,2696
Sandwell Metropolitan Borough Council,http://www.sandwell.gov.uk/info/200202/performance_and_spending/1079/payments_over_500,03/11/2023,Housing & Assets Total,GILANI ENTERPRISES LIMITED,Corporate Management,2583.33,Rents,2324P08_CR00360,2696
Sandwell Metropolitan Borough Council,http://www.sandwell.gov.uk/info/200202/performance_and_spending/1079/payments_over_500,03/11/2023,Housing & Assets Total,GILANI ENTERPRISES LIMITED,Corporate Management,3875.00,Rents,2324P08_CR00361,2696
Sandwell Metropolitan Borough Council,http://www.sandwell.gov.uk/info/200202/performance_and_spending/1079/payments_over_500,03/11/2023,Housing & Assets Total,GILANI ENTERPRISES LIMITED,Corporate Management,2066.67,Rents,2324P08_CR00362,2696
Sandwell Metropolitan Borough Council,http://www.sandwell.gov.uk/info/200202/performance_and_spending/1079/payments_over_500,03/11/2023,Housing & Assets Total,GILANI ENTERPRISES LIMITED,Corporate Management,6200.00,Rents,2324P08_CR00363,2696
Sandwell Metropolitan Borough Council,http://www.sandwell.gov.uk/info/200202/performance_and_spending/1079/payments_over_500,03/11/2023,Housing & Assets Total,GILANI ENTERPRISES LIMITED,Corporate Management,800.00,Rents,2324P08_CR00364,2696
Sandwell Metropolitan Borough Council,http://www.sandwell.gov.uk/info/200202/performance_and_spending/1079/payments_over_500,01/11/2023,Housing & Assets Total,GILANI ENTERPRISES LIMITED,Corporate Management,2066.67,Rents,2324P08_CR00365,2696
Sandwell Metropolitan Borough Council,http://www.sandwell.gov.uk/info/200202/performance_and_spending/1079/payments_over_500,20/11/2023,Housing & Assets Total,"HIGHFIELD HOUSE HOTEL,",Corporate Management,1395.00,Rents,2324P08_CR00366,162756
Sandwell Metropolitan Borough Council,http://www.sandwell.gov.uk/info/200202/performance_and_spending/1079/payments_over_500,20/11/2023,Housing & Assets Total,"HIGHFIELD HOUSE HOTEL,",Corporate Management,1395.00,Rents,2324P08_CR00367,162756
Sandwell Metropolitan Borough Council,http://www.sandwell.gov.uk/info/200202/performance_and_spending/1079/payments_over_500,01/11/2023,Housing & Assets Total,"HIGHFIELD HOUSE HOTEL,",Corporate Management,4185.00,Rents,2324P08_CR00368,162756
Sandwell Metropolitan Borough Council,http://www.sandwell.gov.uk/info/200202/performance_and_spending/1079/payments_over_500,01/11/2023,Housing & Assets Total,"HIGHFIELD HOUSE HOTEL,",Corporate Management,2325.00,Rents,2324P08_CR00369,162756
Sandwell Metropolitan Borough Council,http://www.sandwell.gov.uk/info/200202/performance_and_spending/1079/payments_over_500,01/11/2023,Housing & Assets Total,"HIGHFIELD HOUSE HOTEL,",Corporate Management,1705.00,Rents,2324P08_CR00370,162756
Sandwell Metropolitan Borough Council,http://www.sandwell.gov.uk/info/200202/performance_and_spending/1079/payments_over_500,23/11/2023,Housing & Assets Total,"HIGHFIELD HOUSE HOTEL,",Corporate Management,1395.00,Rents,2324P08_CR00371,162756
Sandwell Metropolitan Borough Council,http://www.sandwell.gov.uk/info/200202/performance_and_spending/1079/payments_over_500,23/11/2023,Housing & Assets Total,"HIGHFIELD HOUSE HOTEL,",Corporate Management,840.00,Rents,2324P08_CR00372,162756
Sandwell Metropolitan Borough Council,http://www.sandwell.gov.uk/info/200202/performance_and_spending/1079/payments_over_500,23/11/2023,Housing & Assets Total,"HIGHFIELD HOUSE HOTEL,",Corporate Management,660.00,Rents,2324P08_CR00373,162756
Sandwell Metropolitan Borough Council,http://www.sandwell.gov.uk/info/200202/performance_and_spending/1079/payments_over_500,16/11/2023,Housing & Assets Total,HOUSING SYSTEMS LTD,Corporate Management,680.00,Licences,2324P08_CR00374,155593
Sandwell Metropolitan Borough Council,http://www.sandwell.gov.uk/info/200202/performance_and_spending/1079/payments_over_500,06/11/2023,Housing & Assets Total,J K AUTOS,Corporate Management,13127.80,Externally Purchased Professional Services ,2324P08_CR00375,167411
Sandwell Metropolitan Borough Council,http://www.sandwell.gov.uk/info/200202/performance_and_spending/1079/payments_over_500,01/11/2023,Housing & Assets Total,JOHN A BATES (CONTRACTORS) LTD,Total Adult Social Care,1884.81,Operational Services ,2324P08_CR00376,77001148
Sandwell Metropolitan Borough Council,http://www.sandwell.gov.uk/info/200202/performance_and_spending/1079/payments_over_500,01/11/2023,Housing & Assets Total,MIDLAND FORESTRY LIMITED,Corporate Management,3401.27,Externally Purchased Professional Services ,2324P08_CR00377,45812
Sandwell Metropolitan Borough Council,http://www.sandwell.gov.uk/info/200202/performance_and_spending/1079/payments_over_500,01/11/2023,Housing & Assets Total,MIDLAND FORESTRY LIMITED,Corporate Management,7670.01,Externally Purchased Professional Services ,2324P08_CR00378,45812
Sandwell Metropolitan Borough Council,http://www.sandwell.gov.uk/info/200202/performance_and_spending/1079/payments_over_500,01/11/2023,Housing & Assets Total,MIDLAND FORESTRY LIMITED,Corporate Management,584.13,Externally Purchased Professional Services ,2324P08_CR00379,45812
Sandwell Metropolitan Borough Council,http://www.sandwell.gov.uk/info/200202/performance_and_spending/1079/payments_over_500,07/11/2023,Housing & Assets Total,MIDLAND FORESTRY LIMITED,Corporate Management,821.69,Externally Purchased Professional Services ,2324P08_CR00380,45812
Sandwell Metropolitan Borough Council,http://www.sandwell.gov.uk/info/200202/performance_and_spending/1079/payments_over_500,07/11/2023,Housing & Assets Total,MIDLAND FORESTRY LIMITED,Corporate Management,888.18,Externally Purchased Professional Services ,2324P08_CR00381,45812
Sandwell Metropolitan Borough Council,http://www.sandwell.gov.uk/info/200202/performance_and_spending/1079/payments_over_500,07/11/2023,Housing & Assets Total,MIDLAND FORESTRY LIMITED,Corporate Management,865.30,Externally Purchased Professional Services ,2324P08_CR00382,45812
Sandwell Metropolitan Borough Council,http://www.sandwell.gov.uk/info/200202/performance_and_spending/1079/payments_over_500,07/11/2023,Housing & Assets Total,MIDLAND FORESTRY LIMITED,Corporate Management,891.45,Externally Purchased Professional Services ,2324P08_CR00383,45812
Sandwell Metropolitan Borough Council,http://www.sandwell.gov.uk/info/200202/performance_and_spending/1079/payments_over_500,07/11/2023,Housing & Assets Total,MIDLAND FORESTRY LIMITED,Corporate Management,859.57,Externally Purchased Professional Services ,2324P08_CR00384,45812
Sandwell Metropolitan Borough Council,http://www.sandwell.gov.uk/info/200202/performance_and_spending/1079/payments_over_500,14/11/2023,Housing & Assets Total,MIDLAND FORESTRY LIMITED,Corporate Management,1471.21,Externally Purchased Professional Services ,2324P08_CR00385,45812
Sandwell Metropolitan Borough Council,http://www.sandwell.gov.uk/info/200202/performance_and_spending/1079/payments_over_500,01/11/2023,Housing & Assets Total,MIDLAND FORESTRY LIMITED,Corporate Management,650.00,Externally Purchased Professional Services ,2324P08_CR00386,45812
Sandwell Metropolitan Borough Council,http://www.sandwell.gov.uk/info/200202/performance_and_spending/1079/payments_over_500,07/11/2023,Housing & Assets Total,MIDLAND FORESTRY LIMITED,Corporate Management,543.80,Externally Purchased Professional Services ,2324P08_CR00387,45812
Sandwell Metropolitan Borough Council,http://www.sandwell.gov.uk/info/200202/performance_and_spending/1079/payments_over_500,07/11/2023,Housing & Assets Total,MIDLAND FORESTRY LIMITED,Corporate Management,959.00,Externally Purchased Professional Services ,2324P08_CR00388,45812
Sandwell Metropolitan Borough Council,http://www.sandwell.gov.uk/info/200202/performance_and_spending/1079/payments_over_500,07/11/2023,Housing & Assets Total,MIDLAND FORESTRY LIMITED,Corporate Management,854.92,Externally Purchased Professional Services ,2324P08_CR00389,45812
Sandwell Metropolitan Borough Council,http://www.sandwell.gov.uk/info/200202/performance_and_spending/1079/payments_over_500,07/11/2023,Housing & Assets Total,MIDLAND FORESTRY LIMITED,Corporate Management,2338.73,Externally Purchased Professional Services ,2324P08_CR00390,45812
Sandwell Metropolitan Borough Council,http://www.sandwell.gov.uk/info/200202/performance_and_spending/1079/payments_over_500,07/11/2023,Housing & Assets Total,MIDLAND FORESTRY LIMITED,Corporate Management,708.96,Externally Purchased Professional Services ,2324P08_CR00391,45812
Sandwell Metropolitan Borough Council,http://www.sandwell.gov.uk/info/200202/performance_and_spending/1079/payments_over_500,07/11/2023,Housing & Assets Total,MIDLAND FORESTRY LIMITED,Corporate Management,2519.57,Externally Purchased Professional Services ,2324P08_CR00392,45812
Sandwell Metropolitan Borough Council,http://www.sandwell.gov.uk/info/200202/performance_and_spending/1079/payments_over_500,14/11/2023,Housing & Assets Total,MIDLAND FORESTRY LIMITED,Corporate Management,514.34,Externally Purchased Professional Services ,2324P08_CR00393,45812
Sandwell Metropolitan Borough Council,http://www.sandwell.gov.uk/info/200202/performance_and_spending/1079/payments_over_500,14/11/2023,Housing & Assets Total,MIDLAND FORESTRY LIMITED,Corporate Management,1533.37,Externally Purchased Professional Services ,2324P08_CR00394,45812
Sandwell Metropolitan Borough Council,http://www.sandwell.gov.uk/info/200202/performance_and_spending/1079/payments_over_500,14/11/2023,Housing & Assets Total,MIDLAND FORESTRY LIMITED,Corporate Management,1142.10,Externally Purchased Professional Services ,2324P08_CR00395,45812
Sandwell Metropolitan Borough Council,http://www.sandwell.gov.uk/info/200202/performance_and_spending/1079/payments_over_500,14/11/2023,Housing & Assets Total,MIDLAND FORESTRY LIMITED,Corporate Management,1024.39,Externally Purchased Professional Services ,2324P08_CR00396,45812
Sandwell Metropolitan Borough Council,http://www.sandwell.gov.uk/info/200202/performance_and_spending/1079/payments_over_500,14/11/2023,Housing & Assets Total,MIDLAND FORESTRY LIMITED,Corporate Management,719.28,Externally Purchased Professional Services ,2324P08_CR00397,45812
Sandwell Metropolitan Borough Council,http://www.sandwell.gov.uk/info/200202/performance_and_spending/1079/payments_over_500,14/11/2023,Housing & Assets Total,MIDLAND FORESTRY LIMITED,Corporate Management,806.28,Externally Purchased Professional Services ,2324P08_CR00398,45812
Sandwell Metropolitan Borough Council,http://www.sandwell.gov.uk/info/200202/performance_and_spending/1079/payments_over_500,14/11/2023,Housing & Assets Total,MIDLAND FORESTRY LIMITED,Corporate Management,2929.38,Externally Purchased Professional Services ,2324P08_CR00399,45812
Sandwell Metropolitan Borough Council,http://www.sandwell.gov.uk/info/200202/performance_and_spending/1079/payments_over_500,22/11/2023,Housing & Assets Total,MIDLAND FORESTRY LIMITED,Corporate Management,955.75,Externally Purchased Professional Services ,2324P08_CR00400,45812
Sandwell Metropolitan Borough Council,http://www.sandwell.gov.uk/info/200202/performance_and_spending/1079/payments_over_500,22/11/2023,Housing & Assets Total,MIDLAND FORESTRY LIMITED,Corporate Management,2140.74,Externally Purchased Professional Services ,2324P08_CR00401,45812
Sandwell Metropolitan Borough Council,http://www.sandwell.gov.uk/info/200202/performance_and_spending/1079/payments_over_500,22/11/2023,Housing & Assets Total,MIDLAND FORESTRY LIMITED,Corporate Management,1332.24,Externally Purchased Professional Services ,2324P08_CR00402,45812
Sandwell Metropolitan Borough Council,http://www.sandwell.gov.uk/info/200202/performance_and_spending/1079/payments_over_500,22/11/2023,Housing & Assets Total,MIDLAND FORESTRY LIMITED,Corporate Management,1850.49,Externally Purchased Professional Services ,2324P08_CR00403,45812
Sandwell Metropolitan Borough Council,http://www.sandwell.gov.uk/info/200202/performance_and_spending/1079/payments_over_500,22/11/2023,Housing & Assets Total,MIDLAND FORESTRY LIMITED,Corporate Management,714.89,Externally Purchased Professional Services ,2324P08_CR00404,45812
Sandwell Metropolitan Borough Council,http://www.sandwell.gov.uk/info/200202/performance_and_spending/1079/payments_over_500,22/11/2023,Housing & Assets Total,MIDLAND FORESTRY LIMITED,Corporate Management,768.30,Externally Purchased Professional Services ,2324P08_CR00405,45812
Sandwell Metropolitan Borough Council,http://www.sandwell.gov.uk/info/200202/performance_and_spending/1079/payments_over_500,15/11/2023,Housing & Assets Total,NATIONWIDE MOBILES LTD,Corporate Management,750.00,Tenants Expenses,2324P08_CR00406,167087
Sandwell Metropolitan Borough Council,http://www.sandwell.gov.uk/info/200202/performance_and_spending/1079/payments_over_500,01/11/2023,Housing & Assets Total,PROFILE SECURITY SERVICES LTD,Corporate Management,10375.20,Security,2324P08_CR00407,131253
Sandwell Metropolitan Borough Council,http://www.sandwell.gov.uk/info/200202/performance_and_spending/1079/payments_over_500,01/11/2023,Housing & Assets Total,PROFILE SECURITY SERVICES LTD,Corporate Management,10375.20,Security,2324P08_CR00408,131253
Sandwell Metropolitan Borough Council,http://www.sandwell.gov.uk/info/200202/performance_and_spending/1079/payments_over_500,01/11/2023,Housing & Assets Total,PROFILE SECURITY SERVICES LTD,Corporate Management,10721.04,Security,2324P08_CR00409,131253
Sandwell Metropolitan Borough Council,http://www.sandwell.gov.uk/info/200202/performance_and_spending/1079/payments_over_500,01/11/2023,Housing & Assets Total,PROFILE SECURITY SERVICES LTD,Corporate Management,9719.55,Security,2324P08_CR00410,131253
Sandwell Metropolitan Borough Council,http://www.sandwell.gov.uk/info/200202/performance_and_spending/1079/payments_over_500,02/11/2023,Housing & Assets Total,R & A SOFTWARE (SYSTEMS) LIMITED,Corporate Management,1763.00,ICT ,2324P08_CR00411,99711
Sandwell Metropolitan Borough Council,http://www.sandwell.gov.uk/info/200202/performance_and_spending/1079/payments_over_500,01/11/2023,Housing & Assets Total,SAFFRON HOTEL,Corporate Management,102410.00,Rents,2324P08_CR00412,164316
Sandwell Metropolitan Borough Council,http://www.sandwell.gov.uk/info/200202/performance_and_spending/1079/payments_over_500,14/11/2023,Housing & Assets Total,TRH WALSALL LTD,Corporate Management,670.95,Rents,2324P08_CR00413,85648
Sandwell Metropolitan Borough Council,http://www.sandwell.gov.uk/info/200202/performance_and_spending/1079/payments_over_500,14/11/2023,Housing & Assets Total,TRH WALSALL LTD,Corporate Management,670.95,Rents,2324P08_CR00414,85648
Sandwell Metropolitan Borough Council,http://www.sandwell.gov.uk/info/200202/performance_and_spending/1079/payments_over_500,01/11/2023,Housing & Assets Total,TRUE SUPPORTED LIVING,Corporate Management,785.71,Rents,2324P08_CR00415,162159
Sandwell Metropolitan Borough Council,http://www.sandwell.gov.uk/info/200202/performance_and_spending/1079/payments_over_500,01/11/2023,Housing & Assets Total,TRUE SUPPORTED LIVING,Corporate Management,1414.28,Rents,2324P08_CR00416,162159
Sandwell Metropolitan Borough Council,http://www.sandwell.gov.uk/info/200202/performance_and_spending/1079/payments_over_500,01/11/2023,Housing & Assets Total,TRUE SUPPORTED LIVING,Corporate Management,3958.71,Rents,2324P08_CR00417,162159
Sandwell Metropolitan Borough Council,http://www.sandwell.gov.uk/info/200202/performance_and_spending/1079/payments_over_500,01/11/2023,Housing & Assets Total,TRUE SUPPORTED LIVING,Corporate Management,2700.00,Rents,2324P08_CR00418,162159
Sandwell Metropolitan Borough Council,http://www.sandwell.gov.uk/info/200202/performance_and_spending/1079/payments_over_500,01/11/2023,Housing & Assets Total,TRUE SUPPORTED LIVING,Corporate Management,3085.71,Rents,2324P08_CR00419,162159
Sandwell Metropolitan Borough Council,http://www.sandwell.gov.uk/info/200202/performance_and_spending/1079/payments_over_500,01/11/2023,Housing & Assets Total,TRUE SUPPORTED LIVING,Corporate Management,1028.57,Rents,2324P08_CR00420,162159
Sandwell Metropolitan Borough Council,http://www.sandwell.gov.uk/info/200202/performance_and_spending/1079/payments_over_500,15/11/2023,Housing & Assets Total,TUDOR ENVIRONMENTAL,Corporate Management,2008.06,Materials & Consumables,2324P08_CR00421,01528713
Sandwell Metropolitan Borough Council,http://www.sandwell.gov.uk/info/200202/performance_and_spending/1079/payments_over_500,17/11/2023,Housing & Assets Total,UNIVERSITY OF DERBY,Total Adult Social Care,2925.00,Subscriptions,2324P08_CR00422,01267992
Sandwell Metropolitan Borough Council,http://www.sandwell.gov.uk/info/200202/performance_and_spending/1079/payments_over_500,01/11/2023,Housing & Assets Total,WARD SECURITY & ELECTRICAL,Corporate Management,1475.00,Security,2324P08_CR00423,01692494
Sandwell Metropolitan Borough Council,http://www.sandwell.gov.uk/info/200202/performance_and_spending/1079/payments_over_500,14/11/2023,Housing & Assets Total,WORD360 LTD,Corporate Management,1311.41,Externally Purchased Professional Services ,2324P08_CR00424,01679409
Sandwell Metropolitan Borough Council,http://www.sandwell.gov.uk/info/200202/performance_and_spending/1079/payments_over_500,01/11/2023,Housing & Assets Total,RANBIR KAUR.,Corporate Management,4000.00,Externally Purchased Professional Services ,2324P08_CR00425,163114
Sandwell Metropolitan Borough Council,http://www.sandwell.gov.uk/info/200202/performance_and_spending/1079/payments_over_500,07/11/2023,Housing & Assets Total,ROBOT COSSEY,Corporate Management,2700.00,Externally Purchased Professional Services ,2324P08_CR00426,166316
Sandwell Metropolitan Borough Council,http://www.sandwell.gov.uk/info/200202/performance_and_spending/1079/payments_over_500,07/11/2023,Housing & Assets Total,REDACTED PERSONAL DATA,Corporate Management,1444.27,Rents,2324P08_CR00427,REDACTED PERSONAL DATA
Sandwell Metropolitan Borough Council,http://www.sandwell.gov.uk/info/200202/performance_and_spending/1079/payments_over_500,10/11/2023,Housing & Assets Total,REDACTED PERSONAL DATA,Corporate Management,500.00,Rents,2324P08_CR00428,REDACTED PERSONAL DATA
Sandwell Metropolitan Borough Council,http://www.sandwell.gov.uk/info/200202/performance_and_spending/1079/payments_over_500,10/11/2023,Housing & Assets Total,REDACTED PERSONAL DATA,Corporate Management,500.00,Rents,2324P08_CR00429,REDACTED PERSONAL DATA
Sandwell Metropolitan Borough Council,http://www.sandwell.gov.uk/info/200202/performance_and_spending/1079/payments_over_500,10/11/2023,Housing & Assets Total,REDACTED PERSONAL DATA,Corporate Management,500.00,Rents,2324P08_CR00430,REDACTED PERSONAL DATA
Sandwell Metropolitan Borough Council,http://www.sandwell.gov.uk/info/200202/performance_and_spending/1079/payments_over_500,10/11/2023,Housing & Assets Total,REDACTED PERSONAL DATA,Corporate Management,500.00,Rents,2324P08_CR00431,REDACTED PERSONAL DATA
Sandwell Metropolitan Borough Council,http://www.sandwell.gov.uk/info/200202/performance_and_spending/1079/payments_over_500,10/11/2023,Housing & Assets Total,REDACTED PERSONAL DATA,Corporate Management,500.00,Rents,2324P08_CR00432,REDACTED PERSONAL DATA
Sandwell Metropolitan Borough Council,http://www.sandwell.gov.uk/info/200202/performance_and_spending/1079/payments_over_500,10/11/2023,Housing & Assets Total,REDACTED PERSONAL DATA,Corporate Management,1400.00,Rents,2324P08_CR00433,REDACTED PERSONAL DATA
Sandwell Metropolitan Borough Council,http://www.sandwell.gov.uk/info/200202/performance_and_spending/1079/payments_over_500,10/11/2023,Housing & Assets Total,REDACTED PERSONAL DATA,Housing & Assets Total,500.00,Rents,2324P08_CR00434,REDACTED PERSONAL DATA
Sandwell Metropolitan Borough Council,http://www.sandwell.gov.uk/info/200202/performance_and_spending/1079/payments_over_500,10/11/2023,Housing & Assets Total,REDACTED PERSONAL DATA,Corporate Management,500.00,Rents,2324P08_CR00435,REDACTED PERSONAL DATA
Sandwell Metropolitan Borough Council,http://www.sandwell.gov.uk/info/200202/performance_and_spending/1079/payments_over_500,10/11/2023,Housing & Assets Total,REDACTED PERSONAL DATA,Housing & Assets Total,500.00,Rents,2324P08_CR00436,REDACTED PERSONAL DATA
Sandwell Metropolitan Borough Council,http://www.sandwell.gov.uk/info/200202/performance_and_spending/1079/payments_over_500,10/11/2023,Housing & Assets Total,REDACTED PERSONAL DATA,Housing & Assets Total,1150.00,Rents,2324P08_CR00437,REDACTED PERSONAL DATA
Sandwell Metropolitan Borough Council,http://www.sandwell.gov.uk/info/200202/performance_and_spending/1079/payments_over_500,27/11/2023,Housing & Assets Total,BALIJIT KAUR,Corporate Management,500.00,Rents,2324P08_CR00438,101860
Sandwell Metropolitan Borough Council,http://www.sandwell.gov.uk/info/200202/performance_and_spending/1079/payments_over_500,27/11/2023,Housing & Assets Total,BALWANT SINGH,Corporate Management,500.00,Rents,2324P08_CR00439,84433
Sandwell Metropolitan Borough Council,http://www.sandwell.gov.uk/info/200202/performance_and_spending/1079/payments_over_500,27/11/2023,Housing & Assets Total,ELEANOR MCGEE,Corporate Management,550.00,Rents,2324P08_CR00440,109162
Sandwell Metropolitan Borough Council,http://www.sandwell.gov.uk/info/200202/performance_and_spending/1079/payments_over_500,01/11/2023,Housing & Assets Total,BRUSHSTROKES,Corporate Management,12000.00,Grant Payments,2324P08_CR00441,21029374
Sandwell Metropolitan Borough Council,http://www.sandwell.gov.uk/info/200202/performance_and_spending/1079/payments_over_500,22/11/2023,Housing & Communities,MOTUS COMMERCIALS HALESOWEN,Housing & Communities,92447.00,"CIP - Vehicles, Plant & Machinery",2324P08_CR00442,142253
Sandwell Metropolitan Borough Council,http://www.sandwell.gov.uk/info/200202/performance_and_spending/1079/payments_over_500,22/11/2023,Housing & Communities,MOTUS COMMERCIALS HALESOWEN,Housing & Communities,92447.00,"CIP - Vehicles, Plant & Machinery",2324P08_CR00443,142253
Sandwell Metropolitan Borough Council,http://www.sandwell.gov.uk/info/200202/performance_and_spending/1079/payments_over_500,14/11/2023,Housing & Communities,MOTUS COMMERCIALS HALESOWEN,Housing & Communities,92447.00,"CIP - Vehicles, Plant & Machinery",2324P08_CR00444,142253
Sandwell Metropolitan Borough Council,http://www.sandwell.gov.uk/info/200202/performance_and_spending/1079/payments_over_500,01/11/2023,Housing Revenue Account Capital,"ACIVICO (DESIGN,CONSTRUCTION AND FACILITIES MANAGEMENT) LTD",Housing Revenue Account Capital,8439.94,"CIP - New Construction,Conversion, Enhancement & Reno",2324P08_CR00445,148500
Sandwell Metropolitan Borough Council,http://www.sandwell.gov.uk/info/200202/performance_and_spending/1079/payments_over_500,01/11/2023,Housing Revenue Account Capital,"ACIVICO (DESIGN,CONSTRUCTION AND FACILITIES MANAGEMENT) LTD",Housing Revenue Account Capital,10634.08,"CIP - New Construction,Conversion, Enhancement & Reno",2324P08_CR00446,148500
Sandwell Metropolitan Borough Council,http://www.sandwell.gov.uk/info/200202/performance_and_spending/1079/payments_over_500,01/11/2023,Housing Revenue Account Capital,"ACIVICO (DESIGN,CONSTRUCTION AND FACILITIES MANAGEMENT) LTD",Housing Revenue Account Capital,7877.92,"CIP - New Construction,Conversion, Enhancement & Reno",2324P08_CR00447,148500
Sandwell Metropolitan Borough Council,http://www.sandwell.gov.uk/info/200202/performance_and_spending/1079/payments_over_500,01/11/2023,Housing Revenue Account Capital,"ACIVICO (DESIGN,CONSTRUCTION AND FACILITIES MANAGEMENT) LTD",Housing Revenue Account Capital,1458.00,"CIP - New Construction,Conversion, Enhancement & Reno",2324P08_CR00448,148500
Sandwell Metropolitan Borough Council,http://www.sandwell.gov.uk/info/200202/performance_and_spending/1079/payments_over_500,15/11/2023,Housing Revenue Account Capital,ALLROUND PLUMBING SERVICES LTD,Housing Revenue Account Capital,10571.64,"CIP - New Construction,Conversion, Enhancement & Reno",2324P08_CR00449,166945
Sandwell Metropolitan Borough Council,http://www.sandwell.gov.uk/info/200202/performance_and_spending/1079/payments_over_500,01/11/2023,Housing Revenue Account Capital,AXIS EUROPE PLC ,Housing Revenue Account Capital,6432.64,Deferred Charges/Grant Payments,2324P08_CR00450,64946
Sandwell Metropolitan Borough Council,http://www.sandwell.gov.uk/info/200202/performance_and_spending/1079/payments_over_500,16/11/2023,Housing Revenue Account Capital,AXIS EUROPE PLC ,Housing Revenue Account Capital,131646.26,Deferred Charges/Grant Payments,2324P08_CR00451,64946
Sandwell Metropolitan Borough Council,http://www.sandwell.gov.uk/info/200202/performance_and_spending/1079/payments_over_500,01/11/2023,Housing Revenue Account Capital,BLOOM PROCUREMENT SERVICES LTD,Housing Revenue Account Capital,1378.13,Externally Purchased Professional Services ,2324P08_CR00452,141813
Sandwell Metropolitan Borough Council,http://www.sandwell.gov.uk/info/200202/performance_and_spending/1079/payments_over_500,01/11/2023,Housing Revenue Account Capital,CDC TECHNICAL SERVICES LTD,Housing Revenue Account Capital,1740.00,"CIP - New Construction,Conversion, Enhancement & Reno",2324P08_CR00453,101080
Sandwell Metropolitan Borough Council,http://www.sandwell.gov.uk/info/200202/performance_and_spending/1079/payments_over_500,01/11/2023,Housing Revenue Account Capital,HOME FARM NURSERIES (PINVIN) LIMITED,Housing Revenue Account Capital,13588.05,CIP - Infrastructure,2324P08_CR00454,77003445
Sandwell Metropolitan Borough Council,http://www.sandwell.gov.uk/info/200202/performance_and_spending/1079/payments_over_500,16/11/2023,Housing Revenue Account Capital,J.HARPER & SONS (LEOMINSTER) LIMITED,Housing Revenue Account Capital,5334.55,"CIP - New Construction,Conversion, Enhancement & Reno",2324P08_CR00455,111814
Sandwell Metropolitan Borough Council,http://www.sandwell.gov.uk/info/200202/performance_and_spending/1079/payments_over_500,01/11/2023,Housing Revenue Account Capital,JACOBS U.K. LIMITED,Housing Revenue Account Capital,3033.88,"CIP - New Construction,Conversion, Enhancement & Reno",2324P08_CR00456,104701
Sandwell Metropolitan Borough Council,http://www.sandwell.gov.uk/info/200202/performance_and_spending/1079/payments_over_500,01/11/2023,Housing Revenue Account Capital,JPC CONSTRUCTION (MIDLANDS) LTD,Housing Revenue Account Capital,22245.20,CIP - Infrastructure,2324P08_CR00457,166819
Sandwell Metropolitan Borough Council,http://www.sandwell.gov.uk/info/200202/performance_and_spending/1079/payments_over_500,03/11/2023,Housing Revenue Account Capital,LOVELL PARTNERSHIPS  LTD,Housing Revenue Account Capital,764195.26,"CIP - New Construction,Conversion, Enhancement & Reno",2324P08_CR00458,77007398
Sandwell Metropolitan Borough Council,http://www.sandwell.gov.uk/info/200202/performance_and_spending/1079/payments_over_500,09/11/2023,Housing Revenue Account Capital,LOVELL PARTNERSHIPS  LTD,Housing Revenue Account Capital,396475.65,"CIP - New Construction,Conversion, Enhancement & Reno",2324P08_CR00459,77007398
Sandwell Metropolitan Borough Council,http://www.sandwell.gov.uk/info/200202/performance_and_spending/1079/payments_over_500,01/11/2023,Housing Revenue Account Capital,LOVELL PARTNERSHIPS  LTD,Housing Revenue Account Capital,34005.93,"CIP - New Construction,Conversion, Enhancement & Reno",2324P08_CR00460,77007398
Sandwell Metropolitan Borough Council,http://www.sandwell.gov.uk/info/200202/performance_and_spending/1079/payments_over_500,01/11/2023,Housing Revenue Account Capital,NATIONWIDE WINDOWS LIMITED,Housing Revenue Account Capital,311555.97,"CIP - New Construction,Conversion, Enhancement & Reno",2324P08_CR00461,108316
Sandwell Metropolitan Borough Council,http://www.sandwell.gov.uk/info/200202/performance_and_spending/1079/payments_over_500,01/11/2023,Housing Revenue Account Capital,NATIONWIDE WINDOWS LIMITED,Housing Revenue Account Capital,52188.13,"CIP - New Construction,Conversion, Enhancement & Reno",2324P08_CR00462,108316
Sandwell Metropolitan Borough Council,http://www.sandwell.gov.uk/info/200202/performance_and_spending/1079/payments_over_500,01/11/2023,Housing Revenue Account Capital,PHOENIX GAS SERVICES LIMITED,Housing Revenue Account Capital,5271.67,Contract Payments,2324P08_CR00463,126729
Sandwell Metropolitan Borough Council,http://www.sandwell.gov.uk/info/200202/performance_and_spending/1079/payments_over_500,01/11/2023,Housing Revenue Account Capital,PHOENIX GAS SERVICES LIMITED,Housing Revenue Account Capital,4773.69,Contract Payments,2324P08_CR00464,126729
Sandwell Metropolitan Borough Council,http://www.sandwell.gov.uk/info/200202/performance_and_spending/1079/payments_over_500,01/11/2023,Housing Revenue Account Capital,PHOENIX GAS SERVICES LIMITED,Housing Revenue Account Capital,5298.59,Contract Payments,2324P08_CR00465,126729
Sandwell Metropolitan Borough Council,http://www.sandwell.gov.uk/info/200202/performance_and_spending/1079/payments_over_500,01/11/2023,Housing Revenue Account Capital,PHOENIX GAS SERVICES LIMITED,Housing Revenue Account Capital,4588.00,Contract Payments,2324P08_CR00466,126729
Sandwell Metropolitan Borough Council,http://www.sandwell.gov.uk/info/200202/performance_and_spending/1079/payments_over_500,11/11/2023,Housing Revenue Account Capital,PHOENIX GAS SERVICES LIMITED,Housing Revenue Account Capital,2887.70,Contract Payments,2324P08_CR00467,126729
Sandwell Metropolitan Borough Council,http://www.sandwell.gov.uk/info/200202/performance_and_spending/1079/payments_over_500,01/11/2023,Housing Revenue Account Capital,PR PROPERTY MAINTENANCE,Housing Revenue Account Capital,30969.41,Deferred Charges/Grant Payments,2324P08_CR00468,33836
Sandwell Metropolitan Borough Council,http://www.sandwell.gov.uk/info/200202/performance_and_spending/1079/payments_over_500,06/11/2023,Housing Revenue Account Capital,PR PROPERTY MAINTENANCE,Housing Revenue Account Capital,38541.78,Deferred Charges/Grant Payments,2324P08_CR00469,33836
Sandwell Metropolitan Borough Council,http://www.sandwell.gov.uk/info/200202/performance_and_spending/1079/payments_over_500,08/11/2023,Housing Revenue Account Capital,PR PROPERTY MAINTENANCE,Housing Revenue Account Capital,36720.23,Deferred Charges/Grant Payments,2324P08_CR00470,33836
Sandwell Metropolitan Borough Council,http://www.sandwell.gov.uk/info/200202/performance_and_spending/1079/payments_over_500,08/11/2023,Housing Revenue Account Capital,R W SERVICES CONTRACTORS LIMITED,Housing Revenue Account Capital,59266.47,Operational Services ,2324P08_CR00471,68320
Sandwell Metropolitan Borough Council,http://www.sandwell.gov.uk/info/200202/performance_and_spending/1079/payments_over_500,01/11/2023,Housing Revenue Account Capital,RIDGE & PARTNERS LLP,Housing Revenue Account Capital,1040.00,CIP - Acquisition of Land & Existing Buildings,2324P08_CR00472,134994
Sandwell Metropolitan Borough Council,http://www.sandwell.gov.uk/info/200202/performance_and_spending/1079/payments_over_500,01/11/2023,Housing Revenue Account Capital,RIDGE & PARTNERS LLP,Housing Revenue Account Capital,2080.00,"CIP - New Construction,Conversion, Enhancement & Reno",2324P08_CR00473,134994
Sandwell Metropolitan Borough Council,http://www.sandwell.gov.uk/info/200202/performance_and_spending/1079/payments_over_500,01/11/2023,Housing Revenue Account Capital,RIDGE & PARTNERS LLP,Housing Revenue Account Capital,2080.00,"CIP - New Construction,Conversion, Enhancement & Reno",2324P08_CR00474,134994
Sandwell Metropolitan Borough Council,http://www.sandwell.gov.uk/info/200202/performance_and_spending/1079/payments_over_500,01/11/2023,Housing Revenue Account Capital,SEDDON CONSTRUCTION LIMITED,Housing Revenue Account Capital,542303.07,"CIP - New Construction,Conversion, Enhancement & Reno",2324P08_CR00475,132999
Sandwell Metropolitan Borough Council,http://www.sandwell.gov.uk/info/200202/performance_and_spending/1079/payments_over_500,01/11/2023,Housing Revenue Account Capital,SEDDON CONSTRUCTION LIMITED,Housing Revenue Account Capital,7969.95,"CIP - New Construction,Conversion, Enhancement & Reno",2324P08_CR00476,132999
Sandwell Metropolitan Borough Council,http://www.sandwell.gov.uk/info/200202/performance_and_spending/1079/payments_over_500,01/11/2023,Housing Revenue Account Capital,SELECT WINDOWS (HOME IMPROVEMENTS) LIMITED,Housing Revenue Account Capital,597.30,Contract Payments,2324P08_CR00477,42616
Sandwell Metropolitan Borough Council,http://www.sandwell.gov.uk/info/200202/performance_and_spending/1079/payments_over_500,01/11/2023,Housing Revenue Account Capital,SELECT WINDOWS (HOME IMPROVEMENTS) LIMITED,Housing Revenue Account Capital,504.69,Contract Payments,2324P08_CR00478,42616
Sandwell Metropolitan Borough Council,http://www.sandwell.gov.uk/info/200202/performance_and_spending/1079/payments_over_500,01/11/2023,Housing Revenue Account Capital,SELECT WINDOWS (HOME IMPROVEMENTS) LIMITED,Housing Revenue Account Capital,1244.92,Contract Payments,2324P08_CR00479,42616
Sandwell Metropolitan Borough Council,http://www.sandwell.gov.uk/info/200202/performance_and_spending/1079/payments_over_500,01/11/2023,Housing Revenue Account Capital,SELECT WINDOWS (HOME IMPROVEMENTS) LIMITED,Housing Revenue Account Capital,1281.32,Contract Payments,2324P08_CR00480,42616
Sandwell Metropolitan Borough Council,http://www.sandwell.gov.uk/info/200202/performance_and_spending/1079/payments_over_500,01/11/2023,Housing Revenue Account Capital,SELECT WINDOWS (HOME IMPROVEMENTS) LIMITED,Housing Revenue Account Capital,648.89,Contract Payments,2324P08_CR00481,42616
Sandwell Metropolitan Borough Council,http://www.sandwell.gov.uk/info/200202/performance_and_spending/1079/payments_over_500,01/11/2023,Housing Revenue Account Capital,SELECT WINDOWS (HOME IMPROVEMENTS) LIMITED,Housing Revenue Account Capital,540.75,Contract Payments,2324P08_CR00482,42616
Sandwell Metropolitan Borough Council,http://www.sandwell.gov.uk/info/200202/performance_and_spending/1079/payments_over_500,01/11/2023,Housing Revenue Account Capital,SELECT WINDOWS (HOME IMPROVEMENTS) LIMITED,Housing Revenue Account Capital,546.75,Contract Payments,2324P08_CR00483,42616
Sandwell Metropolitan Borough Council,http://www.sandwell.gov.uk/info/200202/performance_and_spending/1079/payments_over_500,01/11/2023,Housing Revenue Account Capital,SELECT WINDOWS (HOME IMPROVEMENTS) LIMITED,Housing Revenue Account Capital,811.12,Contract Payments,2324P08_CR00484,42616
Sandwell Metropolitan Borough Council,http://www.sandwell.gov.uk/info/200202/performance_and_spending/1079/payments_over_500,01/11/2023,Housing Revenue Account Capital,SELECT WINDOWS (HOME IMPROVEMENTS) LIMITED,Housing Revenue Account Capital,1083.34,Contract Payments,2324P08_CR00485,42616
Sandwell Metropolitan Borough Council,http://www.sandwell.gov.uk/info/200202/performance_and_spending/1079/payments_over_500,01/11/2023,Housing Revenue Account Capital,SELECT WINDOWS (HOME IMPROVEMENTS) LIMITED,Housing Revenue Account Capital,811.12,Contract Payments,2324P08_CR00486,42616
Sandwell Metropolitan Borough Council,http://www.sandwell.gov.uk/info/200202/performance_and_spending/1079/payments_over_500,01/11/2023,Housing Revenue Account Capital,SELECT WINDOWS (HOME IMPROVEMENTS) LIMITED,Housing Revenue Account Capital,1989.55,Contract Payments,2324P08_CR00487,42616
Sandwell Metropolitan Borough Council,http://www.sandwell.gov.uk/info/200202/performance_and_spending/1079/payments_over_500,06/11/2023,Housing Revenue Account Capital,SELECT WINDOWS (HOME IMPROVEMENTS) LIMITED,Housing Revenue Account Capital,811.12,Contract Payments,2324P08_CR00488,42616
Sandwell Metropolitan Borough Council,http://www.sandwell.gov.uk/info/200202/performance_and_spending/1079/payments_over_500,01/11/2023,Housing Revenue Account Capital,SELECT WINDOWS (HOME IMPROVEMENTS) LIMITED,Housing Revenue Account Capital,1371.10,Contract Payments,2324P08_CR00489,42616
Sandwell Metropolitan Borough Council,http://www.sandwell.gov.uk/info/200202/performance_and_spending/1079/payments_over_500,01/11/2023,Housing Revenue Account Capital,SELECT WINDOWS (HOME IMPROVEMENTS) LIMITED,Housing Revenue Account Capital,575.06,Contract Payments,2324P08_CR00490,42616
Sandwell Metropolitan Borough Council,http://www.sandwell.gov.uk/info/200202/performance_and_spending/1079/payments_over_500,01/11/2023,Housing Revenue Account Capital,SELECT WINDOWS (HOME IMPROVEMENTS) LIMITED,Housing Revenue Account Capital,1286.07,Contract Payments,2324P08_CR00491,42616
Sandwell Metropolitan Borough Council,http://www.sandwell.gov.uk/info/200202/performance_and_spending/1079/payments_over_500,01/11/2023,Housing Revenue Account Capital,SELECT WINDOWS (HOME IMPROVEMENTS) LIMITED,Housing Revenue Account Capital,1161.24,Contract Payments,2324P08_CR00492,42616
Sandwell Metropolitan Borough Council,http://www.sandwell.gov.uk/info/200202/performance_and_spending/1079/payments_over_500,06/11/2023,Housing Revenue Account Capital,SELECT WINDOWS (HOME IMPROVEMENTS) LIMITED,Housing Revenue Account Capital,582.50,Contract Payments,2324P08_CR00493,42616
Sandwell Metropolitan Borough Council,http://www.sandwell.gov.uk/info/200202/performance_and_spending/1079/payments_over_500,20/11/2023,Housing Revenue Account Capital,SPELLER METCALFE MALVERN LIMITED,Housing Revenue Account Capital,9604.55,"CIP - New Construction,Conversion, Enhancement & Reno",2324P08_CR00494,92473
Sandwell Metropolitan Borough Council,http://www.sandwell.gov.uk/info/200202/performance_and_spending/1079/payments_over_500,03/11/2023,Housing Revenue Account Capital,SURE MAINTENANCE LIMITED,Housing Revenue Account Capital,175250.92,"CIP - New Construction,Conversion, Enhancement & Reno",2324P08_CR00495,93926
Sandwell Metropolitan Borough Council,http://www.sandwell.gov.uk/info/200202/performance_and_spending/1079/payments_over_500,06/11/2023,Housing Revenue Account Capital,SYCAMORE WINDOWS & CONSERVATORIES LIMITED,Housing Revenue Account Capital,269609.22,"CIP - New Construction,Conversion, Enhancement & Reno",2324P08_CR00496,145272
Sandwell Metropolitan Borough Council,http://www.sandwell.gov.uk/info/200202/performance_and_spending/1079/payments_over_500,01/11/2023,Housing Revenue Account Capital,THERMABEAD LTD,Housing Revenue Account Capital,59935.50,"CIP - New Construction,Conversion, Enhancement & Reno",2324P08_CR00497,166829
Sandwell Metropolitan Borough Council,http://www.sandwell.gov.uk/info/200202/performance_and_spending/1079/payments_over_500,14/11/2023,Housing Revenue Account Capital,TRICAS CONSTRUCTION LIMITED,Housing Revenue Account Capital,87305.60,"CIP - New Construction,Conversion, Enhancement & Reno",2324P08_CR00498,165600
Sandwell Metropolitan Borough Council,http://www.sandwell.gov.uk/info/200202/performance_and_spending/1079/payments_over_500,08/11/2023,Housing Revenue Account Capital,VINCI CONSTRUCTION LTD,Housing Revenue Account Capital,8489.83,Deferred Charges/Grant Payments,2324P08_CR00499,36361
Sandwell Metropolitan Borough Council,http://www.sandwell.gov.uk/info/200202/performance_and_spending/1079/payments_over_500,08/11/2023,Housing Revenue Account Capital,VINCI CONSTRUCTION LTD,Housing Revenue Account Capital,7727.23,Deferred Charges/Grant Payments,2324P08_CR00500,36361
Sandwell Metropolitan Borough Council,http://www.sandwell.gov.uk/info/200202/performance_and_spending/1079/payments_over_500,14/11/2023,Housing Revenue Account Capital,VINCI CONSTRUCTION LTD,Housing Revenue Account Capital,98457.20,Deferred Charges/Grant Payments,2324P08_CR00501,36361
Sandwell Metropolitan Borough Council,http://www.sandwell.gov.uk/info/200202/performance_and_spending/1079/payments_over_500,01/11/2023,Housing Revenue Account Capital,VINCI CONSTRUCTION LTD,Housing Revenue Account Capital,85942.42,Deferred Charges/Grant Payments,2324P08_CR00502,36361
Sandwell Metropolitan Borough Council,http://www.sandwell.gov.uk/info/200202/performance_and_spending/1079/payments_over_500,01/11/2023,Housing Revenue Account Capital,VINCI CONSTRUCTION LTD,Housing Revenue Account Capital,12661.14,Deferred Charges/Grant Payments,2324P08_CR00503,36361
Sandwell Metropolitan Borough Council,http://www.sandwell.gov.uk/info/200202/performance_and_spending/1079/payments_over_500,01/11/2023,Housing Revenue Account Capital,VINCI CONSTRUCTION LTD,Housing Revenue Account Capital,8749.93,Deferred Charges/Grant Payments,2324P08_CR00504,36361
Sandwell Metropolitan Borough Council,http://www.sandwell.gov.uk/info/200202/performance_and_spending/1079/payments_over_500,01/11/2023,Housing Revenue Account Capital,VINCI CONSTRUCTION LTD,Housing Revenue Account Capital,5184.37,Deferred Charges/Grant Payments,2324P08_CR00505,36361
Sandwell Metropolitan Borough Council,http://www.sandwell.gov.uk/info/200202/performance_and_spending/1079/payments_over_500,01/11/2023,Housing Revenue Account Capital,VINCI CONSTRUCTION LTD,Housing Revenue Account Capital,1649.74,Deferred Charges/Grant Payments,2324P08_CR00506,36361
Sandwell Metropolitan Borough Council,http://www.sandwell.gov.uk/info/200202/performance_and_spending/1079/payments_over_500,15/11/2023,Housing Revenue Account Capital,WEIGHTMANS LLP,Housing Revenue Account Capital,409500.00,CIP - Acquisition of Land & Existing Buildings,2324P08_CR00507,120965
Sandwell Metropolitan Borough Council,http://www.sandwell.gov.uk/info/200202/performance_and_spending/1079/payments_over_500,01/11/2023,Housing Revenue Account Capital,WESSEX LIFT CO LTD,Housing Revenue Account Capital,12919.00,Building Maintenance & Improvements,2324P08_CR00508,01095737
Sandwell Metropolitan Borough Council,http://www.sandwell.gov.uk/info/200202/performance_and_spending/1079/payments_over_500,01/11/2023,Housing Revenue Account Capital,WESSEX LIFT CO LTD,Housing Revenue Account Capital,8980.00,Deferred Charges/Grant Payments,2324P08_CR00509,01095737
Sandwell Metropolitan Borough Council,http://www.sandwell.gov.uk/info/200202/performance_and_spending/1079/payments_over_500,01/11/2023,Housing Revenue Account Capital,WESSEX LIFT CO LTD,Housing Revenue Account Capital,11200.48,Deferred Charges/Grant Payments,2324P08_CR00510,01095737
Sandwell Metropolitan Borough Council,http://www.sandwell.gov.uk/info/200202/performance_and_spending/1079/payments_over_500,24/11/2023,Housing Revenue Account Capital,WESSEX LIFT CO LTD,Housing Revenue Account Capital,10001.94,Deferred Charges/Grant Payments,2324P08_CR00511,01095737
Sandwell Metropolitan Borough Council,http://www.sandwell.gov.uk/info/200202/performance_and_spending/1079/payments_over_500,10/11/2023,Housing Revenue Account Capital,EASIBATHE LTD,Housing Revenue Account Capital,2460.82,Deferred Charges/Grant Payments,2324P08_CR00512,46096
Sandwell Metropolitan Borough Council,http://www.sandwell.gov.uk/info/200202/performance_and_spending/1079/payments_over_500,09/11/2023,Housing Revenue Account Capital,LIFT & ENGINEERING SERVICES LTD,Housing Revenue Account Capital,1313.90,"CIP - New Construction,Conversion, Enhancement & Reno",2324P08_CR00513,77003962
Sandwell Metropolitan Borough Council,http://www.sandwell.gov.uk/info/200202/performance_and_spending/1079/payments_over_500,09/11/2023,Housing Revenue Account Capital,LIFT & ENGINEERING SERVICES LTD,Housing Revenue Account Capital,1324.99,"CIP - New Construction,Conversion, Enhancement & Reno",2324P08_CR00514,77003962
Sandwell Metropolitan Borough Council,http://www.sandwell.gov.uk/info/200202/performance_and_spending/1079/payments_over_500,22/11/2023,Individual School Budgets With Inclusion,5 STAR DAY NURSERY - OLDBURY,Individual School Budgets With Inclusion,6539.40,Grant Payments,2324P08_CR00515,120730
Sandwell Metropolitan Borough Council,http://www.sandwell.gov.uk/info/200202/performance_and_spending/1079/payments_over_500,22/11/2023,Individual School Budgets With Inclusion,5 STAR DAY NURSERY LIMITED,Individual School Budgets With Inclusion,4810.05,Grant Payments,2324P08_CR00516,105382
Sandwell Metropolitan Borough Council,http://www.sandwell.gov.uk/info/200202/performance_and_spending/1079/payments_over_500,22/11/2023,Individual School Budgets With Inclusion,ABC DAY NURSERY & PRE SCHOOL LTD,Individual School Budgets With Inclusion,9984.45,Grant Payments,2324P08_CR00517,01472823
Sandwell Metropolitan Borough Council,http://www.sandwell.gov.uk/info/200202/performance_and_spending/1079/payments_over_500,22/11/2023,Individual School Budgets With Inclusion,REDACTED PERSONAL DATA,Individual School Budgets With Inclusion,1962.45,Grant Payments,2324P08_CR00518,REDACTED PERSONAL DATA
Sandwell Metropolitan Borough Council,http://www.sandwell.gov.uk/info/200202/performance_and_spending/1079/payments_over_500,22/11/2023,Individual School Budgets With Inclusion,ADVENTURE QUEST (GREAT BRIDGE) LTD,Individual School Budgets With Inclusion,5721.98,Grant Payments,2324P08_CR00519,153563
Sandwell Metropolitan Borough Council,http://www.sandwell.gov.uk/info/200202/performance_and_spending/1079/payments_over_500,22/11/2023,Individual School Budgets With Inclusion,AL KAHIR SCHOOL,Individual School Budgets With Inclusion,4047.75,Grant Payments,2324P08_CR00520,128728
Sandwell Metropolitan Borough Council,http://www.sandwell.gov.uk/info/200202/performance_and_spending/1079/payments_over_500,22/11/2023,Individual School Budgets With Inclusion,REDACTED PERSONAL DATA T/A HONEYBEES HOME NURSERY,Individual School Budgets With Inclusion,801.68,Grant Payments,2324P08_CR00521,REDACTED PERSONAL DATA
Sandwell Metropolitan Borough Council,http://www.sandwell.gov.uk/info/200202/performance_and_spending/1079/payments_over_500,22/11/2023,Individual School Budgets With Inclusion,BABY STEPS DAY CARE,Individual School Budgets With Inclusion,1603.35,Grant Payments,2324P08_CR00522,165672
Sandwell Metropolitan Borough Council,http://www.sandwell.gov.uk/info/200202/performance_and_spending/1079/payments_over_500,22/11/2023,Individual School Budgets With Inclusion,BANANA MOON DAY NURSERY,Individual School Budgets With Inclusion,4087.13,Grant Payments,2324P08_CR00523,124220
Sandwell Metropolitan Borough Council,http://www.sandwell.gov.uk/info/200202/performance_and_spending/1079/payments_over_500,22/11/2023,Individual School Budgets With Inclusion,BOOKWORMS DAYCARE LIMITED,Individual School Budgets With Inclusion,7555.80,Grant Payments,2324P08_CR00524,114741
Sandwell Metropolitan Borough Council,http://www.sandwell.gov.uk/info/200202/performance_and_spending/1079/payments_over_500,22/11/2023,Individual School Budgets With Inclusion,BRIGHT LIGHTS DAY NURSERY,Individual School Budgets With Inclusion,8979.78,Grant Payments,2324P08_CR00525,89877
Sandwell Metropolitan Borough Council,http://www.sandwell.gov.uk/info/200202/performance_and_spending/1079/payments_over_500,22/11/2023,Individual School Budgets With Inclusion,BUSY BEE NURSERY,Individual School Budgets With Inclusion,8635.20,Grant Payments,2324P08_CR00526,01222577
Sandwell Metropolitan Borough Council,http://www.sandwell.gov.uk/info/200202/performance_and_spending/1079/payments_over_500,22/11/2023,Individual School Budgets With Inclusion,CAP DAY NURSERY,Individual School Budgets With Inclusion,2777.25,Grant Payments,2324P08_CR00527,51154
Sandwell Metropolitan Borough Council,http://www.sandwell.gov.uk/info/200202/performance_and_spending/1079/payments_over_500,22/11/2023,Individual School Budgets With Inclusion,REDACTED PERSONAL DATA,Individual School Budgets With Inclusion,534.45,Grant Payments,2324P08_CR00528,REDACTED PERSONAL DATA
Sandwell Metropolitan Borough Council,http://www.sandwell.gov.uk/info/200202/performance_and_spending/1079/payments_over_500,22/11/2023,Individual School Budgets With Inclusion,CONFEDERATION OF BANGLADESHI ORGANISATIONS (CBO) LIMITED,Individual School Budgets With Inclusion,1944.08,Grant Payments,2324P08_CR00529,10034
Sandwell Metropolitan Borough Council,http://www.sandwell.gov.uk/info/200202/performance_and_spending/1079/payments_over_500,22/11/2023,Individual School Budgets With Inclusion,CONIFERS DAY NURSERY LTD,Individual School Budgets With Inclusion,7356.83,Grant Payments,2324P08_CR00530,131957
Sandwell Metropolitan Borough Council,http://www.sandwell.gov.uk/info/200202/performance_and_spending/1079/payments_over_500,22/11/2023,Individual School Budgets With Inclusion,DAFFODILS NURSERY LTD,Individual School Budgets With Inclusion,6943.13,Grant Payments,2324P08_CR00531,120066
Sandwell Metropolitan Borough Council,http://www.sandwell.gov.uk/info/200202/performance_and_spending/1079/payments_over_500,22/11/2023,Individual School Budgets With Inclusion,FAIRYTALES NURSERY LTD,Individual School Budgets With Inclusion,7555.80,Grant Payments,2324P08_CR00532,106247
Sandwell Metropolitan Borough Council,http://www.sandwell.gov.uk/info/200202/performance_and_spending/1079/payments_over_500,22/11/2023,Individual School Budgets With Inclusion,FATIMA DAY NURSERY,Individual School Budgets With Inclusion,4904.55,Grant Payments,2324P08_CR00533,131343
Sandwell Metropolitan Borough Council,http://www.sandwell.gov.uk/info/200202/performance_and_spending/1079/payments_over_500,22/11/2023,Individual School Budgets With Inclusion,FIREFLIES NURSERY LIMITED,Individual School Budgets With Inclusion,10899.00,Grant Payments,2324P08_CR00534,124120
Sandwell Metropolitan Borough Council,http://www.sandwell.gov.uk/info/200202/performance_and_spending/1079/payments_over_500,22/11/2023,Individual School Budgets With Inclusion,FIRST STEPS DAY NURSERY,Individual School Budgets With Inclusion,9264.15,Grant Payments,2324P08_CR00535,51155
Sandwell Metropolitan Borough Council,http://www.sandwell.gov.uk/info/200202/performance_and_spending/1079/payments_over_500,22/11/2023,Individual School Budgets With Inclusion,FIRST STEPS OLDBURY,Individual School Budgets With Inclusion,5994.45,Grant Payments,2324P08_CR00536,118886
Sandwell Metropolitan Borough Council,http://www.sandwell.gov.uk/info/200202/performance_and_spending/1079/payments_over_500,22/11/2023,Individual School Budgets With Inclusion,REDACTED PERSONAL DATA,Individual School Budgets With Inclusion,2137.80,Grant Payments,2324P08_CR00537,REDACTED PERSONAL DATA
Sandwell Metropolitan Borough Council,http://www.sandwell.gov.uk/info/200202/performance_and_spending/1079/payments_over_500,22/11/2023,Individual School Budgets With Inclusion,REDACTED PERSONAL DATA,Individual School Budgets With Inclusion,534.45,Grant Payments,2324P08_CR00538,REDACTED PERSONAL DATA
Sandwell Metropolitan Borough Council,http://www.sandwell.gov.uk/info/200202/performance_and_spending/1079/payments_over_500,22/11/2023,Individual School Budgets With Inclusion,GNG NURSERY,Individual School Budgets With Inclusion,6266.93,Grant Payments,2324P08_CR00539,114805
Sandwell Metropolitan Borough Council,http://www.sandwell.gov.uk/info/200202/performance_and_spending/1079/payments_over_500,22/11/2023,Individual School Budgets With Inclusion,HAPPY DAYS NURSERY (GREETS GREEN),Individual School Budgets With Inclusion,4721.33,Grant Payments,2324P08_CR00540,125840
Sandwell Metropolitan Borough Council,http://www.sandwell.gov.uk/info/200202/performance_and_spending/1079/payments_over_500,22/11/2023,Individual School Budgets With Inclusion,REDACTED PERSONAL DATA,Individual School Budgets With Inclusion,560.70,Grant Payments,2324P08_CR00541,REDACTED PERSONAL DATA
Sandwell Metropolitan Borough Council,http://www.sandwell.gov.uk/info/200202/performance_and_spending/1079/payments_over_500,22/11/2023,Individual School Budgets With Inclusion,HUMPTY DUMPTYS DAY NURSERY,Individual School Budgets With Inclusion,13623.75,Grant Payments,2324P08_CR00542,08510771
Sandwell Metropolitan Borough Council,http://www.sandwell.gov.uk/info/200202/performance_and_spending/1079/payments_over_500,22/11/2023,Individual School Budgets With Inclusion,REDACTED PERSONAL DATA,Individual School Budgets With Inclusion,1666.35,Grant Payments,2324P08_CR00543,REDACTED PERSONAL DATA
Sandwell Metropolitan Borough Council,http://www.sandwell.gov.uk/info/200202/performance_and_spending/1079/payments_over_500,22/11/2023,Individual School Budgets With Inclusion,JUNIPER'S PRESCHOOL,Individual School Budgets With Inclusion,5936.70,Grant Payments,2324P08_CR00544,154579
Sandwell Metropolitan Borough Council,http://www.sandwell.gov.uk/info/200202/performance_and_spending/1079/payments_over_500,22/11/2023,Individual School Budgets With Inclusion,KANGAROO POUCH AT GREAT BRIDGE,Individual School Budgets With Inclusion,6811.88,Grant Payments,2324P08_CR00545,129771
Sandwell Metropolitan Borough Council,http://www.sandwell.gov.uk/info/200202/performance_and_spending/1079/payments_over_500,22/11/2023,Individual School Budgets With Inclusion,KANGAROO POUCH AT TIVIDALE,Individual School Budgets With Inclusion,4008.38,Grant Payments,2324P08_CR00546,113715
Sandwell Metropolitan Borough Council,http://www.sandwell.gov.uk/info/200202/performance_and_spending/1079/payments_over_500,22/11/2023,Individual School Budgets With Inclusion,KANGAROO POUCH CHARLEMONT,Individual School Budgets With Inclusion,3888.15,Grant Payments,2324P08_CR00547,117283
Sandwell Metropolitan Borough Council,http://www.sandwell.gov.uk/info/200202/performance_and_spending/1079/payments_over_500,22/11/2023,Individual School Budgets With Inclusion,KANGAROO POUCH LIMITED,Individual School Budgets With Inclusion,5994.45,Grant Payments,2324P08_CR00548,106981
Sandwell Metropolitan Borough Council,http://www.sandwell.gov.uk/info/200202/performance_and_spending/1079/payments_over_500,22/11/2023,Individual School Budgets With Inclusion,LAVENDER FARM DAY NURSERY,Individual School Budgets With Inclusion,28064.93,Grant Payments,2324P08_CR00549,65596
Sandwell Metropolitan Borough Council,http://www.sandwell.gov.uk/info/200202/performance_and_spending/1079/payments_over_500,22/11/2023,Individual School Budgets With Inclusion,LILLIPUT LODGE CHILDRENS DAY NURSERY,Individual School Budgets With Inclusion,9984.45,Grant Payments,2324P08_CR00550,2980
Sandwell Metropolitan Borough Council,http://www.sandwell.gov.uk/info/200202/performance_and_spending/1079/payments_over_500,22/11/2023,Individual School Budgets With Inclusion,LITTLE ACADEMY NURSERY,Individual School Budgets With Inclusion,3777.90,Grant Payments,2324P08_CR00551,81904
Sandwell Metropolitan Borough Council,http://www.sandwell.gov.uk/info/200202/performance_and_spending/1079/payments_over_500,22/11/2023,Individual School Budgets With Inclusion,LITTLE ANGELS DAY NURSERY LIMITED,Individual School Budgets With Inclusion,2452.28,Grant Payments,2324P08_CR00552,10207
Sandwell Metropolitan Borough Council,http://www.sandwell.gov.uk/info/200202/performance_and_spending/1079/payments_over_500,22/11/2023,Individual School Budgets With Inclusion,LITTLE EXPLORERS (WEST MIDLANDS) LTD,Individual School Budgets With Inclusion,15531.08,Grant Payments,2324P08_CR00553,114804
Sandwell Metropolitan Borough Council,http://www.sandwell.gov.uk/info/200202/performance_and_spending/1079/payments_over_500,22/11/2023,Individual School Budgets With Inclusion,LITTLE LEARNERS LTD,Individual School Budgets With Inclusion,8130.15,Grant Payments,2324P08_CR00554,01424133
Sandwell Metropolitan Borough Council,http://www.sandwell.gov.uk/info/200202/performance_and_spending/1079/payments_over_500,22/11/2023,Individual School Budgets With Inclusion,LITTLE LEGEND NURSERIES LTD,Individual School Budgets With Inclusion,3667.65,Grant Payments,2324P08_CR00555,117890
Sandwell Metropolitan Borough Council,http://www.sandwell.gov.uk/info/200202/performance_and_spending/1079/payments_over_500,22/11/2023,Individual School Budgets With Inclusion,LITTLE SAPLINGS CHILDCARE CENTRES,Individual School Budgets With Inclusion,8365.35,Grant Payments,2324P08_CR00556,131043
Sandwell Metropolitan Borough Council,http://www.sandwell.gov.uk/info/200202/performance_and_spending/1079/payments_over_500,22/11/2023,Individual School Budgets With Inclusion,LITTLE STEPPERS,Individual School Budgets With Inclusion,4177.95,Grant Payments,2324P08_CR00557,120240
Sandwell Metropolitan Borough Council,http://www.sandwell.gov.uk/info/200202/performance_and_spending/1079/payments_over_500,22/11/2023,Individual School Budgets With Inclusion,LITTLE VALERS PRE SCHOOL,Individual School Budgets With Inclusion,11757.90,Grant Payments,2324P08_CR00558,99107
Sandwell Metropolitan Borough Council,http://www.sandwell.gov.uk/info/200202/performance_and_spending/1079/payments_over_500,22/11/2023,Individual School Budgets With Inclusion,LITTLE WENDY HOUSE DAY NURSERY,Individual School Budgets With Inclusion,12261.38,Grant Payments,2324P08_CR00559,91544
Sandwell Metropolitan Borough Council,http://www.sandwell.gov.uk/info/200202/performance_and_spending/1079/payments_over_500,22/11/2023,Individual School Budgets With Inclusion,LOLA BELLES PRIVATE DAY NURSERY,Individual School Budgets With Inclusion,9174.90,Grant Payments,2324P08_CR00560,89271
Sandwell Metropolitan Borough Council,http://www.sandwell.gov.uk/info/200202/performance_and_spending/1079/payments_over_500,22/11/2023,Individual School Budgets With Inclusion,MINI MONKEYS LTD,Individual School Budgets With Inclusion,9264.15,Grant Payments,2324P08_CR00561,114818
Sandwell Metropolitan Borough Council,http://www.sandwell.gov.uk/info/200202/performance_and_spending/1079/payments_over_500,22/11/2023,Individual School Budgets With Inclusion,MINNS LIMITED,Individual School Budgets With Inclusion,5177.03,Grant Payments,2324P08_CR00562,120067
Sandwell Metropolitan Borough Council,http://www.sandwell.gov.uk/info/200202/performance_and_spending/1079/payments_over_500,22/11/2023,Individual School Budgets With Inclusion,MOORLANDS LITTLE LEARNERS PLAYGROUP,Individual School Budgets With Inclusion,8446.73,Grant Payments,2324P08_CR00563,46390
Sandwell Metropolitan Borough Council,http://www.sandwell.gov.uk/info/200202/performance_and_spending/1079/payments_over_500,22/11/2023,Individual School Budgets With Inclusion,N & K VARMA LIMITED T/A (KIDDIES PLAYHOUSE TIPTON),Individual School Budgets With Inclusion,6811.88,Grant Payments,2324P08_CR00564,26124
Sandwell Metropolitan Borough Council,http://www.sandwell.gov.uk/info/200202/performance_and_spending/1079/payments_over_500,22/11/2023,Individual School Budgets With Inclusion,OUR LADY AND ST HUBERTS CATHOLIC PRIMARY SCHOOL  ,Individual School Budgets With Inclusion,12806.33,Grant Payments,2324P08_CR00565,61053
Sandwell Metropolitan Borough Council,http://www.sandwell.gov.uk/info/200202/performance_and_spending/1079/payments_over_500,22/11/2023,Individual School Budgets With Inclusion,PERRYFIELDS PRE SCHOOL,Individual School Budgets With Inclusion,11072.85,Grant Payments,2324P08_CR00566,18879
Sandwell Metropolitan Borough Council,http://www.sandwell.gov.uk/info/200202/performance_and_spending/1079/payments_over_500,22/11/2023,Individual School Budgets With Inclusion,PITTA PATTA DAYCARE,Individual School Budgets With Inclusion,6266.93,Grant Payments,2324P08_CR00567,114742
Sandwell Metropolitan Borough Council,http://www.sandwell.gov.uk/info/200202/performance_and_spending/1079/payments_over_500,22/11/2023,Individual School Budgets With Inclusion,PLAYHOUSE DAY NURSERY,Individual School Budgets With Inclusion,3269.70,Grant Payments,2324P08_CR00568,01586669
Sandwell Metropolitan Borough Council,http://www.sandwell.gov.uk/info/200202/performance_and_spending/1079/payments_over_500,22/11/2023,Individual School Budgets With Inclusion,PRECIOUS TIMES DAY NURSERY,Individual School Budgets With Inclusion,8365.35,Grant Payments,2324P08_CR00569,165946
Sandwell Metropolitan Borough Council,http://www.sandwell.gov.uk/info/200202/performance_and_spending/1079/payments_over_500,22/11/2023,Individual School Budgets With Inclusion,RAK DAY CARE LTD T/A HAPPY VALLEY PRE SCHOOL LTD,Individual School Budgets With Inclusion,6266.93,Grant Payments,2324P08_CR00570,01572212
Sandwell Metropolitan Borough Council,http://www.sandwell.gov.uk/info/200202/performance_and_spending/1079/payments_over_500,22/11/2023,Individual School Budgets With Inclusion,RARE WOOD LIMITED,Individual School Budgets With Inclusion,14997.15,Grant Payments,2324P08_CR00571,20167
Sandwell Metropolitan Borough Council,http://www.sandwell.gov.uk/info/200202/performance_and_spending/1079/payments_over_500,22/11/2023,Individual School Budgets With Inclusion,ROOTS & SHOOTS PLAYGROUP,Individual School Budgets With Inclusion,3337.43,Grant Payments,2324P08_CR00572,75502
Sandwell Metropolitan Borough Council,http://www.sandwell.gov.uk/info/200202/performance_and_spending/1079/payments_over_500,22/11/2023,Individual School Budgets With Inclusion,REDACTED PERSONAL DATA,Individual School Budgets With Inclusion,1079.40,Grant Payments,2324P08_CR00573,REDACTED PERSONAL DATA
Sandwell Metropolitan Borough Council,http://www.sandwell.gov.uk/info/200202/performance_and_spending/1079/payments_over_500,22/11/2023,Individual School Budgets With Inclusion,ROWLEY VILLAGE DAY NURSERY,Individual School Budgets With Inclusion,8991.68,Grant Payments,2324P08_CR00574,24228
Sandwell Metropolitan Borough Council,http://www.sandwell.gov.uk/info/200202/performance_and_spending/1079/payments_over_500,22/11/2023,Individual School Budgets With Inclusion,SADWICA DAY NURSERY,Individual School Budgets With Inclusion,6266.93,Grant Payments,2324P08_CR00575,01667892
Sandwell Metropolitan Borough Council,http://www.sandwell.gov.uk/info/200202/performance_and_spending/1079/payments_over_500,22/11/2023,Individual School Budgets With Inclusion,SANDWELL NHS TRUST DAY NURSERY,Individual School Budgets With Inclusion,13078.80,Grant Payments,2324P08_CR00576,40788
Sandwell Metropolitan Borough Council,http://www.sandwell.gov.uk/info/200202/performance_and_spending/1079/payments_over_500,22/11/2023,Individual School Budgets With Inclusion,SANTOS DAY NURSERIES,Individual School Budgets With Inclusion,10154.55,Grant Payments,2324P08_CR00577,129262
Sandwell Metropolitan Borough Council,http://www.sandwell.gov.uk/info/200202/performance_and_spending/1079/payments_over_500,22/11/2023,Individual School Budgets With Inclusion,SMARTY PANTS @ LIGHTWOODS HOUSE LTD,Individual School Budgets With Inclusion,5878.95,Grant Payments,2324P08_CR00578,130645
Sandwell Metropolitan Borough Council,http://www.sandwell.gov.uk/info/200202/performance_and_spending/1079/payments_over_500,22/11/2023,Individual School Budgets With Inclusion,SMARTY PANTS PRIVATE DAY NURSERY LTD,Individual School Budgets With Inclusion,14713.65,Grant Payments,2324P08_CR00579,74037
Sandwell Metropolitan Borough Council,http://www.sandwell.gov.uk/info/200202/performance_and_spending/1079/payments_over_500,22/11/2023,Individual School Budgets With Inclusion,SPON LANE DAY NURSERY LIMITED,Individual School Budgets With Inclusion,6943.13,Grant Payments,2324P08_CR00580,127024
Sandwell Metropolitan Borough Council,http://www.sandwell.gov.uk/info/200202/performance_and_spending/1079/payments_over_500,22/11/2023,Individual School Budgets With Inclusion,ST HUBERTS PRE-SCHOOL PLAYGROUP 2,Individual School Budgets With Inclusion,12772.90,Grant Payments,2324P08_CR00581,123074
Sandwell Metropolitan Borough Council,http://www.sandwell.gov.uk/info/200202/performance_and_spending/1079/payments_over_500,22/11/2023,Individual School Budgets With Inclusion,ST MICHAELS DAY NURSERY,Individual School Budgets With Inclusion,3610.43,Grant Payments,2324P08_CR00582,01698538
Sandwell Metropolitan Borough Council,http://www.sandwell.gov.uk/info/200202/performance_and_spending/1079/payments_over_500,22/11/2023,Individual School Budgets With Inclusion,STACEY PARTRIDGE (STEP UP CHILDCARE),Individual School Budgets With Inclusion,534.45,Grant Payments,2324P08_CR00583,151395
Sandwell Metropolitan Borough Council,http://www.sandwell.gov.uk/info/200202/performance_and_spending/1079/payments_over_500,22/11/2023,Individual School Budgets With Inclusion,STEPPING STONES NURSERY,Individual School Budgets With Inclusion,4857.30,Grant Payments,2324P08_CR00584,50029
Sandwell Metropolitan Borough Council,http://www.sandwell.gov.uk/info/200202/performance_and_spending/1079/payments_over_500,22/11/2023,Individual School Budgets With Inclusion,TENDER TROOPS DAY NURSERY AND CHILDREN HUB,Individual School Budgets With Inclusion,3083.85,Grant Payments,2324P08_CR00585,164824
Sandwell Metropolitan Borough Council,http://www.sandwell.gov.uk/info/200202/performance_and_spending/1079/payments_over_500,22/11/2023,Individual School Budgets With Inclusion,THE FAMILY NURSERY COMPANY LTD,Individual School Budgets With Inclusion,9536.63,Grant Payments,2324P08_CR00586,89879
Sandwell Metropolitan Borough Council,http://www.sandwell.gov.uk/info/200202/performance_and_spending/1079/payments_over_500,22/11/2023,Individual School Budgets With Inclusion,THE OLD STATION NURSERY,Individual School Budgets With Inclusion,5549.38,Grant Payments,2324P08_CR00587,166979
Sandwell Metropolitan Borough Council,http://www.sandwell.gov.uk/info/200202/performance_and_spending/1079/payments_over_500,22/11/2023,Individual School Budgets With Inclusion,THE RIVERS MULTI ACADEMY TRUST,Individual School Budgets With Inclusion,24250.28,Grant Payments,2324P08_CR00588,61014
Sandwell Metropolitan Borough Council,http://www.sandwell.gov.uk/info/200202/performance_and_spending/1079/payments_over_500,22/11/2023,Individual School Budgets With Inclusion,THE TODDLER HOUSE LIMITED,Individual School Budgets With Inclusion,4087.13,Grant Payments,2324P08_CR00589,122166
Sandwell Metropolitan Borough Council,http://www.sandwell.gov.uk/info/200202/performance_and_spending/1079/payments_over_500,22/11/2023,Individual School Budgets With Inclusion,THE WONDER YEARS DAY NURSERY LIMITED,Individual School Budgets With Inclusion,11443.95,Grant Payments,2324P08_CR00590,01647249
Sandwell Metropolitan Borough Council,http://www.sandwell.gov.uk/info/200202/performance_and_spending/1079/payments_over_500,22/11/2023,Individual School Budgets With Inclusion,TICK TOCK DAY NURSERY LTD,Individual School Budgets With Inclusion,8664.71,Grant Payments,2324P08_CR00591,9391
Sandwell Metropolitan Borough Council,http://www.sandwell.gov.uk/info/200202/performance_and_spending/1079/payments_over_500,22/11/2023,Individual School Budgets With Inclusion,TIDDLYWINKS KIDDYS NURSERY LIMITED,Individual School Budgets With Inclusion,11443.95,Grant Payments,2324P08_CR00592,110667
Sandwell Metropolitan Borough Council,http://www.sandwell.gov.uk/info/200202/performance_and_spending/1079/payments_over_500,22/11/2023,Individual School Budgets With Inclusion,TIMBERTREE NEIGHBOURHOOD NURSERY,Individual School Budgets With Inclusion,5289.06,Grant Payments,2324P08_CR00593,135664
Sandwell Metropolitan Borough Council,http://www.sandwell.gov.uk/info/200202/performance_and_spending/1079/payments_over_500,22/11/2023,Individual School Budgets With Inclusion,TINY TOEZ LIMITED,Individual School Budgets With Inclusion,5077.28,Grant Payments,2324P08_CR00594,23618
Sandwell Metropolitan Borough Council,http://www.sandwell.gov.uk/info/200202/performance_and_spending/1079/payments_over_500,22/11/2023,Individual School Budgets With Inclusion,"TINYWOODS PRESCHOOL,",Individual School Budgets With Inclusion,13949.15,Grant Payments,2324P08_CR00595,91788
Sandwell Metropolitan Borough Council,http://www.sandwell.gov.uk/info/200202/performance_and_spending/1079/payments_over_500,22/11/2023,Individual School Budgets With Inclusion,TIP TOP DAY NURSERY WEDNESBURY,Individual School Budgets With Inclusion,7901.78,Grant Payments,2324P08_CR00596,147082
Sandwell Metropolitan Borough Council,http://www.sandwell.gov.uk/info/200202/performance_and_spending/1079/payments_over_500,22/11/2023,Individual School Budgets With Inclusion,TIPTON NURSERY,Individual School Budgets With Inclusion,6943.13,Grant Payments,2324P08_CR00597,89881
Sandwell Metropolitan Borough Council,http://www.sandwell.gov.uk/info/200202/performance_and_spending/1079/payments_over_500,22/11/2023,Individual School Budgets With Inclusion,TIPTON TODDLERS DAY NURSERY,Individual School Budgets With Inclusion,7285.95,Grant Payments,2324P08_CR00598,4397
Sandwell Metropolitan Borough Council,http://www.sandwell.gov.uk/info/200202/performance_and_spending/1079/payments_over_500,22/11/2023,Individual School Budgets With Inclusion,TULIP DAY NURSERY LTD,Individual School Budgets With Inclusion,3888.15,Grant Payments,2324P08_CR00599,152250
Sandwell Metropolitan Borough Council,http://www.sandwell.gov.uk/info/200202/performance_and_spending/1079/payments_over_500,22/11/2023,Individual School Budgets With Inclusion,TWO STEPS PRE-SCHOOL,Individual School Budgets With Inclusion,2803.50,Grant Payments,2324P08_CR00600,109186
Sandwell Metropolitan Borough Council,http://www.sandwell.gov.uk/info/200202/performance_and_spending/1079/payments_over_500,22/11/2023,Individual School Budgets With Inclusion,UNICORN DAY NURSERY,Individual School Budgets With Inclusion,15436.05,Grant Payments,2324P08_CR00601,91543
Sandwell Metropolitan Borough Council,http://www.sandwell.gov.uk/info/200202/performance_and_spending/1079/payments_over_500,22/11/2023,Individual School Budgets With Inclusion,UNITED KIDS CHILDCARE,Individual School Budgets With Inclusion,13492.50,Grant Payments,2324P08_CR00602,134806
Sandwell Metropolitan Borough Council,http://www.sandwell.gov.uk/info/200202/performance_and_spending/1079/payments_over_500,22/11/2023,Individual School Budgets With Inclusion,UNITED KIDS LIMITED,Individual School Budgets With Inclusion,8719.20,Grant Payments,2324P08_CR00603,136360
Sandwell Metropolitan Borough Council,http://www.sandwell.gov.uk/info/200202/performance_and_spending/1079/payments_over_500,22/11/2023,Individual School Budgets With Inclusion,REDACTED PERSONAL DATA,Individual School Budgets With Inclusion,2137.80,Grant Payments,2324P08_CR00604,REDACTED PERSONAL DATA
Sandwell Metropolitan Borough Council,http://www.sandwell.gov.uk/info/200202/performance_and_spending/1079/payments_over_500,22/11/2023,Individual School Budgets With Inclusion,REDACTED PERSONAL DATA,Individual School Budgets With Inclusion,5127.15,Grant Payments,2324P08_CR00605,REDACTED PERSONAL DATA
Sandwell Metropolitan Borough Council,http://www.sandwell.gov.uk/info/200202/performance_and_spending/1079/payments_over_500,22/11/2023,Individual School Budgets With Inclusion,WEST BROMWICH & DISTRICT Y.M.C.A. COMMUNITY ENTERPRISES,Individual School Budgets With Inclusion,10779.02,Grant Payments,2324P08_CR00606,01088376
Sandwell Metropolitan Borough Council,http://www.sandwell.gov.uk/info/200202/performance_and_spending/1079/payments_over_500,22/11/2023,Individual School Budgets With Inclusion,WHITECREST PRIMARY SCHOOL,Individual School Budgets With Inclusion,3772.13,Grant Payments,2324P08_CR00607,38087
Sandwell Metropolitan Borough Council,http://www.sandwell.gov.uk/info/200202/performance_and_spending/1079/payments_over_500,22/11/2023,Individual School Budgets With Inclusion,WIGGLES & GIGGLES OLDBURY LTD,Individual School Budgets With Inclusion,18438.53,Grant Payments,2324P08_CR00608,01674799
Sandwell Metropolitan Borough Council,http://www.sandwell.gov.uk/info/200202/performance_and_spending/1079/payments_over_500,22/11/2023,Individual School Budgets With Inclusion,WONDERLAND CHILDRENS DAY NURSERY (UK) LTD,Individual School Budgets With Inclusion,20163.15,Grant Payments,2324P08_CR00609,50852
Sandwell Metropolitan Borough Council,http://www.sandwell.gov.uk/info/200202/performance_and_spending/1079/payments_over_500,22/11/2023,Individual School Budgets With Inclusion,REDACTED PERSONAL DATA T/A HONEYBEES HOME NURSERY,Individual School Budgets With Inclusion,801.68,Grant Payments,2324P08_CR00610,REDACTED PERSONAL DATA
Sandwell Metropolitan Borough Council,http://www.sandwell.gov.uk/info/200202/performance_and_spending/1079/payments_over_500,22/11/2023,Individual School Budgets With Inclusion,GENIUS GEMS,Individual School Budgets With Inclusion,20163.15,Grant Payments,2324P08_CR00611,160606
Sandwell Metropolitan Borough Council,http://www.sandwell.gov.uk/info/200202/performance_and_spending/1079/payments_over_500,22/11/2023,Individual School Budgets With Inclusion,ABIGAIL CRUMPTON,Individual School Budgets With Inclusion,1962.45,Grant Payments,2324P08_CR00612,130863
Sandwell Metropolitan Borough Council,http://www.sandwell.gov.uk/info/200202/performance_and_spending/1079/payments_over_500,22/11/2023,Individual School Budgets With Inclusion,CARA PRATT,Individual School Budgets With Inclusion,534.45,Grant Payments,2324P08_CR00613,140537
Sandwell Metropolitan Borough Council,http://www.sandwell.gov.uk/info/200202/performance_and_spending/1079/payments_over_500,22/11/2023,Individual School Budgets With Inclusion,CHANTELLE WILLIAMSON,Individual School Budgets With Inclusion,1763.69,Grant Payments,2324P08_CR00614,165512
Sandwell Metropolitan Borough Council,http://www.sandwell.gov.uk/info/200202/performance_and_spending/1079/payments_over_500,22/11/2023,Individual School Budgets With Inclusion,ELIZABETH TURNER,Individual School Budgets With Inclusion,534.45,Grant Payments,2324P08_CR00615,34523
Sandwell Metropolitan Borough Council,http://www.sandwell.gov.uk/info/200202/performance_and_spending/1079/payments_over_500,22/11/2023,Individual School Budgets With Inclusion,FIONA TOLLADY,Individual School Budgets With Inclusion,534.45,Grant Payments,2324P08_CR00616,92750
Sandwell Metropolitan Borough Council,http://www.sandwell.gov.uk/info/200202/performance_and_spending/1079/payments_over_500,22/11/2023,Individual School Budgets With Inclusion,GAIL FAY PREECE,Individual School Budgets With Inclusion,2137.80,Grant Payments,2324P08_CR00617,61415
Sandwell Metropolitan Borough Council,http://www.sandwell.gov.uk/info/200202/performance_and_spending/1079/payments_over_500,22/11/2023,Individual School Budgets With Inclusion,GEMMA ADAMS,Individual School Budgets With Inclusion,534.45,Grant Payments,2324P08_CR00618,129661
Sandwell Metropolitan Borough Council,http://www.sandwell.gov.uk/info/200202/performance_and_spending/1079/payments_over_500,22/11/2023,Individual School Budgets With Inclusion,GEMMA NOONE,Individual School Budgets With Inclusion,1089.90,Grant Payments,2324P08_CR00619,153866
Sandwell Metropolitan Borough Council,http://www.sandwell.gov.uk/info/200202/performance_and_spending/1079/payments_over_500,22/11/2023,Individual School Budgets With Inclusion,HAYLEY GODDARD,Individual School Budgets With Inclusion,560.70,Grant Payments,2324P08_CR00620,139835
Sandwell Metropolitan Borough Council,http://www.sandwell.gov.uk/info/200202/performance_and_spending/1079/payments_over_500,22/11/2023,Individual School Budgets With Inclusion,HAYLEY TURNER,Individual School Budgets With Inclusion,534.45,Grant Payments,2324P08_CR00621,162824
Sandwell Metropolitan Borough Council,http://www.sandwell.gov.uk/info/200202/performance_and_spending/1079/payments_over_500,22/11/2023,Individual School Budgets With Inclusion,JACQUELINE HEHIR,Individual School Budgets With Inclusion,1619.10,Grant Payments,2324P08_CR00622,75203
Sandwell Metropolitan Borough Council,http://www.sandwell.gov.uk/info/200202/performance_and_spending/1079/payments_over_500,22/11/2023,Individual School Budgets With Inclusion,JENNIFER LOUISE LEATHERLAND,Individual School Budgets With Inclusion,1666.35,Grant Payments,2324P08_CR00623,131850
Sandwell Metropolitan Borough Council,http://www.sandwell.gov.uk/info/200202/performance_and_spending/1079/payments_over_500,22/11/2023,Individual School Budgets With Inclusion,JOANNE HUGHES,Individual School Budgets With Inclusion,560.70,Grant Payments,2324P08_CR00624,120199
Sandwell Metropolitan Borough Council,http://www.sandwell.gov.uk/info/200202/performance_and_spending/1079/payments_over_500,22/11/2023,Individual School Budgets With Inclusion,JULIE BAINES,Individual School Budgets With Inclusion,534.45,Grant Payments,2324P08_CR00625,129408
Sandwell Metropolitan Borough Council,http://www.sandwell.gov.uk/info/200202/performance_and_spending/1079/payments_over_500,22/11/2023,Individual School Budgets With Inclusion,KAI DRUMS,Individual School Budgets With Inclusion,7285.95,Grant Payments,2324P08_CR00626,120729
Sandwell Metropolitan Borough Council,http://www.sandwell.gov.uk/info/200202/performance_and_spending/1079/payments_over_500,22/11/2023,Individual School Budgets With Inclusion,LEKA HOWE,Individual School Budgets With Inclusion,1089.90,Grant Payments,2324P08_CR00627,119503
Sandwell Metropolitan Borough Council,http://www.sandwell.gov.uk/info/200202/performance_and_spending/1079/payments_over_500,22/11/2023,Individual School Budgets With Inclusion,MICHAELA MOSELEY,Individual School Budgets With Inclusion,1121.40,Grant Payments,2324P08_CR00628,121672
Sandwell Metropolitan Borough Council,http://www.sandwell.gov.uk/info/200202/performance_and_spending/1079/payments_over_500,22/11/2023,Individual School Budgets With Inclusion,MONIQUE BROWN.,Individual School Budgets With Inclusion,560.70,Grant Payments,2324P08_CR00629,127112
Sandwell Metropolitan Borough Council,http://www.sandwell.gov.uk/info/200202/performance_and_spending/1079/payments_over_500,22/11/2023,Individual School Budgets With Inclusion,NATALIE WESTON,Individual School Budgets With Inclusion,534.45,Grant Payments,2324P08_CR00630,152056
Sandwell Metropolitan Borough Council,http://www.sandwell.gov.uk/info/200202/performance_and_spending/1079/payments_over_500,22/11/2023,Individual School Budgets With Inclusion,NICOLA DURBER,Individual School Budgets With Inclusion,712.60,Grant Payments,2324P08_CR00631,124216
Sandwell Metropolitan Borough Council,http://www.sandwell.gov.uk/info/200202/performance_and_spending/1079/payments_over_500,22/11/2023,Individual School Budgets With Inclusion,ROWINA WINDSOR,Individual School Budgets With Inclusion,1079.40,Grant Payments,2324P08_CR00632,138305
Sandwell Metropolitan Borough Council,http://www.sandwell.gov.uk/info/200202/performance_and_spending/1079/payments_over_500,22/11/2023,Individual School Budgets With Inclusion,RUPINDER KAUR.,Individual School Budgets With Inclusion,1068.90,Grant Payments,2324P08_CR00633,143707
Sandwell Metropolitan Borough Council,http://www.sandwell.gov.uk/info/200202/performance_and_spending/1079/payments_over_500,22/11/2023,Individual School Budgets With Inclusion,SARAH WATERS,Individual School Budgets With Inclusion,1525.86,Grant Payments,2324P08_CR00634,134518
Sandwell Metropolitan Borough Council,http://www.sandwell.gov.uk/info/200202/performance_and_spending/1079/payments_over_500,22/11/2023,Individual School Budgets With Inclusion,SATVINDER KAUR,Individual School Budgets With Inclusion,2672.25,Grant Payments,2324P08_CR00635,131042
Sandwell Metropolitan Borough Council,http://www.sandwell.gov.uk/info/200202/performance_and_spending/1079/payments_over_500,22/11/2023,Individual School Budgets With Inclusion,SUE LEATHERLAND,Individual School Budgets With Inclusion,534.45,Grant Payments,2324P08_CR00636,130855
Sandwell Metropolitan Borough Council,http://www.sandwell.gov.uk/info/200202/performance_and_spending/1079/payments_over_500,22/11/2023,Individual School Budgets With Inclusion,THERESA DEAKIN,Individual School Budgets With Inclusion,534.45,Grant Payments,2324P08_CR00637,39468
Sandwell Metropolitan Borough Council,http://www.sandwell.gov.uk/info/200202/performance_and_spending/1079/payments_over_500,22/11/2023,Individual School Budgets With Inclusion,TRACEY RALLEY,Individual School Budgets With Inclusion,534.45,Grant Payments,2324P08_CR00638,139205
Sandwell Metropolitan Borough Council,http://www.sandwell.gov.uk/info/200202/performance_and_spending/1079/payments_over_500,22/11/2023,Individual School Budgets With Inclusion,VANESSA BILLINGSLEY,Individual School Budgets With Inclusion,2137.80,Grant Payments,2324P08_CR00639,125216
Sandwell Metropolitan Borough Council,http://www.sandwell.gov.uk/info/200202/performance_and_spending/1079/payments_over_500,22/11/2023,Individual School Budgets With Inclusion,WENDY MAXWELL,Individual School Budgets With Inclusion,5127.15,Grant Payments,2324P08_CR00640,37344
Sandwell Metropolitan Borough Council,http://www.sandwell.gov.uk/info/200202/performance_and_spending/1079/payments_over_500,01/11/2023,Individual School Budgets With Inclusion,HAGLEY CATHOLIC HIGH SCHOOL,Individual School Budgets With Inclusion,-861.56,Other Local Authorities,2324P08_CR00641,59561
Sandwell Metropolitan Borough Council,http://www.sandwell.gov.uk/info/200202/performance_and_spending/1079/payments_over_500,01/11/2023,Individual School Budgets With Inclusion,HORIZON CARE AND EDUCATION GROUP LIMITED,Individual School Budgets With Inclusion,-28974.33,Other Establishments,2324P08_CR00642,114884
Sandwell Metropolitan Borough Council,http://www.sandwell.gov.uk/info/200202/performance_and_spending/1079/payments_over_500,01/11/2023,Individual School Budgets With Inclusion,HORIZON CARE AND EDUCATION GROUP LIMITED,Individual School Budgets With Inclusion,-2307.69,Other Establishments,2324P08_CR00643,114884
Sandwell Metropolitan Borough Council,http://www.sandwell.gov.uk/info/200202/performance_and_spending/1079/payments_over_500,01/11/2023,Individual School Budgets With Inclusion,SANDWELL VALLEY SCHOOL,Individual School Budgets With Inclusion,-8491.20,Other Establishments,2324P08_CR00644,128222
Sandwell Metropolitan Borough Council,http://www.sandwell.gov.uk/info/200202/performance_and_spending/1079/payments_over_500,01/11/2023,Individual School Budgets With Inclusion,SANDWELL VALLEY SCHOOL,Individual School Budgets With Inclusion,-1464.00,Other Establishments,2324P08_CR00645,128222
Sandwell Metropolitan Borough Council,http://www.sandwell.gov.uk/info/200202/performance_and_spending/1079/payments_over_500,01/11/2023,Individual School Budgets With Inclusion,SANDWELL VALLEY SCHOOL,Individual School Budgets With Inclusion,-2196.00,Other Establishments,2324P08_CR00646,128222
Sandwell Metropolitan Borough Council,http://www.sandwell.gov.uk/info/200202/performance_and_spending/1079/payments_over_500,01/11/2023,Individual School Budgets With Inclusion,ABC DAY NURSERY & PRE SCHOOL LTD,Individual School Budgets With Inclusion,8550.00,Externally Purchased Professional Services ,2324P08_CR00647,01472823
Sandwell Metropolitan Borough Council,http://www.sandwell.gov.uk/info/200202/performance_and_spending/1079/payments_over_500,14/11/2023,Individual School Budgets With Inclusion,ACADEMY21 LIMITED,Individual School Budgets With Inclusion,3000.00,Other Establishments,2324P08_CR00648,147137
Sandwell Metropolitan Borough Council,http://www.sandwell.gov.uk/info/200202/performance_and_spending/1079/payments_over_500,09/11/2023,Individual School Budgets With Inclusion,ACE EMBROIDERY LTD,Individual School Budgets With Inclusion,559.68,"Printing, Stationery & General Office Expenses",2324P08_CR00649,01541744
Sandwell Metropolitan Borough Council,http://www.sandwell.gov.uk/info/200202/performance_and_spending/1079/payments_over_500,01/11/2023,Individual School Budgets With Inclusion,ACORN CARE AND EDUCATION LIMITED,Individual School Budgets With Inclusion,7301.09,Other Establishments,2324P08_CR00650,115235
Sandwell Metropolitan Borough Council,http://www.sandwell.gov.uk/info/200202/performance_and_spending/1079/payments_over_500,01/11/2023,Individual School Budgets With Inclusion,ACORN CARE AND EDUCATION LIMITED,Individual School Budgets With Inclusion,12922.38,Other Establishments,2324P08_CR00651,115235
Sandwell Metropolitan Borough Council,http://www.sandwell.gov.uk/info/200202/performance_and_spending/1079/payments_over_500,01/11/2023,Individual School Budgets With Inclusion,ACORN CARE AND EDUCATION LIMITED,Individual School Budgets With Inclusion,23272.32,Other Establishments,2324P08_CR00652,115235
Sandwell Metropolitan Borough Council,http://www.sandwell.gov.uk/info/200202/performance_and_spending/1079/payments_over_500,14/11/2023,Individual School Budgets With Inclusion,ACORN CARE AND EDUCATION LIMITED,Individual School Budgets With Inclusion,7065.57,Other Establishments,2324P08_CR00653,115235
Sandwell Metropolitan Borough Council,http://www.sandwell.gov.uk/info/200202/performance_and_spending/1079/payments_over_500,01/11/2023,Individual School Budgets With Inclusion,ACTIVE CARE GROUP,Individual School Budgets With Inclusion,1190.00,Externally Purchased Professional Services ,2324P08_CR00654,108302
Sandwell Metropolitan Borough Council,http://www.sandwell.gov.uk/info/200202/performance_and_spending/1079/payments_over_500,01/11/2023,Individual School Budgets With Inclusion,ACTIVE CARE GROUP,Individual School Budgets With Inclusion,680.00,Externally Purchased Professional Services ,2324P08_CR00655,108302
Sandwell Metropolitan Borough Council,http://www.sandwell.gov.uk/info/200202/performance_and_spending/1079/payments_over_500,01/11/2023,Individual School Budgets With Inclusion,ACTIVE CARE GROUP,Individual School Budgets With Inclusion,3325.00,Externally Purchased Professional Services ,2324P08_CR00656,108302
Sandwell Metropolitan Borough Council,http://www.sandwell.gov.uk/info/200202/performance_and_spending/1079/payments_over_500,22/11/2023,Individual School Budgets With Inclusion,ALBRIGHT EDUCATION CENTRE,Individual School Budgets With Inclusion,14506.86,Catering Provisions,2324P08_CR00657,151478
Sandwell Metropolitan Borough Council,http://www.sandwell.gov.uk/info/200202/performance_and_spending/1079/payments_over_500,01/11/2023,Individual School Budgets With Inclusion,ASPRIS CHILDRENS SERVICES,Individual School Budgets With Inclusion,33859.14,Other Establishments,2324P08_CR00658,165076
Sandwell Metropolitan Borough Council,http://www.sandwell.gov.uk/info/200202/performance_and_spending/1079/payments_over_500,01/11/2023,Individual School Budgets With Inclusion,ASPRIS CHILDRENS SERVICES,Individual School Budgets With Inclusion,33859.14,Other Establishments,2324P08_CR00659,165076
Sandwell Metropolitan Borough Council,http://www.sandwell.gov.uk/info/200202/performance_and_spending/1079/payments_over_500,01/11/2023,Individual School Budgets With Inclusion,ASPRIS CHILDRENS SERVICES,Individual School Budgets With Inclusion,39366.33,Other Establishments,2324P08_CR00660,165076
Sandwell Metropolitan Borough Council,http://www.sandwell.gov.uk/info/200202/performance_and_spending/1079/payments_over_500,01/11/2023,Individual School Budgets With Inclusion,ASPRIS CHILDRENS SERVICES,Individual School Budgets With Inclusion,39366.33,Other Establishments,2324P08_CR00661,165076
Sandwell Metropolitan Borough Council,http://www.sandwell.gov.uk/info/200202/performance_and_spending/1079/payments_over_500,01/11/2023,Individual School Budgets With Inclusion,ASPRIS CHILDRENS SERVICES,Individual School Budgets With Inclusion,39366.33,Other Establishments,2324P08_CR00662,165076
Sandwell Metropolitan Borough Council,http://www.sandwell.gov.uk/info/200202/performance_and_spending/1079/payments_over_500,09/11/2023,Individual School Budgets With Inclusion,ATOMWIDE LTD t/a ADEPT EDUCATION,Individual School Budgets With Inclusion,509.37,Telephones,2324P08_CR00663,133177
Sandwell Metropolitan Borough Council,http://www.sandwell.gov.uk/info/200202/performance_and_spending/1079/payments_over_500,20/11/2023,Individual School Budgets With Inclusion,AURA HAIR TRAINING ACADEMY LTD,Individual School Budgets With Inclusion,2200.00,Learning Resources,2324P08_CR00664,156489
Sandwell Metropolitan Borough Council,http://www.sandwell.gov.uk/info/200202/performance_and_spending/1079/payments_over_500,23/11/2023,Individual School Budgets With Inclusion,BIRMINGHAM CITY COUNCIL,Individual School Budgets With Inclusion,15349.00,Other Local Authorities,2324P08_CR00665,01622521
Sandwell Metropolitan Borough Council,http://www.sandwell.gov.uk/info/200202/performance_and_spending/1079/payments_over_500,23/11/2023,Individual School Budgets With Inclusion,BIRMINGHAM CITY COUNCIL,Individual School Budgets With Inclusion,15349.00,Other Local Authorities,2324P08_CR00666,01622521
Sandwell Metropolitan Borough Council,http://www.sandwell.gov.uk/info/200202/performance_and_spending/1079/payments_over_500,23/11/2023,Individual School Budgets With Inclusion,BIRMINGHAM CITY COUNCIL,Individual School Budgets With Inclusion,15349.00,Other Local Authorities,2324P08_CR00667,01622521
Sandwell Metropolitan Borough Council,http://www.sandwell.gov.uk/info/200202/performance_and_spending/1079/payments_over_500,23/11/2023,Individual School Budgets With Inclusion,BIRMINGHAM CITY COUNCIL,Individual School Budgets With Inclusion,21105.00,Other Local Authorities,2324P08_CR00668,01622521
Sandwell Metropolitan Borough Council,http://www.sandwell.gov.uk/info/200202/performance_and_spending/1079/payments_over_500,23/11/2023,Individual School Budgets With Inclusion,BIRMINGHAM CITY COUNCIL,Individual School Budgets With Inclusion,10313.00,Other Local Authorities,2324P08_CR00669,01622521
Sandwell Metropolitan Borough Council,http://www.sandwell.gov.uk/info/200202/performance_and_spending/1079/payments_over_500,23/11/2023,Individual School Budgets With Inclusion,BIRMINGHAM CITY COUNCIL,Individual School Budgets With Inclusion,15349.00,Other Local Authorities,2324P08_CR00670,01622521
Sandwell Metropolitan Borough Council,http://www.sandwell.gov.uk/info/200202/performance_and_spending/1079/payments_over_500,23/11/2023,Individual School Budgets With Inclusion,BIRMINGHAM CITY COUNCIL,Individual School Budgets With Inclusion,21105.00,Other Local Authorities,2324P08_CR00671,01622521
Sandwell Metropolitan Borough Council,http://www.sandwell.gov.uk/info/200202/performance_and_spending/1079/payments_over_500,23/11/2023,Individual School Budgets With Inclusion,BIRMINGHAM CITY COUNCIL,Individual School Budgets With Inclusion,15349.00,Other Local Authorities,2324P08_CR00672,01622521
Sandwell Metropolitan Borough Council,http://www.sandwell.gov.uk/info/200202/performance_and_spending/1079/payments_over_500,23/11/2023,Individual School Budgets With Inclusion,BIRMINGHAM CITY COUNCIL,Individual School Budgets With Inclusion,15349.00,Other Local Authorities,2324P08_CR00673,01622521
Sandwell Metropolitan Borough Council,http://www.sandwell.gov.uk/info/200202/performance_and_spending/1079/payments_over_500,23/11/2023,Individual School Budgets With Inclusion,BIRMINGHAM CITY COUNCIL,Individual School Budgets With Inclusion,10313.00,Other Local Authorities,2324P08_CR00674,01622521
Sandwell Metropolitan Borough Council,http://www.sandwell.gov.uk/info/200202/performance_and_spending/1079/payments_over_500,23/11/2023,Individual School Budgets With Inclusion,BIRMINGHAM CITY COUNCIL,Individual School Budgets With Inclusion,15349.00,Other Local Authorities,2324P08_CR00675,01622521
Sandwell Metropolitan Borough Council,http://www.sandwell.gov.uk/info/200202/performance_and_spending/1079/payments_over_500,23/11/2023,Individual School Budgets With Inclusion,BIRMINGHAM CITY COUNCIL,Individual School Budgets With Inclusion,37476.00,Other Local Authorities,2324P08_CR00676,01622521
Sandwell Metropolitan Borough Council,http://www.sandwell.gov.uk/info/200202/performance_and_spending/1079/payments_over_500,20/11/2023,Individual School Budgets With Inclusion,BIRMINGHAM CITY UNIVERSITY,Individual School Budgets With Inclusion,763.00,Staff Development & Training,2324P08_CR00677,01564602
Sandwell Metropolitan Borough Council,http://www.sandwell.gov.uk/info/200202/performance_and_spending/1079/payments_over_500,01/11/2023,Individual School Budgets With Inclusion,BRIGHT LIGHTS DAY NURSERY,Individual School Budgets With Inclusion,1758.90,Externally Purchased Professional Services ,2324P08_CR00678,89877
Sandwell Metropolitan Borough Council,http://www.sandwell.gov.uk/info/200202/performance_and_spending/1079/payments_over_500,01/11/2023,Individual School Budgets With Inclusion,CAMBIAN WHINEFELL SCHOOL LTD,Individual School Budgets With Inclusion,7966.67,Other Establishments,2324P08_CR00679,164894
Sandwell Metropolitan Borough Council,http://www.sandwell.gov.uk/info/200202/performance_and_spending/1079/payments_over_500,01/11/2023,Individual School Budgets With Inclusion,CAMBIAN WHINEFELL SCHOOL LTD,Individual School Budgets With Inclusion,26650.33,Other Establishments,2324P08_CR00680,164894
Sandwell Metropolitan Borough Council,http://www.sandwell.gov.uk/info/200202/performance_and_spending/1079/payments_over_500,01/11/2023,Individual School Budgets With Inclusion,CARE FIRST MANAGEMENT,Individual School Budgets With Inclusion,1933.75,Other Establishments,2324P08_CR00681,136901
Sandwell Metropolitan Borough Council,http://www.sandwell.gov.uk/info/200202/performance_and_spending/1079/payments_over_500,14/11/2023,Individual School Budgets With Inclusion,CARE FIRST MANAGEMENT,Individual School Budgets With Inclusion,1933.75,Other Establishments,2324P08_CR00682,136901
Sandwell Metropolitan Borough Council,http://www.sandwell.gov.uk/info/200202/performance_and_spending/1079/payments_over_500,09/11/2023,Individual School Budgets With Inclusion,COLMORE EDUCATION RECRUITMENT,Individual School Budgets With Inclusion,3735.00,Agency Staff,2324P08_CR00683,148720
Sandwell Metropolitan Borough Council,http://www.sandwell.gov.uk/info/200202/performance_and_spending/1079/payments_over_500,09/11/2023,Individual School Budgets With Inclusion,COLMORE EDUCATION RECRUITMENT,Individual School Budgets With Inclusion,515.00,Agency Staff,2324P08_CR00684,148720
Sandwell Metropolitan Borough Council,http://www.sandwell.gov.uk/info/200202/performance_and_spending/1079/payments_over_500,09/11/2023,Individual School Budgets With Inclusion,COLMORE EDUCATION RECRUITMENT,Individual School Budgets With Inclusion,560.00,Agency Staff,2324P08_CR00685,148720
Sandwell Metropolitan Borough Council,http://www.sandwell.gov.uk/info/200202/performance_and_spending/1079/payments_over_500,09/11/2023,Individual School Budgets With Inclusion,COLMORE EDUCATION RECRUITMENT,Individual School Budgets With Inclusion,540.00,Agency Staff,2324P08_CR00686,148720
Sandwell Metropolitan Borough Council,http://www.sandwell.gov.uk/info/200202/performance_and_spending/1079/payments_over_500,09/11/2023,Individual School Budgets With Inclusion,COLMORE EDUCATION RECRUITMENT,Individual School Budgets With Inclusion,540.00,Agency Staff,2324P08_CR00687,148720
Sandwell Metropolitan Borough Council,http://www.sandwell.gov.uk/info/200202/performance_and_spending/1079/payments_over_500,09/11/2023,Individual School Budgets With Inclusion,COLMORE EDUCATION RECRUITMENT,Individual School Budgets With Inclusion,1840.00,Agency Staff,2324P08_CR00688,148720
Sandwell Metropolitan Borough Council,http://www.sandwell.gov.uk/info/200202/performance_and_spending/1079/payments_over_500,09/11/2023,Individual School Budgets With Inclusion,COLMORE EDUCATION RECRUITMENT,Individual School Budgets With Inclusion,2100.00,Agency Staff,2324P08_CR00689,148720
Sandwell Metropolitan Borough Council,http://www.sandwell.gov.uk/info/200202/performance_and_spending/1079/payments_over_500,09/11/2023,Individual School Budgets With Inclusion,COLMORE EDUCATION RECRUITMENT,Individual School Budgets With Inclusion,1400.00,Agency Staff,2324P08_CR00690,148720
Sandwell Metropolitan Borough Council,http://www.sandwell.gov.uk/info/200202/performance_and_spending/1079/payments_over_500,20/11/2023,Individual School Budgets With Inclusion,COLMORE EDUCATION RECRUITMENT,Individual School Budgets With Inclusion,3735.00,Agency Staff,2324P08_CR00691,148720
Sandwell Metropolitan Borough Council,http://www.sandwell.gov.uk/info/200202/performance_and_spending/1079/payments_over_500,20/11/2023,Individual School Budgets With Inclusion,COLMORE EDUCATION RECRUITMENT,Individual School Budgets With Inclusion,1960.00,Agency Staff,2324P08_CR00692,148720
Sandwell Metropolitan Borough Council,http://www.sandwell.gov.uk/info/200202/performance_and_spending/1079/payments_over_500,20/11/2023,Individual School Budgets With Inclusion,COLMORE EDUCATION RECRUITMENT,Individual School Budgets With Inclusion,540.00,Agency Staff,2324P08_CR00693,148720
Sandwell Metropolitan Borough Council,http://www.sandwell.gov.uk/info/200202/performance_and_spending/1079/payments_over_500,01/11/2023,Individual School Budgets With Inclusion,COLMORE EDUCATION RECRUITMENT,Individual School Budgets With Inclusion,560.00,Agency Staff,2324P08_CR00694,148720
Sandwell Metropolitan Borough Council,http://www.sandwell.gov.uk/info/200202/performance_and_spending/1079/payments_over_500,01/11/2023,Individual School Budgets With Inclusion,COLMORE EDUCATION RECRUITMENT,Individual School Budgets With Inclusion,1875.00,Agency Staff,2324P08_CR00695,148720
Sandwell Metropolitan Borough Council,http://www.sandwell.gov.uk/info/200202/performance_and_spending/1079/payments_over_500,01/11/2023,Individual School Budgets With Inclusion,COLMORE EDUCATION RECRUITMENT,Individual School Budgets With Inclusion,4117.80,Agency Staff,2324P08_CR00696,148720
Sandwell Metropolitan Borough Council,http://www.sandwell.gov.uk/info/200202/performance_and_spending/1079/payments_over_500,13/11/2023,Individual School Budgets With Inclusion,CONNEX EDUCATION PARTNERSHIP LTD,Individual School Budgets With Inclusion,665.00,Agency Staff,2324P08_CR00697,164513
Sandwell Metropolitan Borough Council,http://www.sandwell.gov.uk/info/200202/performance_and_spending/1079/payments_over_500,13/11/2023,Individual School Budgets With Inclusion,CONNEX EDUCATION PARTNERSHIP LTD,Individual School Budgets With Inclusion,665.00,Agency Staff,2324P08_CR00698,164513
Sandwell Metropolitan Borough Council,http://www.sandwell.gov.uk/info/200202/performance_and_spending/1079/payments_over_500,13/11/2023,Individual School Budgets With Inclusion,CONNEX EDUCATION PARTNERSHIP LTD,Individual School Budgets With Inclusion,665.00,Agency Staff,2324P08_CR00699,164513
Sandwell Metropolitan Borough Council,http://www.sandwell.gov.uk/info/200202/performance_and_spending/1079/payments_over_500,13/11/2023,Individual School Budgets With Inclusion,CONNEX EDUCATION PARTNERSHIP LTD,Individual School Budgets With Inclusion,665.00,Agency Staff,2324P08_CR00700,164513
Sandwell Metropolitan Borough Council,http://www.sandwell.gov.uk/info/200202/performance_and_spending/1079/payments_over_500,13/11/2023,Individual School Budgets With Inclusion,CONNEX EDUCATION PARTNERSHIP LTD,Individual School Budgets With Inclusion,532.00,Agency Staff,2324P08_CR00701,164513
Sandwell Metropolitan Borough Council,http://www.sandwell.gov.uk/info/200202/performance_and_spending/1079/payments_over_500,13/11/2023,Individual School Budgets With Inclusion,CONNEX EDUCATION PARTNERSHIP LTD,Individual School Budgets With Inclusion,665.00,Agency Staff,2324P08_CR00702,164513
Sandwell Metropolitan Borough Council,http://www.sandwell.gov.uk/info/200202/performance_and_spending/1079/payments_over_500,13/11/2023,Individual School Budgets With Inclusion,CONNEX EDUCATION PARTNERSHIP LTD,Individual School Budgets With Inclusion,665.00,Agency Staff,2324P08_CR00703,164513
Sandwell Metropolitan Borough Council,http://www.sandwell.gov.uk/info/200202/performance_and_spending/1079/payments_over_500,13/11/2023,Individual School Budgets With Inclusion,CONNEX EDUCATION PARTNERSHIP LTD,Individual School Budgets With Inclusion,665.00,Agency Staff,2324P08_CR00704,164513
Sandwell Metropolitan Borough Council,http://www.sandwell.gov.uk/info/200202/performance_and_spending/1079/payments_over_500,01/11/2023,Individual School Budgets With Inclusion,COOMBSWOOD EDUCATION LTD,Individual School Budgets With Inclusion,10527.10,Other Establishments,2324P08_CR00705,166990
Sandwell Metropolitan Borough Council,http://www.sandwell.gov.uk/info/200202/performance_and_spending/1079/payments_over_500,01/11/2023,Individual School Budgets With Inclusion,COOMBSWOOD EDUCATION LTD,Individual School Budgets With Inclusion,10527.10,Other Establishments,2324P08_CR00706,166990
Sandwell Metropolitan Borough Council,http://www.sandwell.gov.uk/info/200202/performance_and_spending/1079/payments_over_500,01/11/2023,Individual School Budgets With Inclusion,COOMBSWOOD EDUCATION LTD,Individual School Budgets With Inclusion,14566.82,Other Establishments,2324P08_CR00707,166990
Sandwell Metropolitan Borough Council,http://www.sandwell.gov.uk/info/200202/performance_and_spending/1079/payments_over_500,01/11/2023,Individual School Budgets With Inclusion,COOMBSWOOD EDUCATION LTD,Individual School Budgets With Inclusion,14566.82,Other Establishments,2324P08_CR00708,166990
Sandwell Metropolitan Borough Council,http://www.sandwell.gov.uk/info/200202/performance_and_spending/1079/payments_over_500,01/11/2023,Individual School Budgets With Inclusion,COOMBSWOOD EDUCATION LTD,Individual School Budgets With Inclusion,14566.82,Other Establishments,2324P08_CR00709,166990
Sandwell Metropolitan Borough Council,http://www.sandwell.gov.uk/info/200202/performance_and_spending/1079/payments_over_500,01/11/2023,Individual School Budgets With Inclusion,CPI INC.,Individual School Budgets With Inclusion,4165.00,Externally Purchased Professional Services ,2324P08_CR00710,103260
Sandwell Metropolitan Borough Council,http://www.sandwell.gov.uk/info/200202/performance_and_spending/1079/payments_over_500,09/11/2023,Individual School Budgets With Inclusion,DAISY JUKES LTD,Individual School Budgets With Inclusion,1650.00,Catering Provisions,2324P08_CR00711,167433
Sandwell Metropolitan Borough Council,http://www.sandwell.gov.uk/info/200202/performance_and_spending/1079/payments_over_500,13/11/2023,Individual School Budgets With Inclusion,DUNEDIN COMPLEX CARE LIMITED,Individual School Budgets With Inclusion,770.00,Other Local Authorities,2324P08_CR00712,164634
Sandwell Metropolitan Borough Council,http://www.sandwell.gov.uk/info/200202/performance_and_spending/1079/payments_over_500,01/11/2023,Individual School Budgets With Inclusion,EG (TRAINING) LTD,Individual School Budgets With Inclusion,1518.80,Other Local Authorities,2324P08_CR00713,146780
Sandwell Metropolitan Borough Council,http://www.sandwell.gov.uk/info/200202/performance_and_spending/1079/payments_over_500,14/11/2023,Individual School Budgets With Inclusion,ENVIRONMENTS FOR LEARNING SANDWELL PFI ONE LIMITED,Individual School Budgets With Inclusion,683186.88,PFI & PPP Schemes,2324P08_CR00714,98332
Sandwell Metropolitan Borough Council,http://www.sandwell.gov.uk/info/200202/performance_and_spending/1079/payments_over_500,14/11/2023,Individual School Budgets With Inclusion,ENVIRONMENTS FOR LEARNING SANDWELL PFI ONE LIMITED,Individual School Budgets With Inclusion,3994.05,PFI & PPP Schemes,2324P08_CR00715,98332
Sandwell Metropolitan Borough Council,http://www.sandwell.gov.uk/info/200202/performance_and_spending/1079/payments_over_500,16/11/2023,Individual School Budgets With Inclusion,ENVIRONMENTS FOR LEARNING SANDWELL PFI ONE LIMITED,Individual School Budgets With Inclusion,3994.05,PFI & PPP Schemes,2324P08_CR00716,98332
Sandwell Metropolitan Borough Council,http://www.sandwell.gov.uk/info/200202/performance_and_spending/1079/payments_over_500,14/11/2023,Individual School Budgets With Inclusion,EQUAL EDUCATION LTD,Individual School Budgets With Inclusion,4832.10,Externally Purchased Professional Services ,2324P08_CR00717,128460
Sandwell Metropolitan Borough Council,http://www.sandwell.gov.uk/info/200202/performance_and_spending/1079/payments_over_500,14/11/2023,Individual School Budgets With Inclusion,EQUAL EDUCATION LTD,Individual School Budgets With Inclusion,1380.60,Externally Purchased Professional Services ,2324P08_CR00718,128460
Sandwell Metropolitan Borough Council,http://www.sandwell.gov.uk/info/200202/performance_and_spending/1079/payments_over_500,14/11/2023,Individual School Budgets With Inclusion,EQUAL EDUCATION LTD,Individual School Budgets With Inclusion,2301.00,Externally Purchased Professional Services ,2324P08_CR00719,128460
Sandwell Metropolitan Borough Council,http://www.sandwell.gov.uk/info/200202/performance_and_spending/1079/payments_over_500,14/11/2023,Individual School Budgets With Inclusion,EQUAL EDUCATION LTD,Individual School Budgets With Inclusion,4141.80,Externally Purchased Professional Services ,2324P08_CR00720,128460
Sandwell Metropolitan Borough Council,http://www.sandwell.gov.uk/info/200202/performance_and_spending/1079/payments_over_500,14/11/2023,Individual School Budgets With Inclusion,EQUAL EDUCATION LTD,Individual School Budgets With Inclusion,2991.30,Externally Purchased Professional Services ,2324P08_CR00721,128460
Sandwell Metropolitan Borough Council,http://www.sandwell.gov.uk/info/200202/performance_and_spending/1079/payments_over_500,01/11/2023,Individual School Budgets With Inclusion,FAIRYTALES NURSERY LTD,Individual School Budgets With Inclusion,1619.16,Externally Purchased Professional Services ,2324P08_CR00722,106247
Sandwell Metropolitan Borough Council,http://www.sandwell.gov.uk/info/200202/performance_and_spending/1079/payments_over_500,04/11/2023,Individual School Budgets With Inclusion,FAIRYTALES NURSERY LTD,Individual School Budgets With Inclusion,1237.50,Externally Purchased Professional Services ,2324P08_CR00723,106247
Sandwell Metropolitan Borough Council,http://www.sandwell.gov.uk/info/200202/performance_and_spending/1079/payments_over_500,04/11/2023,Individual School Budgets With Inclusion,FAIRYTALES NURSERY LTD,Individual School Budgets With Inclusion,2850.00,Externally Purchased Professional Services ,2324P08_CR00724,106247
Sandwell Metropolitan Borough Council,http://www.sandwell.gov.uk/info/200202/performance_and_spending/1079/payments_over_500,01/11/2023,Individual School Budgets With Inclusion,FATIMA DAY NURSERY,Individual School Budgets With Inclusion,625.00,Externally Purchased Professional Services ,2324P08_CR00725,131343
Sandwell Metropolitan Borough Council,http://www.sandwell.gov.uk/info/200202/performance_and_spending/1079/payments_over_500,01/11/2023,Individual School Budgets With Inclusion,HAGLEY CATHOLIC HIGH SCHOOL,Individual School Budgets With Inclusion,10915.66,Other Local Authorities,2324P08_CR00726,59561
Sandwell Metropolitan Borough Council,http://www.sandwell.gov.uk/info/200202/performance_and_spending/1079/payments_over_500,23/11/2023,Individual School Budgets With Inclusion,HAGLEY CATHOLIC HIGH SCHOOL,Individual School Budgets With Inclusion,4211.53,Other Local Authorities,2324P08_CR00727,59561
Sandwell Metropolitan Borough Council,http://www.sandwell.gov.uk/info/200202/performance_and_spending/1079/payments_over_500,23/11/2023,Individual School Budgets With Inclusion,HAGLEY CATHOLIC HIGH SCHOOL,Individual School Budgets With Inclusion,5567.30,Other Local Authorities,2324P08_CR00728,59561
Sandwell Metropolitan Borough Council,http://www.sandwell.gov.uk/info/200202/performance_and_spending/1079/payments_over_500,23/11/2023,Individual School Budgets With Inclusion,HAGLEY CATHOLIC HIGH SCHOOL,Individual School Budgets With Inclusion,6176.94,Other Local Authorities,2324P08_CR00729,59561
Sandwell Metropolitan Borough Council,http://www.sandwell.gov.uk/info/200202/performance_and_spending/1079/payments_over_500,23/11/2023,Individual School Budgets With Inclusion,HAGLEY CATHOLIC HIGH SCHOOL,Individual School Budgets With Inclusion,4211.53,Other Local Authorities,2324P08_CR00730,59561
Sandwell Metropolitan Borough Council,http://www.sandwell.gov.uk/info/200202/performance_and_spending/1079/payments_over_500,01/11/2023,Individual School Budgets With Inclusion,HORIZON CARE AND EDUCATION GROUP LIMITED,Individual School Budgets With Inclusion,14000.07,Other Local Authorities,2324P08_CR00731,114884
Sandwell Metropolitan Borough Council,http://www.sandwell.gov.uk/info/200202/performance_and_spending/1079/payments_over_500,01/11/2023,Individual School Budgets With Inclusion,HORIZON CARE AND EDUCATION GROUP LIMITED,Individual School Budgets With Inclusion,36923.13,Other Establishments,2324P08_CR00732,114884
